Workbook

Sheet SUMMARY
A1: COLLEGE OF MEDICINE | F1: SUMMARY | L1: =COMP!L1 -> AACTION V25.1
A2: FACULTY APPOINTMENT ACTIONS | L2: ="Error Count: "&SUM(COMP!A5,COMP!A14,COMP!A27,COMP!A48,DIST!A5,DIST!A40,DIST!L38,DIST!M38,DIV!B8) -> Error Count: 69
A4: GENERAL INFORMATION
A5: Department: | C5: =COMP!C7 -> [select] | E5: Transaction Type: | G5: =COMP!C6 -> 0 | I5: Employee Name: | K5: =COMP!I6 -> 0
A6: Section/Division: | C6: =COMP!C8 -> 0 | E6: Position Type: | G6: =COMP!C10 -> [select] | I6: Working Transaction Title: | K6: =COMP!I8 -> 0
A7: Service Line: | C7: =COMP!C9 -> [select] | E7: Faculty/Extender: | G7: =COMP!C11 -> [select] | I7: Effective Date: | K7: =COMP!I9 -> 00:00:00
A9: =COMP!A40 -> Is this action fully budgeted in Adaptive? | C9: =COMP!C40:E40 -> [Select]
A11: =COMP!A42 -> If yes, what year is it budgeted? Please add notes as needed. | D11: =COMP!C42 -> [Select] | E11: =COMP!G41 -> 0
A12: JUSTIFICATION
A13: =COMP!A15 -> 0
A23: COMPENSATION CHANGES
C24: Current | E24: Proposed | G24: Difference | H24: % Diff | I24: Notes
A26: Tenure: | C26: =COMP!C29 -> [select] | E26: =COMP!G29 -> [select]
A27: Pathway: | C27: =COMP!C30 -> [select] | E27: =COMP!G30 -> [select]
A28: Rank: | C28: =COMP!C31 -> [select] | E28: =COMP!G31 -> [select]
A30: Base Salary: | C30: =COMP!C51 -> 0 | E30: =COMP!E51 -> 0 | G30: =E30-C30 -> 0 | H30: =IF(C30=0,0,G30/C30) -> 0 | I30: =IF(COMP!I51>0,COMP!I51,"") -> 
A31: Base Attachment: | C31: =COMP!C52 -> 0 | E31: =COMP!E52 -> 0 | G31: =E31-C31 -> 0 | H31: =IF(C31=0,0,G31/C31) -> 0 | I31: =IF(COMP!I52>0,COMP!I52,"") -> 
A32: UAMS Salary: | C32: =SUM(C30:C31) -> 0 | E32: =SUM(E30:E31) -> 0 | G32: =SUM(G30:G31) -> 0 | H32: =IF(C32=0,0,G32/C32) -> 0 | I32: =IF(COMP!I53>0,COMP!I53,"") -> 
A33: VA Salary: | C33: =COMP!C55 -> 0 | E33: =COMP!E55 -> 0 | G33: =E33-C33 -> 0 | H33: =IF(C33=0,0,G33/C33) -> 0 | I33: =IF(COMP!I55>0,COMP!I55,"") -> 
A34: Total Salary: | C34: =SUM(C32:C33) -> 0 | E34: =SUM(E32:E33) -> 0 | G34: =SUM(G32:G33) -> 0 | H34: =IF(C34=0,0,G34/C34) -> 0 | I34: =IF(COMP!I56>0,COMP!I56,"") -> 
A36: Incentives: | C36: =COMP!C58 -> 0 | E36: =COMP!E58 -> 0 | G36: =E36-C36 -> 0 | H36: =IF(C36=0,0,G36/C36) -> 0 | I36: =IF(COMP!I58>0,COMP!I58,"") -> 
A37: Total Comp: | C37: =C34+C36 -> 0 | E37: =E34+E36 -> 0 | G37: =G34+G36 -> 0 | H37: =IF(C37=0,0,G37/C37) -> 0 | I37: =IF(COMP!I60>0,COMP!I60,"") -> 
A39: UAMS 1.0 Salary: | C39: =C32/C53 -> 0 | E39: =E32/E53 -> 0 | G39: =E39-C39 -> 0 | H39: =IF(C39=0,0,G39/C39) -> 0 | I39: =IF(COMP!I62>0,COMP!I62,"") -> 
A41: Benchmarks | C41: 25%ile | E41: 50%ile | G41: 75%ile
A42: AAMC Public Schools: | C42: =COMP!C71 ->  | E42: =COMP!E71 ->  | G42: =COMP!G71 ->  | I42: =IF(COMP!I71>0,COMP!I71,"") -> [select]
A43: AAMC All Schools: | C43: =COMP!C72 ->  | E43: =COMP!E72 ->  | G43: =COMP!G72 ->  | I43: =IF(COMP!I72>0,COMP!I72,"") -> [select]
A44: MGMA Academic: | C44: =COMP!C73 ->  | E44: =COMP!E73 ->  | G44: =COMP!G73 ->  | I44: =IF(COMP!I73>0,COMP!I73,"") -> [select]
A45: MGMA Private Practice: | C45: =COMP!C74 ->  | E45: =COMP!E74 ->  | G45: =COMP!G74 ->  | I45: =IF(COMP!I74>0,COMP!I74,"") -> [select]
A46: Spec Association | C46: =VLOOKUP($E$28,COMP!$B$99:$G$104,2,FALSE) ->  | E46: =VLOOKUP($E$28,COMP!$B$99:$G$104,4,FALSE) ->  | G46: =VLOOKUP($E$28,COMP!$B$99:$G$104,6,FALSE) ->  | I46: =IF(COMP!I97>0,COMP!I97,"") -> 
A47: Spec Association | C47: =IF(COMP!C97=0,"",COMP!C97) -> 
A49: EFFORT CHANGES
C50: Current | E50: Proposed | G50: Difference | H50: % Diff | I50: Notes
A52: VA 8ths | C52: =COMP!C64 -> 0 | E52: =COMP!E64 -> 0 | G52: =E52-C52 -> 0 | H52: =IF(C52=0,0,G52/C52) -> 0 | I52: =IF(COMP!I64>0,COMP!I64,"") -> 
A53: UAMS FTE: | C53: =COMP!C65 -> 1 | E53: =COMP!E65 -> 1 | G53: =E53-C53 -> 0 | H53: =IF(C53=0,0,G53/C53) -> 0 | I53: =IF(COMP!I65>0,COMP!I65,"") -> 
A54: VA FTE: | C54: =COMP!C66 -> 0 | E54: =COMP!E66 -> 0 | G54: =E54-C54 -> 0 | H54: =IF(C54=0,0,G54/C54) -> 0 | I54: =IF(COMP!I66>0,COMP!I66,"") -> 
A55: Total FTE: | C55: =SUM(C53:C54) -> 1 | E55: =SUM(E53:E54) -> 1 | G55: =SUM(G53:G54) -> 0 | H55: =IF(C55=0,0,G55/C55) -> 0 | I55: =IF(COMP!I67>0,COMP!I67,"") -> 
I57: =IF(DIST!A50=0,"",DIST!A50) -> 
A58: COM | C58: =SUMIF(DIST!$H$6:$H$37,$A58,DIST!$L$6:$L$37) -> 0 | E58: =SUMIF(DIST!$H$6:$H$37,$A58,DIST!$M$6:$M$37) -> 0 | G58: =E58-C58 -> 0
A59: ICE | C59: =SUMIF(DIST!$H$6:$H$37,$A59,DIST!$L$6:$L$37) -> 0 | E59: =SUMIF(DIST!$H$6:$H$37,$A59,DIST!$M$6:$M$37) -> 0 | G59: =E59-C59 -> 0
A60: ACH | C60: =SUMIF(DIST!$H$6:$H$37,$A60,DIST!$L$6:$L$37) -> 0 | E60: =SUMIF(DIST!$H$6:$H$37,$A60,DIST!$M$6:$M$37) -> 0 | G60: =E60-C60 -> 0
A61: INST | C61: =SUMIF(DIST!$H$6:$H$37,$A61,DIST!$L$6:$L$37) -> 0 | E61: =SUMIF(DIST!$H$6:$H$37,$A61,DIST!$M$6:$M$37) -> 0 | G61: =E61-C61 -> 0
A62: Other | C62: =SUMIF(DIST!$H$6:$H$37,$A62,DIST!$L$6:$L$37) -> 0 | E62: =SUMIF(DIST!$H$6:$H$37,$A62,DIST!$M$6:$M$37) -> 0 | G62: =E62-C62 -> 0
A63: Total | C63: =SUM(C58:C62) -> 0 | E63: =SUM(E58:E62) -> 0 | G63: =SUM(G58:G62) -> 0
A65: FINANCIAL IMPACT CHANGES
C66: Current | E66: Proposed | G66: Difference | I66: Notes
A67: Salary
A68: COM | C68: =(SUMIF(DIST!$H$6:$H$37,$A68,DIST!$L$6:$L$37)/$C$53)*$C$32 -> 0 | E68: =(SUMIF(DIST!$H$6:$H$37,$A68,DIST!$M$6:$M$37)/$E$53)*$E$32 -> 0 | G68: =E68-C68 -> 0
A69: ICE | C69: =(SUMIF(DIST!$H$6:$H$37,$A69,DIST!$L$6:$L$37)/$C$53)*$C$32 -> 0 | E69: =(SUMIF(DIST!$H$6:$H$37,$A69,DIST!$M$6:$M$37)/$E$53)*$E$32 -> 0 | G69: =E69-C69 -> 0
A70: ACH | C70: =(SUMIF(DIST!$H$6:$H$37,$A70,DIST!$L$6:$L$37)/$C$53)*$C$32 -> 0 | E70: =(SUMIF(DIST!$H$6:$H$37,$A70,DIST!$M$6:$M$37)/$E$53)*$E$32 -> 0 | G70: =E70-C70 -> 0
A71: INST | C71: =(SUMIF(DIST!$H$6:$H$37,$A71,DIST!$L$6:$L$37)/$C$53)*$C$32 -> 0 | E71: =(SUMIF(DIST!$H$6:$H$37,$A71,DIST!$M$6:$M$37)/$E$53)*$E$32 -> 0 | G71: =E71-C71 -> 0
A72: Other | C72: =(SUMIF(DIST!$H$6:$H$37,$A72,DIST!$L$6:$L$37)/$C$53)*$C$32 -> 0 | E72: =(SUMIF(DIST!$H$6:$H$37,$A72,DIST!$M$6:$M$37)/$E$53)*$E$32 -> 0 | G72: =E72-C72 -> 0
A73: Total | C73: =SUM(C68:C72) -> 0 | E73: =SUM(E68:E72) -> 0 | G73: =SUM(G68:G72) -> 0
A75: Incentive
A76: COM | C76: =SUMIF(DIST!$H$41:$H$47,$A76,DIST!$L$41:$L$47) -> 0 | E76: =SUMIF(DIST!$H$41:$H$47,$A76,DIST!$M$41:$M$47) -> 0 | G76: =E76-C76 -> 0
A77: ICE | C77: =SUMIF(DIST!$H$41:$H$47,$A77,DIST!$L$41:$L$47) -> 0 | E77: =SUMIF(DIST!$H$41:$H$47,$A77,DIST!$M$41:$M$47) -> 0 | G77: =E77-C77 -> 0
A78: ACH | C78: =SUMIF(DIST!$H$41:$H$47,$A78,DIST!$L$41:$L$47) -> 0 | E78: =SUMIF(DIST!$H$41:$H$47,$A78,DIST!$M$41:$M$47) -> 0 | G78: =E78-C78 -> 0
A79: INST | C79: =SUMIF(DIST!$H$41:$H$47,$A79,DIST!$L$41:$L$47) -> 0 | E79: =SUMIF(DIST!$H$41:$H$47,$A79,DIST!$M$41:$M$47) -> 0 | G79: =E79-C79 -> 0
A80: Other | C80: =SUMIF(DIST!$H$41:$H$47,$A80,DIST!$L$41:$L$47) -> 0 | E80: =SUMIF(DIST!$H$41:$H$47,$A80,DIST!$M$41:$M$47) -> 0 | G80: =E80-C80 -> 0
A81: Total | C81: =SUM(C76:C80) -> 0 | E81: =SUM(E76:E80) -> 0 | G81: =SUM(G76:G80) -> 0
A83: Compensation Changes | I83: =IF(DIST!A55=0,"",DIST!A55) -> 
A84: COM | C84: =C68+C76 -> 0 | E84: =E68+E76 -> 0 | G84: =G68+G76 -> 0
A85: ICE | C85: =C69+C77 -> 0 | E85: =E69+E77 -> 0 | G85: =G69+G77 -> 0
A86: ACH | C86: 0 | E86: 0 | G86: 0
A87: INST | C87: 0 | E87: 0 | G87: 0
A88: Other | C88: 0 | E88: 0 | G88: 0
A89: Total | C89: =SUM(C84:C88) -> 0 | E89: =SUM(E84:E88) -> 0 | G89: =SUM(G84:G88) -> 0

Sheet COMP
A1: COLLEGE OF MEDICINE | D1: COMPENSATION | L1: AACTION V25.1 | M1: HIDE | N1: HIDE
A2: FACULTY APPOINTMENT ACTIONS
A3: Prepated By: | B3: =I11 -> 0
A4: GENERAL INFORMATION
A5: =SUM(M6:N11) -> 9
B6: Transaction Type: | H6: Employee Name: | M6: =IF(C6="[select]",1,IF(C6=0,1,0)) -> 1 | N6: =IF(I6="[enter]",1,IF(I6=0,1,0)) -> 1
B7: Department: | C7: [select] | H7: Employee ID Number: | M7: =IF(C7="[select]",1,IF(C7=0,1,0)) -> 1
B8: Section/Division: | H8: Working Transaction Title: | N8: =IF(I8="[enter]",1,IF(I8=0,1,0)) -> 1
B9: Service Line: | C9: [select] | H9: Effective Date: | M9: =IF(C9="[select]",1,IF(C9=0,1,0)) -> 1 | N9: =IF(I9="[enter]",1,IF(I9=0,1,0)) -> 1
B10: Position Type: | C10: [select] | M10: =IF(C10="[select]",1,IF(C10=0,1,0)) -> 1
B11: Faculty/Extender: | C11: [select] | H11: Prepared by: | M11: =IF(C11="[select]",1,IF(C11=0,1,0)) -> 1 | N11: =IF(I11="[enter]",1,IF(I11=0,1,0)) -> 1
A13: ACTION JUSTIFICATION
A14: =M15 -> 1
M15: =IF(A15="[enter]",1,IF(A15=0,1,0)) -> 1
A26: POSITION CHANGE
A27: =SUM(M29:N35) -> 10 | C27: Current | G27: Proposed
B29: Tenure: | C29: [select] | G29: [select] | M29: =IF(C29="[select]",1,IF(C29=0,1,0)) -> 1 | N29: =IF(G29="[select]",1,IF(G29=0,1,0)) -> 1
B30: Pathway: | C30: [select] | G30: [select]
B31: Rank: | C31: [select] | G31: [select] | M31: =IF(C31="[select]",1,IF(C31=0,1,0)) -> 1 | N31: =IF(G31="[select]",1,IF(G31=0,1,0)) -> 1
B32: AAMC Specialty: | C32: [select] | G32: [select] | M32: =IF(C32="[select]",1,IF(C32=0,1,0)) -> 1 | N32: =IF(G32="[select]",1,IF(G32=0,1,0)) -> 1
B33: AAMC Degree: | C33: [select] | G33: [select] | M33: =IF(C33="[select]",1,IF(C33=0,1,0)) -> 1 | N33: =IF(G33="[select]",1,IF(G33=0,1,0)) -> 1
B34: FPSC Specialty: | C34: [select] | G34: [select]
B35: MGMA Specialty: | C35: [select] | G35: [select] | M35: =IF(C35="[select]",1,IF(C35=0,1,0)) -> 1 | N35: =IF(G35="[select]",1,IF(G35=0,1,0)) -> 1
A38: FUNDING INFORMATION
A39: =SUM(M40:N48) -> 3
A40: Is this action fully budgeted in Adaptive? | C40: [Select] | F40: =IF(OR(C40="[enter]",C40="[select]",C40=0)=TRUE,"error","") -> error | G40: Other Information regarding budget status: | M40: =IF(C40="[select]",1,IF(C40=0,1,0)) -> 1
A41: Will we be able to find this full change in Adaptive? | C41: [Select] | F41: =IF(OR(C41="[enter]",C41="[select]",C41=0)=TRUE,"error","") -> error
A42: If yes, what year is it budgeted? Please add notes as needed. | C42: [Select] | F42: =IF(OR(C42="[enter]",C42="[select]",C42=0)=TRUE,"error","") -> error | M42: 1
A43: If yes, what Position Name, Number or Lump Sum note in Adaptive? | F43: =IF(OR(C43="[enter]",C43="[select]",C43=0)=TRUE,"error","") -> error | M43: 1
A46: (What is the name or position number or Lump Sum note/title of this position in Budget system?)
A47: COMPENSATION
A48: =SUM(M49:N77) -> 0
C49: Current | E49: Proposed | G49: Difference | H49: Diff % | I49: Notes
B51: Base Salary: | C51: 0 | E51: 0 | G51: =E51-C51 -> 0 | H51: =G51/C51 ->  | M51: =IF(G51<>0,IF(I51>0,0,1),0) -> 0
B52: Base Attachment: | E52: =C52 -> 0 | G52: =E52-C52 -> 0 | H52: =G52/C52 ->  | M52: =IF(G52<>0,IF(I52>0,0,1),0) -> 0
B53: UAMS Salary: | C53: =SUM(C51:C52) -> 0 | E53: =SUM(E51:E52) -> 0 | G53: =E53-C53 -> 0 | H53: =G53/C53 -> 
B55: VA Salary: | E55: =C55 -> 0 | G55: =E55-C55 -> 0 | H55: =G55/C55 ->  | M55: =IF(G55<>0,IF(I55>0,0,1),0) -> 0
B56: Total Salary: | C56: =C55+C53 -> 0 | E56: =E55+E53 -> 0 | G56: =E56-C56 -> 0 | H56: =G56/C56 -> 
B58: Incentives: | C58: =DIST!L47 -> 0 | E58: =DIST!M47 -> 0 | G58: =E58-C58 -> 0 | M58: =IF(G58<>0,IF(I58>0,0,1),0) -> 0
B60: Total Comp: | C60: =C56+C58 -> 0 | E60: =E56+E58 -> 0 | G60: =E60-C60 -> 0
B62: UAMS 1.0 Salary: | C62: =(C53+C58)/C65 -> 0 | E62: =(E53+E58)/E65 -> 0
B64: VA 8ths | C64: 0 | E64: 0 | G64: =E64-C64 -> 0 | H64: =G64/C64 ->  | M64: =IF(G64<>0,IF(I64>0,0,1),0) -> 0
B65: UAMS FTE: | C65: =C67-C66 -> 1 | E65: =E67-E66 -> 1 | G65: =E65-C65 -> 0 | H65: =G65/C65 -> 0 | M65: =IF(G65<>0,IF(I65>0,0,1),0) -> 0
B66: VA FTE: | C66: 0 | E66: 0 | G66: =E66-C66 -> 0 | H66: =G66/C66 -> 
B67: Total FTE: | C67: 1 | E67: 1 | G67: =E67-C67 -> 0 | H67: =G67/C67 -> 0 | M67: =IF(C67=0,1,0) -> 0 | N67: =IF(E67=0,1,0) -> 0
B70: Comp Benchmarks | C70: 25%ile | E70: 50%ile | G70: 75%ile
B71: AAMC Public Schools: | C71: =VLOOKUP("AAMCAcademicPublic"&$G$31&$G$33&$G$32&"L",'COMP BCHMK'!$A$3:$W$6000,10,FALSE) ->  | E71: =VLOOKUP("AAMCAcademicPublic"&$G$31&$G$33&$G$32&"L",'COMP BCHMK'!$A$3:$W$6000,15,FALSE) ->  | G71: =VLOOKUP("AAMCAcademicPublic"&$G$31&$G$33&$G$32&"L",'COMP BCHMK'!$A$3:$W$6000,20,FALSE) ->  | I71: =G32 -> [select] | M71: =IF(I71=0,1,0) -> 0
B72: AAMC All Schools: | C72: =VLOOKUP("AAMCAcademicAll"&$G$31&$G$33&$G$32&"L",'COMP BCHMK'!$A$3:$W$6000,10,FALSE) ->  | E72: =VLOOKUP("AAMCAcademicAll"&$G$31&$G$33&$G$32&"L",'COMP BCHMK'!$A$3:$W$6000,15,FALSE) ->  | G72: =VLOOKUP("AAMCAcademicAll"&$G$31&$G$33&$G$32&"L",'COMP BCHMK'!$A$3:$W$6000,20,FALSE) ->  | I72: =G32 -> [select] | M72: =IF(I72=0,1,0) -> 0
B73: MGMA Academic: | C73: =VLOOKUP("MGMAAcademicAll"&$G$31&$G$33&$G$35&"L",'COMP BCHMK'!$A$3:$W$6000,10,FALSE) ->  | E73: =VLOOKUP("MGMAAcademicAll"&$G$31&$G$33&$G$35&"L",'COMP BCHMK'!$A$3:$W$6000,15,FALSE) ->  | G73: =VLOOKUP("MGMAAcademicAll"&$G$31&$G$33&$G$35&"L",'COMP BCHMK'!$A$3:$W$6000,20,FALSE) ->  | I73: =G35 -> [select] | M73: =IF(I73=0,1,0) -> 0
B74: MGMA Private Practice: | C74: =VLOOKUP("MGMAPrivate PracticeAll"&"Private Practice"&$G$33&$G$35&"L",'COMP BCHMK'!$A$3:$W$6000,10,FALSE) ->  | E74: =VLOOKUP("MGMAPrivate PracticeAll"&"Private Practice"&$G$33&$G$35&"L",'COMP BCHMK'!$A$3:$W$6000,15,FALSE) ->  | G74: =VLOOKUP("MGMAPrivate PracticeAll"&"Private Practice"&$G$33&$G$35&"L",'COMP BCHMK'!$A$3:$W$6000,20,FALSE) ->  | I74: =G35 -> [select] | M74: =IF(I74=0,1,0) -> 0
B76: wRVU Benchmarks
B77: FPSC Academic: | C77: =VLOOKUP("FPSCAcademicAll"&$G$34&"L",'RVU BCHMK'!$A$1:$U$1000,8,FALSE) ->  | E77: =VLOOKUP("FPSCAcademicAll"&$G$34&"L",'RVU BCHMK'!$A$1:$U$1000,13,FALSE) ->  | G77: =VLOOKUP("FPSCAcademicAll"&$G$34&"L",'RVU BCHMK'!$A$1:$U$1000,18,FALSE) ->  | I77: =G34 -> [select] | M77: =IF(I77=0,1,0) -> 0
B78: MGMA Academic: | C78: =VLOOKUP("MGMAAcademicAll"&$G$35&"L",'RVU BCHMK'!$A$1:$U$1000,8,FALSE) ->  | E78: =VLOOKUP("MGMAAcademicAll"&$G$35&"L",'RVU BCHMK'!$A$1:$U$1000,13,FALSE) ->  | G78: =VLOOKUP("MGMAAcademicAll"&$G$35&"L",'RVU BCHMK'!$A$1:$U$1000,18,FALSE) ->  | I78: =G35 -> [select] | M78: =IF(I78=0,1,0) -> 0
B79: MGMA Private Practice: | C79: =VLOOKUP("MGMAPrivate PracticeAll"&$G$35&"L",'RVU BCHMK'!$A$1:$U$1000,8,FALSE) ->  | E79: =VLOOKUP("MGMAPrivate PracticeAll"&$G$35&"L",'RVU BCHMK'!$A$1:$U$1000,13,FALSE) ->  | G79: =VLOOKUP("MGMAPrivate PracticeAll"&$G$35&"L",'RVU BCHMK'!$A$1:$U$1000,18,FALSE) ->  | I79: =G35 -> [select] | M79: =IF(I79=0,1,0) -> 0
B82: Compenstation Plan Benchmarks | C82: Data Year | D82: 25%ile | E82: Median | F82: 75%ile | G82: 90%ile | I82: Comp Plan Bchmks Note Salary
B83: Compensation Plan Salary Bchmks:
B84: Current per Comp Plan
B85: Comp Plan Bchmks Year/Source:
B87: Compenstation Plan Benchmarks | C87: Data Year | D87: 25%ile | E87: Median | F87: 75%ile | G87: 90%ile | I87: Comp Plan Bchmks Note RVUs
B88: Compensation Plan RVU Bchmks:
B89: Current Per Comp Plan
B90: Comp Plan Bchmks source Year/Source:
A94: Specialty Association Compensation and wRVU Benchmarks
B96: Salary Benchmarks | C96: 25%ile | E96: 50%ile | G96: 75%ile
B97: Association Title:
B99: Instructor
B100: Assistant
B101: Associate
B102: Professor
B103: Chief
B104: Chair
B106: wRVU Benchmarks | C106: 25%ile | E106: 50%ile | G106: 75%ile
B107: Association Title:
B109: Spec Association:

Sheet DIST
A1: COLLEGE OF MEDICINE | E1: DISTRIBUTION | N1: =COMP!L1 -> AACTION V25.1 | O1: HIDE | P1: HIDE | Q1: HIDE | R1: HIDE | S1: HIDE | T1: HIDE
A2: FACULTY APPOINTMENT ACTIONS
A4: SALARY DISTRIBUTION
A5: =SUM(Q8:T34) -> 0 | L5: Current | M5: Proposed
A6: Assignment | D6: Assignment Details | H6: P&L | I6: Rev Type | J6: Cost Ctr Details | L6: FTE | M6: FTE | N6: Difference
B7: ADMINISTRATION
M8: =L8 -> 0 | N8: =M8-L8 -> 0 | O8: =IF(L8<>0,1,0) -> 0 | P8: =IF(M8<>0,1,0) -> 0 | Q8: =IF(SUM($O8:$P8)>0,IF(A8=0,1,0),0) -> 0 | R8: =IF(SUM($O8:$P8)>0,IF(D8=0,1,0),0) -> 0 | S8: =IF(SUM($O8:$P8)>0,IF(H8=0,1,0),0) -> 0 | T8: =IF(SUM($O8:$P8)>0,IF(I8=0,1,0),0) -> 0
M9: =L9 -> 0 | N9: =M9-L9 -> 0 | O9: =IF(L9<>0,1,0) -> 0 | P9: =IF(M9<>0,1,0) -> 0 | Q9: =IF(SUM($O9:$P9)>0,IF(A9=0,1,0),0) -> 0 | R9: =IF(SUM($O9:$P9)>0,IF(D9=0,1,0),0) -> 0 | S9: =IF(SUM($O9:$P9)>0,IF(H9=0,1,0),0) -> 0 | T9: =IF(SUM($O9:$P9)>0,IF(I9=0,1,0),0) -> 0
M10: =L10 -> 0 | N10: 0 | O10: 0 | P10: 0 | Q10: 0 | R10: 0 | S10: 0 | T10: 0
M11: =L11 -> 0 | N11: 0 | O11: 0 | P11: 0 | Q11: 0 | R11: 0 | S11: 0 | T11: 0
M12: =L12 -> 0 | N12: 0 | O12: 0 | P12: 0 | Q12: 0 | R12: 0 | S12: 0 | T12: 0
L13: =SUM(L8:L12) -> 0 | M13: =SUM(M8:M12) -> 0 | N13: =SUM(N8:N12) -> 0
B14: RESEARCH
M15: =L15 -> 0 | N15: =M15-L15 -> 0 | O15: =IF(L15<>0,1,0) -> 0 | P15: 0 | Q15: =IF(SUM($O15:$P15)>0,IF(A15=0,1,0),0) -> 0 | R15: =IF(SUM($O15:$P15)>0,IF(D15=0,1,0),0) -> 0 | S15: =IF(SUM($O15:$P15)>0,IF(H15=0,1,0),0) -> 0 | T15: 0
M16: 0 | N16: =M16-L16 -> 0 | O16: 0 | P16: 0 | Q16: =IF(SUM($O16:$P16)>0,IF(A16=0,1,0),0) -> 0 | R16: =IF(SUM($O16:$P16)>0,IF(D16=0,1,0),0) -> 0 | S16: 0 | T16: 0
M17: =L17 -> 0 | N17: 0 | O17: 0 | P17: 0 | Q17: =IF(SUM($O17:$P17)>0,IF(A17=0,1,0),0) -> 0 | R17: =IF(SUM($O17:$P17)>0,IF(D17=0,1,0),0) -> 0 | S17: 0 | T17: 0
M18: =L18 -> 0 | N18: 0 | O18: 0 | P18: 0 | Q18: =IF(SUM($O18:$P18)>0,IF(A18=0,1,0),0) -> 0 | R18: =IF(SUM($O18:$P18)>0,IF(D18=0,1,0),0) -> 0 | S18: 0 | T18: 0
M19: =L19 -> 0 | N19: 0 | O19: 0 | P19: 0 | Q19: =IF(SUM($O19:$P19)>0,IF(A19=0,1,0),0) -> 0 | R19: =IF(SUM($O19:$P19)>0,IF(D19=0,1,0),0) -> 0 | S19: 0 | T19: 0
L20: =SUM(L15:L19) -> 0 | M20: =SUM(M15:M19) -> 0 | N20: =SUM(N15:N19) -> 0
B21: EDUCATION
M22: =L22 -> 0 | N22: =M22-L22 -> 0 | O22: =IF(L22<>0,1,0) -> 0 | P22: 0 | Q22: =IF(SUM($O22:$P22)>0,IF(A22=0,1,0),0) -> 0 | R22: =IF(SUM($O22:$P22)>0,IF(D22=0,1,0),0) -> 0 | S22: =IF(SUM($O22:$P22)>0,IF(H22=0,1,0),0) -> 0 | T22: 0
M23: =L23 -> 0 | N23: =M23-L23 -> 0 | O23: 0 | P23: 0 | Q23: =IF(SUM($O23:$P23)>0,IF(A23=0,1,0),0) -> 0 | R23: =IF(SUM($O23:$P23)>0,IF(D23=0,1,0),0) -> 0 | S23: 0 | T23: 0
M24: 0 | N24: 0 | O24: 0 | P24: 0 | Q24: =IF(SUM($O24:$P24)>0,IF(A24=0,1,0),0) -> 0 | R24: =IF(SUM($O24:$P24)>0,IF(D24=0,1,0),0) -> 0 | S24: 0 | T24: 0
M25: 0 | N25: 0 | O25: 0 | P25: 0 | Q25: =IF(SUM($O25:$P25)>0,IF(A25=0,1,0),0) -> 0 | R25: =IF(SUM($O25:$P25)>0,IF(D25=0,1,0),0) -> 0 | S25: 0 | T25: 0
M26: =L26 -> 0 | N26: 0 | O26: 0 | P26: 0 | Q26: =IF(SUM($O26:$P26)>0,IF(A26=0,1,0),0) -> 0 | R26: =IF(SUM($O26:$P26)>0,IF(D26=0,1,0),0) -> 0 | S26: 0 | T26: 0
L27: =SUM(L22:L26) -> 0 | M27: =SUM(M22:M26) -> 0 | N27: =SUM(N22:N26) -> 0
B28: CLINICAL
L29: 0 | M29: =L29 -> 0 | N29: =M29-L29 -> 0 | O29: =IF(L29<>0,1,0) -> 0 | P29: 0 | Q29: =IF(SUM($O29:$P29)>0,IF(A29=0,1,0),0) -> 0 | R29: =IF(SUM($O29:$P29)>0,IF(D29=0,1,0),0) -> 0 | S29: =IF(SUM($O29:$P29)>0,IF(H29=0,1,0),0) -> 0 | T29: 0
M30: 0 | N30: 0 | O30: 0 | P30: 0 | Q30: 0 | R30: 0 | S30: 0 | T30: 0
M31: 0 | N31: 0 | O31: 0 | P31: 0 | Q31: 0 | R31: 0 | S31: 0 | T31: 0
M32: =L32 -> 0 | N32: 0 | O32: 0 | P32: 0 | Q32: 0 | R32: 0 | S32: 0 | T32: 0
M33: 0 | N33: 0 | O33: 0 | P33: 0 | Q33: 0 | R33: 0 | S33: 0 | T33: 0
M34: 0 | N34: 0 | O34: 0 | P34: 0 | Q34: 0 | R34: 0 | S34: 0 | T34: 0
L35: =SUM(L29:L34) -> 0 | M35: =SUM(M29:M34) -> 0 | N35: =SUM(N29:N34) -> 0
K37: Total | L37: =L13+L20+L27+L35 -> 0 | M37: =M13+M20+M27+M35 -> 0 | N37: =N13+N20+N27+N35 -> 0
L38: =IF(ROUND(L37,2)=ROUND(COMP!C65,2),0,1) -> 1 | M38: =IF(ROUND(M37,2)=ROUND(COMP!E65,2),0,1) -> 1
A39: INCENTIVE DISTRIBUTION
A40: =SUM(Q42:T46) -> 0 | L40: Current | M40: Proposed
A41: Mission | D41: Incentive Details | H41: P&L | I41: Rev Type | J41: Cost Ctr Details | L41: Dollars | M41: Dollars | N41: Difference
N42: =M42-L42 -> 0 | O42: =IF(L42<>0,1,0) -> 0 | P42: 0 | Q42: =IF(SUM($O42:$P42)>0,IF(A42=0,1,0),0) -> 0 | R42: =IF(SUM($O42:$P42)>0,IF(D42=0,1,0),0) -> 0 | S42: =IF(SUM($O42:$P42)>0,IF(H42=0,1,0),0) -> 0 | T42: 0
N43: =M43-L43 -> 0 | O43: 0 | P43: 0 | Q43: =IF(SUM($O43:$P43)>0,IF(A43=0,1,0),0) -> 0 | R43: =IF(SUM($O43:$P43)>0,IF(D43=0,1,0),0) -> 0 | S43: 0 | T43: 0
N44: =M44-L44 -> 0 | O44: 0 | P44: 0 | Q44: =IF(SUM($O44:$P44)>0,IF(A44=0,1,0),0) -> 0 | R44: =IF(SUM($O44:$P44)>0,IF(D44=0,1,0),0) -> 0 | S44: 0 | T44: 0
N45: =M45-L45 -> 0 | O45: 0 | P45: 0 | Q45: =IF(SUM($O45:$P45)>0,IF(A45=0,1,0),0) -> 0 | R45: =IF(SUM($O45:$P45)>0,IF(D45=0,1,0),0) -> 0 | S45: 0 | T45: 0
N46: =M46-L46 -> 0 | O46: 0 | P46: 0 | Q46: =IF(SUM($O46:$P46)>0,IF(A46=0,1,0),0) -> 0 | R46: =IF(SUM($O46:$P46)>0,IF(D46=0,1,0),0) -> 0 | S46: 0 | T46: 0
L47: =SUM(L42:L46) -> 0 | M47: =SUM(M42:M46) -> 0 | N47: =SUM(N42:N46) -> 0
A49: CHANGE IN ASSIGNMENT SUMMARY
A54: FINANCIAL IMPACT SUMMARY

Sheet DIV
A1: HIDE | B1: HIDE | E1: HIDE | F1: HIDE | G1: HIDE | H1: HIDE | I1: HIDE | J1: COLLEGE OF MEDICINE | O1: DIVISION ANALYSIS | AI1: =COMP!L1 -> AACTION V25.1 | AJ1: HIDE | AK1: HIDE | AL1: HIDE | AM1: HIDE
J2: FACULTY APPOINTMENT ACTIONS
J5: ENTER DATA Sorted by faculty by Division then by Rank
N6: FTE ANALYSIS | V6: SALARY ANALYSIS (in thousands) | AE6: CLINICAL PRODUCTIVITY ANALYSIS
A7: Include | B7: wRVU Bchmk | C7: Type | D7: Category | E7: wRVU Speciatly | F7: Comp Bchmk | G7: Type | H7: Category | I7: Comp Specialty | J7: Faculty | K7: Notes | L7: Rank | N7: Admin FTE | O7: Teach FTE | P7: Int Resch FTE | Q7: Ext Resch FTE | R7: Clinical FTE | S7: VA FTE | T7: Total UAMS FTE | V7: Curr Year Salary | W7: Cur Yr Proj Incentive | X7: VA Comp | Y7: Curr Total | Z7: Norm. Comp | AA7: 25%ile Comp Bmark | AB7: 50%ile Comp Bmark | AC7: 75%ile Comp Bmark | AE7: Median wRVU Bmark | AF7: Are these Comp Plan Benchmarks? Yes/No | AG7: CFTE Adjusted Expectation | AH7: Current Annual RVUs | AI7: Difference | AN7: cod
A8: 1 | B8: =SUM(AJ9:AL51) -> 47 | V8: Requested Faculty Salary | AF8: [Select] | AG8: =IF(OR(AF8="[enter]",AF8="[select]",AF8=0)=TRUE,"error","") -> error | AJ8: =IF(AF8>0,IF(T8=0,1,0),0) -> 1
A9: 1 | B9: FPSC | C9: Academic | D9: All | E9: =IF($B9="MGMA",COMP!$G$35,IF($B9="FPSC",COMP!$G$34,IF($B9="SPEC",COMP!$C$107,"no data"))) -> [select] | F9: AAMC | G9: Academic | H9: All | I9: =IF($F9="AAMC",COMP!$G$32,IF($F9="MGMA",COMP!$G$35,IF($F9="SPEC",COMP!$C$97,"no data"))) -> [select] | J9: =COMP!I6 -> 0 | L9: =COMP!$G$31 -> [select] | N9: =DIST!$M$13 -> 0 | O9: =DIST!$M$27 -> 0 | P9: =DIST!M20-Q9 -> 0 | Q9: =SUMIF(DIST!$A$15:$C$19,"Grant",DIST!$M$15:$M$19)+SUMIF(DIST!$A$15:$C$19,"Contract",DIST!$M$15:$M$19)+SUMIF(DIST!$A$15:$C$19,"External Clinical Trial",DIST!$M$15:$M$19) -> 0 | R9: =DIST!$M$35 -> 0 | S9: =COMP!$E$66 -> 0 | T9: =SUM(N9:S9) -> 0 | V9: =COMP!$E$53/1000 -> 0 | W9: =COMP!$E$58/1000 -> 0 | X9: =COMP!$E$55/1000 -> 0 | Y9: =SUM(V9:X9) -> 0 | Z9: =IF(T9=0,0,Y9/T9) -> 0 | AA9: =IF($F9="SPEC",VLOOKUP($H9,COMP!$B$87:$G$93,2,FALSE)/1000,IFERROR(VLOOKUP($F9&$G9&$H9&$L9&COMP!$G$33&$I9&"L",'COMP BCHMK'!$A$3:$W$4000,10,FALSE)/1000,"no data")) -> no data | AB9: =IF($F9="SPEC",VLOOKUP($H9,COMP!$B$87:$G$93,4,FALSE)/1000,IFERROR(VLOOKUP($F9&$G9&$H9&$L9&COMP!$G$33&$I9&"L",'COMP BCHMK'!$A$3:$W$4000,15,FALSE)/1000,"no data")) -> no data | AC9: =IF($F9="SPEC",VLOOKUP($H9,COMP!$B$87:$G$93,6,FALSE)/1000,IFERROR(VLOOKUP($F9&$G9&$H9&$L9&COMP!$G$33&$I9&"L",'COMP BCHMK'!$A$3:$W$4000,20,FALSE)/1000,"no data")) -> no data | AE9: =IF($J9=0,0,IF($B9="SPEC",COMP!$E$98,IFERROR(VLOOKUP($B9&$C9&$D9&$E9&"L",'RVU BCHMK'!$A$3:$W$4000,13,FALSE),"no data"))) -> 0 | AF9: =IF($AF8 = "No", COMP!D89, "no data") -> no data | AG9: =AE9*R9 -> 0 | AH9: 0 | AI9: =AH9-AG9 -> 0 | AJ9: =IF(COMP!C10="Clinical",IF(AH9=0,1,0),0) -> 0
A10: 1
A11: 1
A12: 1 | B12: =$B$9 -> FPSC | C12: =$C$9 -> Academic | D12: =$D$9 -> All | E12: =IF($B12="MGMA",COMP!$G$35,IF($B12="FPSC",COMP!$G$34,IF($B12="SPEC",COMP!$C$107,"no data"))) -> [select] | F12: =$F$9 -> AAMC | G12: =$G$9 -> Academic | H12: =$H$9 -> All | I12: =IF($F12="AAMC",COMP!$G$32,IF($F12="MGMA",COMP!$G$35,IF($F12="SPEC",COMP!$C$97,"no data"))) -> [select] | J12: Test | L12: Assistant | R12: 0 | T12: =SUM(N12:S12) -> 0 | V12: 0 | Y12: =SUM(V12:X12) -> 0 | Z12: =IF(T12=0,0,Y12/T12) -> 0 | AA12: =IF($F12="SPEC",VLOOKUP($H12,COMP!$B$87:$G$93,2,FALSE)/1000,IFERROR(VLOOKUP($F12&$G12&$H12&$L12&COMP!$G$33&$I12&"L",'COMP BCHMK'!$A$3:$W$4000,10,FALSE)/1000,"no data")) -> no data | AB12: =IF($F12="SPEC",VLOOKUP($H12,COMP!$B$87:$G$93,4,FALSE)/1000,IFERROR(VLOOKUP($F12&$G12&$H12&$L12&COMP!$G$33&$I12&"L",'COMP BCHMK'!$A$3:$W$4000,15,FALSE)/1000,"no data")) -> no data | AC12: =IF($F12="SPEC",VLOOKUP($H12,COMP!$B$87:$G$93,6,FALSE)/1000,IFERROR(VLOOKUP($F12&$G12&$H12&$L12&COMP!$G$33&$I12&"L",'COMP BCHMK'!$A$3:$W$4000,20,FALSE)/1000,"no data")) -> no data | AE12: =IF($J12=0,0,IF($B12="SPEC",COMP!$E$98,IFERROR(VLOOKUP($B12&$C12&$D12&$E12&"L",'RVU BCHMK'!$A$3:$W$4000,13,FALSE),"no data"))) -> no data | AG12: =AE12*R12 ->  | AI12: =AH12-AG12 ->  | AJ12: =IF(J12>0,IF(L12=0,1,0),0) -> 0 | AK12: =IF(J12>0,IF(T12=0,1,0),0) -> 1 | AL12: =IF(J12>0,IF(Y12=0,1,0),0) -> 1 | AM12: =IF($L$9=L12,1,0) -> 0
A13: =IF(J13>0,1,0) -> 1 | B13: =$B$9 -> FPSC | C13: =$C$9 -> Academic | D13: =$D$9 -> All | E13: =IF($B13="MGMA",COMP!$G$35,IF($B13="FPSC",COMP!$G$34,IF($B13="SPEC",COMP!$C$107,"no data"))) -> [select] | F13: =$F$9 -> AAMC | G13: =$G$9 -> Academic | H13: =$H$9 -> All | I13: =IF($F13="AAMC",COMP!$G$32,IF($F13="MGMA",COMP!$G$35,IF($F13="SPEC",COMP!$C$97,"no data"))) -> [select] | J13: Test | L13: Assistant | R13: 0 | T13: =SUM(N13:S13) -> 0 | V13: 0 | Y13: =SUM(V13:X13) -> 0 | Z13: 0 | AA13: =IF($F13="SPEC",VLOOKUP($H13,COMP!$B$87:$G$93,2,FALSE)/1000,IFERROR(VLOOKUP($F13&$G13&$H13&$L13&COMP!$G$33&$I13&"L",'COMP BCHMK'!$A$3:$W$4000,10,FALSE)/1000,"no data")) -> no data | AB13: =IF($F13="SPEC",VLOOKUP($H13,COMP!$B$87:$G$93,4,FALSE)/1000,IFERROR(VLOOKUP($F13&$G13&$H13&$L13&COMP!$G$33&$I13&"L",'COMP BCHMK'!$A$3:$W$4000,15,FALSE)/1000,"no data")) -> no data | AC13: =IF($F13="SPEC",VLOOKUP($H13,COMP!$B$87:$G$93,6,FALSE)/1000,IFERROR(VLOOKUP($F13&$G13&$H13&$L13&COMP!$G$33&$I13&"L",'COMP BCHMK'!$A$3:$W$4000,20,FALSE)/1000,"no data")) -> no data | AE13: =IF($J13=0,0,IF($B13="SPEC",COMP!$E$98,IFERROR(VLOOKUP($B13&$C13&$D13&$E13&"L",'RVU BCHMK'!$A$3:$W$4000,13,FALSE),"no data"))) -> no data | AG13: =AE13*R13 ->  | AI13: =AH13-AG13 ->  | AJ13: 0 | AK13: 1 | AL13: 1 | AM13: =IF($L$9=L13,1,0) -> 0
A14: =IF(J14>0,1,0) -> 1 | B14: FPSC | C14: Academic | D14: All | E14: =IF($B14="MGMA",COMP!$G$35,IF($B14="FPSC",COMP!$G$34,IF($B14="SPEC",COMP!$C$107,"no data"))) -> [select] | F14: AAMC | G14: Academic | H14: All | I14: =IF($F14="AAMC",COMP!$G$32,IF($F14="MGMA",COMP!$G$35,IF($F14="SPEC",COMP!$C$97,"no data"))) -> [select] | J14: Test | L14: Associate | T14: 0 | Y14: 0 | Z14: 0 | AA14: =IF($F14="SPEC",VLOOKUP($H14,COMP!$B$87:$G$93,2,FALSE)/1000,IFERROR(VLOOKUP($F14&$G14&$H14&$L14&COMP!$G$33&$I14&"L",'COMP BCHMK'!$A$3:$W$4000,10,FALSE)/1000,"no data")) -> no data | AB14: =IF($F14="SPEC",VLOOKUP($H14,COMP!$B$87:$G$93,4,FALSE)/1000,IFERROR(VLOOKUP($F14&$G14&$H14&$L14&COMP!$G$33&$I14&"L",'COMP BCHMK'!$A$3:$W$4000,15,FALSE)/1000,"no data")) -> no data | AC14: =IF($F14="SPEC",VLOOKUP($H14,COMP!$B$87:$G$93,6,FALSE)/1000,IFERROR(VLOOKUP($F14&$G14&$H14&$L14&COMP!$G$33&$I14&"L",'COMP BCHMK'!$A$3:$W$4000,20,FALSE)/1000,"no data")) -> no data | AE14: =IF($J14=0,0,IF($B14="SPEC",COMP!$E$98,IFERROR(VLOOKUP($B14&$C14&$D14&$E14&"L",'RVU BCHMK'!$A$3:$W$4000,13,FALSE),"no data"))) -> no data | AJ14: 0 | AK14: 1 | AL14: 1 | AM14: 0
A15: 1 | B15: FPSC | C15: Academic | D15: All | E15: =IF($B15="MGMA",COMP!$G$35,IF($B15="FPSC",COMP!$G$34,IF($B15="SPEC",COMP!$C$107,"no data"))) -> [select] | F15: AAMC | G15: Academic | H15: All | I15: =IF($F15="AAMC",COMP!$G$32,IF($F15="MGMA",COMP!$G$35,IF($F15="SPEC",COMP!$C$97,"no data"))) -> [select] | J15: Test | L15: Professor | T15: 0 | Y15: 0 | Z15: 0 | AA15: =IF($F15="SPEC",VLOOKUP($H15,COMP!$B$87:$G$93,2,FALSE)/1000,IFERROR(VLOOKUP($F15&$G15&$H15&$L15&COMP!$G$33&$I15&"L",'COMP BCHMK'!$A$3:$W$4000,10,FALSE)/1000,"no data")) -> no data | AB15: =IF($F15="SPEC",VLOOKUP($H15,COMP!$B$87:$G$93,4,FALSE)/1000,IFERROR(VLOOKUP($F15&$G15&$H15&$L15&COMP!$G$33&$I15&"L",'COMP BCHMK'!$A$3:$W$4000,15,FALSE)/1000,"no data")) -> no data | AC15: =IF($F15="SPEC",VLOOKUP($H15,COMP!$B$87:$G$93,6,FALSE)/1000,IFERROR(VLOOKUP($F15&$G15&$H15&$L15&COMP!$G$33&$I15&"L",'COMP BCHMK'!$A$3:$W$4000,20,FALSE)/1000,"no data")) -> no data | AE15: =IF($J15=0,0,IF($B15="SPEC",COMP!$E$98,IFERROR(VLOOKUP($B15&$C15&$D15&$E15&"L",'RVU BCHMK'!$A$3:$W$4000,13,FALSE),"no data"))) -> no data | AJ15: 0 | AK15: 1 | AL15: 1 | AM15: 0
A16: 1 | B16: FPSC | C16: Academic | D16: All | E16: =IF($B16="MGMA",COMP!$G$35,IF($B16="FPSC",COMP!$G$34,IF($B16="SPEC",COMP!$C$107,"no data"))) -> [select] | F16: AAMC | G16: Academic | H16: All | I16: =IF($F16="AAMC",COMP!$G$32,IF($F16="MGMA",COMP!$G$35,IF($F16="SPEC",COMP!$C$97,"no data"))) -> [select] | J16: Test | T16: 0 | Y16: 0 | Z16: 0 | AA16: =IF($F16="SPEC",VLOOKUP($H16,COMP!$B$87:$G$93,2,FALSE)/1000,IFERROR(VLOOKUP($F16&$G16&$H16&$L16&COMP!$G$33&$I16&"L",'COMP BCHMK'!$A$3:$W$4000,10,FALSE)/1000,"no data")) -> no data | AB16: =IF($F16="SPEC",VLOOKUP($H16,COMP!$B$87:$G$93,4,FALSE)/1000,IFERROR(VLOOKUP($F16&$G16&$H16&$L16&COMP!$G$33&$I16&"L",'COMP BCHMK'!$A$3:$W$4000,15,FALSE)/1000,"no data")) -> no data | AC16: =IF($F16="SPEC",VLOOKUP($H16,COMP!$B$87:$G$93,6,FALSE)/1000,IFERROR(VLOOKUP($F16&$G16&$H16&$L16&COMP!$G$33&$I16&"L",'COMP BCHMK'!$A$3:$W$4000,20,FALSE)/1000,"no data")) -> no data | AE16: =IF($J16=0,0,IF($B16="SPEC",COMP!$E$98,IFERROR(VLOOKUP($B16&$C16&$D16&$E16&"L",'RVU BCHMK'!$A$3:$W$4000,13,FALSE),"no data"))) -> no data | AJ16: 1 | AK16: 1 | AL16: 1 | AM16: 0
A17: 1 | B17: FPSC | C17: Academic | D17: All | E17: =IF($B17="MGMA",COMP!$G$35,IF($B17="FPSC",COMP!$G$34,IF($B17="SPEC",COMP!$C$107,"no data"))) -> [select] | F17: AAMC | G17: Academic | H17: All | I17: =IF($F17="AAMC",COMP!$G$32,IF($F17="MGMA",COMP!$G$35,IF($F17="SPEC",COMP!$C$97,"no data"))) -> [select] | J17: Test | T17: 0 | Y17: 0 | Z17: 0 | AA17: =IF($F17="SPEC",VLOOKUP($H17,COMP!$B$87:$G$93,2,FALSE)/1000,IFERROR(VLOOKUP($F17&$G17&$H17&$L17&COMP!$G$33&$I17&"L",'COMP BCHMK'!$A$3:$W$4000,10,FALSE)/1000,"no data")) -> no data | AB17: =IF($F17="SPEC",VLOOKUP($H17,COMP!$B$87:$G$93,4,FALSE)/1000,IFERROR(VLOOKUP($F17&$G17&$H17&$L17&COMP!$G$33&$I17&"L",'COMP BCHMK'!$A$3:$W$4000,15,FALSE)/1000,"no data")) -> no data | AC17: =IF($F17="SPEC",VLOOKUP($H17,COMP!$B$87:$G$93,6,FALSE)/1000,IFERROR(VLOOKUP($F17&$G17&$H17&$L17&COMP!$G$33&$I17&"L",'COMP BCHMK'!$A$3:$W$4000,20,FALSE)/1000,"no data")) -> no data | AE17: =IF($J17=0,0,IF($B17="SPEC",COMP!$E$98,IFERROR(VLOOKUP($B17&$C17&$D17&$E17&"L",'RVU BCHMK'!$A$3:$W$4000,13,FALSE),"no data"))) -> no data | AJ17: 1 | AK17: 1 | AL17: 1 | AM17: 0
A18: 1 | B18: FPSC | C18: Academic | D18: All | E18: =IF($B18="MGMA",COMP!$G$35,IF($B18="FPSC",COMP!$G$34,IF($B18="SPEC",COMP!$C$107,"no data"))) -> [select] | F18: AAMC | G18: Academic | H18: All | I18: =IF($F18="AAMC",COMP!$G$32,IF($F18="MGMA",COMP!$G$35,IF($F18="SPEC",COMP!$C$97,"no data"))) -> [select] | J18: Test | T18: 0 | Y18: 0 | Z18: 0 | AA18: =IF($F18="SPEC",VLOOKUP($H18,COMP!$B$87:$G$93,2,FALSE)/1000,IFERROR(VLOOKUP($F18&$G18&$H18&$L18&COMP!$G$33&$I18&"L",'COMP BCHMK'!$A$3:$W$4000,10,FALSE)/1000,"no data")) -> no data | AB18: =IF($F18="SPEC",VLOOKUP($H18,COMP!$B$87:$G$93,4,FALSE)/1000,IFERROR(VLOOKUP($F18&$G18&$H18&$L18&COMP!$G$33&$I18&"L",'COMP BCHMK'!$A$3:$W$4000,15,FALSE)/1000,"no data")) -> no data | AC18: =IF($F18="SPEC",VLOOKUP($H18,COMP!$B$87:$G$93,6,FALSE)/1000,IFERROR(VLOOKUP($F18&$G18&$H18&$L18&COMP!$G$33&$I18&"L",'COMP BCHMK'!$A$3:$W$4000,20,FALSE)/1000,"no data")) -> no data | AE18: =IF($J18=0,0,IF($B18="SPEC",COMP!$E$98,IFERROR(VLOOKUP($B18&$C18&$D18&$E18&"L",'RVU BCHMK'!$A$3:$W$4000,13,FALSE),"no data"))) -> no data | AJ18: 1 | AK18: 1 | AL18: 1 | AM18: 0
A19: 1 | B19: FPSC | C19: Academic | D19: All | E19: =IF($B19="MGMA",COMP!$G$35,IF($B19="FPSC",COMP!$G$34,IF($B19="SPEC",COMP!$C$107,"no data"))) -> [select] | F19: AAMC | G19: Academic | H19: All | I19: =IF($F19="AAMC",COMP!$G$32,IF($F19="MGMA",COMP!$G$35,IF($F19="SPEC",COMP!$C$97,"no data"))) -> [select] | J19: Test | T19: 0 | Y19: 0 | Z19: 0 | AA19: =IF($F19="SPEC",VLOOKUP($H19,COMP!$B$87:$G$93,2,FALSE)/1000,IFERROR(VLOOKUP($F19&$G19&$H19&$L19&COMP!$G$33&$I19&"L",'COMP BCHMK'!$A$3:$W$4000,10,FALSE)/1000,"no data")) -> no data | AB19: =IF($F19="SPEC",VLOOKUP($H19,COMP!$B$87:$G$93,4,FALSE)/1000,IFERROR(VLOOKUP($F19&$G19&$H19&$L19&COMP!$G$33&$I19&"L",'COMP BCHMK'!$A$3:$W$4000,15,FALSE)/1000,"no data")) -> no data | AC19: =IF($F19="SPEC",VLOOKUP($H19,COMP!$B$87:$G$93,6,FALSE)/1000,IFERROR(VLOOKUP($F19&$G19&$H19&$L19&COMP!$G$33&$I19&"L",'COMP BCHMK'!$A$3:$W$4000,20,FALSE)/1000,"no data")) -> no data | AE19: =IF($J19=0,0,IF($B19="SPEC",COMP!$E$98,IFERROR(VLOOKUP($B19&$C19&$D19&$E19&"L",'RVU BCHMK'!$A$3:$W$4000,13,FALSE),"no data"))) -> no data | AJ19: 1 | AK19: 1 | AL19: 1 | AM19: 0
A20: 1 | B20: FPSC | C20: Academic | D20: All | E20: =IF($B20="MGMA",COMP!$G$35,IF($B20="FPSC",COMP!$G$34,IF($B20="SPEC",COMP!$C$107,"no data"))) -> [select] | F20: AAMC | G20: Academic | H20: All | I20: =IF($F20="AAMC",COMP!$G$32,IF($F20="MGMA",COMP!$G$35,IF($F20="SPEC",COMP!$C$97,"no data"))) -> [select] | J20: Test | T20: 0 | Y20: 0 | Z20: 0 | AA20: =IF($F20="SPEC",VLOOKUP($H20,COMP!$B$87:$G$93,2,FALSE)/1000,IFERROR(VLOOKUP($F20&$G20&$H20&$L20&COMP!$G$33&$I20&"L",'COMP BCHMK'!$A$3:$W$4000,10,FALSE)/1000,"no data")) -> no data | AB20: =IF($F20="SPEC",VLOOKUP($H20,COMP!$B$87:$G$93,4,FALSE)/1000,IFERROR(VLOOKUP($F20&$G20&$H20&$L20&COMP!$G$33&$I20&"L",'COMP BCHMK'!$A$3:$W$4000,15,FALSE)/1000,"no data")) -> no data | AC20: =IF($F20="SPEC",VLOOKUP($H20,COMP!$B$87:$G$93,6,FALSE)/1000,IFERROR(VLOOKUP($F20&$G20&$H20&$L20&COMP!$G$33&$I20&"L",'COMP BCHMK'!$A$3:$W$4000,20,FALSE)/1000,"no data")) -> no data | AE20: =IF($J20=0,0,IF($B20="SPEC",COMP!$E$98,IFERROR(VLOOKUP($B20&$C20&$D20&$E20&"L",'RVU BCHMK'!$A$3:$W$4000,13,FALSE),"no data"))) -> no data | AJ20: 1 | AK20: 1 | AL20: 1 | AM20: 0
A21: 1 | B21: FPSC | C21: Academic | D21: All | E21: =IF($B21="MGMA",COMP!$G$35,IF($B21="FPSC",COMP!$G$34,IF($B21="SPEC",COMP!$C$107,"no data"))) -> [select] | F21: AAMC | G21: Academic | H21: All | I21: =IF($F21="AAMC",COMP!$G$32,IF($F21="MGMA",COMP!$G$35,IF($F21="SPEC",COMP!$C$97,"no data"))) -> [select] | J21: Test | T21: 0 | Y21: 0 | Z21: 0 | AA21: =IF($F21="SPEC",VLOOKUP($H21,COMP!$B$87:$G$93,2,FALSE)/1000,IFERROR(VLOOKUP($F21&$G21&$H21&$L21&COMP!$G$33&$I21&"L",'COMP BCHMK'!$A$3:$W$4000,10,FALSE)/1000,"no data")) -> no data | AB21: =IF($F21="SPEC",VLOOKUP($H21,COMP!$B$87:$G$93,4,FALSE)/1000,IFERROR(VLOOKUP($F21&$G21&$H21&$L21&COMP!$G$33&$I21&"L",'COMP BCHMK'!$A$3:$W$4000,15,FALSE)/1000,"no data")) -> no data | AC21: =IF($F21="SPEC",VLOOKUP($H21,COMP!$B$87:$G$93,6,FALSE)/1000,IFERROR(VLOOKUP($F21&$G21&$H21&$L21&COMP!$G$33&$I21&"L",'COMP BCHMK'!$A$3:$W$4000,20,FALSE)/1000,"no data")) -> no data | AE21: =IF($J21=0,0,IF($B21="SPEC",COMP!$E$98,IFERROR(VLOOKUP($B21&$C21&$D21&$E21&"L",'RVU BCHMK'!$A$3:$W$4000,13,FALSE),"no data"))) -> no data | AJ21: 1 | AK21: 1 | AL21: 1 | AM21: 0
A22: 1 | B22: FPSC | C22: Academic | D22: All | E22: =IF($B22="MGMA",COMP!$G$35,IF($B22="FPSC",COMP!$G$34,IF($B22="SPEC",COMP!$C$107,"no data"))) -> [select] | F22: AAMC | G22: Academic | H22: All | I22: =IF($F22="AAMC",COMP!$G$32,IF($F22="MGMA",COMP!$G$35,IF($F22="SPEC",COMP!$C$97,"no data"))) -> [select] | J22: Test | T22: 0 | Y22: 0 | Z22: 0 | AA22: =IF($F22="SPEC",VLOOKUP($H22,COMP!$B$87:$G$93,2,FALSE)/1000,IFERROR(VLOOKUP($F22&$G22&$H22&$L22&COMP!$G$33&$I22&"L",'COMP BCHMK'!$A$3:$W$4000,10,FALSE)/1000,"no data")) -> no data | AB22: =IF($F22="SPEC",VLOOKUP($H22,COMP!$B$87:$G$93,4,FALSE)/1000,IFERROR(VLOOKUP($F22&$G22&$H22&$L22&COMP!$G$33&$I22&"L",'COMP BCHMK'!$A$3:$W$4000,15,FALSE)/1000,"no data")) -> no data | AC22: =IF($F22="SPEC",VLOOKUP($H22,COMP!$B$87:$G$93,6,FALSE)/1000,IFERROR(VLOOKUP($F22&$G22&$H22&$L22&COMP!$G$33&$I22&"L",'COMP BCHMK'!$A$3:$W$4000,20,FALSE)/1000,"no data")) -> no data | AE22: =IF($J22=0,0,IF($B22="SPEC",COMP!$E$98,IFERROR(VLOOKUP($B22&$C22&$D22&$E22&"L",'RVU BCHMK'!$A$3:$W$4000,13,FALSE),"no data"))) -> no data | AJ22: 1 | AK22: 1 | AL22: 1 | AM22: 0
A23: 1 | B23: FPSC | C23: Academic | D23: All | E23: =IF($B23="MGMA",COMP!$G$35,IF($B23="FPSC",COMP!$G$34,IF($B23="SPEC",COMP!$C$107,"no data"))) -> [select] | F23: AAMC | G23: Academic | H23: All | I23: =IF($F23="AAMC",COMP!$G$32,IF($F23="MGMA",COMP!$G$35,IF($F23="SPEC",COMP!$C$97,"no data"))) -> [select] | J23: Test | T23: 0 | Y23: 0 | Z23: 0 | AA23: =IF($F23="SPEC",VLOOKUP($H23,COMP!$B$87:$G$93,2,FALSE)/1000,IFERROR(VLOOKUP($F23&$G23&$H23&$L23&COMP!$G$33&$I23&"L",'COMP BCHMK'!$A$3:$W$4000,10,FALSE)/1000,"no data")) -> no data | AB23: =IF($F23="SPEC",VLOOKUP($H23,COMP!$B$87:$G$93,4,FALSE)/1000,IFERROR(VLOOKUP($F23&$G23&$H23&$L23&COMP!$G$33&$I23&"L",'COMP BCHMK'!$A$3:$W$4000,15,FALSE)/1000,"no data")) -> no data | AC23: =IF($F23="SPEC",VLOOKUP($H23,COMP!$B$87:$G$93,6,FALSE)/1000,IFERROR(VLOOKUP($F23&$G23&$H23&$L23&COMP!$G$33&$I23&"L",'COMP BCHMK'!$A$3:$W$4000,20,FALSE)/1000,"no data")) -> no data | AE23: =IF($J23=0,0,IF($B23="SPEC",COMP!$E$98,IFERROR(VLOOKUP($B23&$C23&$D23&$E23&"L",'RVU BCHMK'!$A$3:$W$4000,13,FALSE),"no data"))) -> no data | AJ23: 1 | AK23: 1 | AL23: 1 | AM23: 0
A24: 1 | B24: FPSC | C24: Academic | D24: All | E24: =IF($B24="MGMA",COMP!$G$35,IF($B24="FPSC",COMP!$G$34,IF($B24="SPEC",COMP!$C$107,"no data"))) -> [select] | F24: AAMC | G24: Academic | H24: All | I24: =IF($F24="AAMC",COMP!$G$32,IF($F24="MGMA",COMP!$G$35,IF($F24="SPEC",COMP!$C$97,"no data"))) -> [select] | J24: Test | T24: 0 | Y24: 0 | Z24: 0 | AA24: =IF($F24="SPEC",VLOOKUP($H24,COMP!$B$87:$G$93,2,FALSE)/1000,IFERROR(VLOOKUP($F24&$G24&$H24&$L24&COMP!$G$33&$I24&"L",'COMP BCHMK'!$A$3:$W$4000,10,FALSE)/1000,"no data")) -> no data | AB24: =IF($F24="SPEC",VLOOKUP($H24,COMP!$B$87:$G$93,4,FALSE)/1000,IFERROR(VLOOKUP($F24&$G24&$H24&$L24&COMP!$G$33&$I24&"L",'COMP BCHMK'!$A$3:$W$4000,15,FALSE)/1000,"no data")) -> no data | AC24: =IF($F24="SPEC",VLOOKUP($H24,COMP!$B$87:$G$93,6,FALSE)/1000,IFERROR(VLOOKUP($F24&$G24&$H24&$L24&COMP!$G$33&$I24&"L",'COMP BCHMK'!$A$3:$W$4000,20,FALSE)/1000,"no data")) -> no data | AE24: =IF($J24=0,0,IF($B24="SPEC",COMP!$E$98,IFERROR(VLOOKUP($B24&$C24&$D24&$E24&"L",'RVU BCHMK'!$A$3:$W$4000,13,FALSE),"no data"))) -> no data | AJ24: 1 | AK24: 1 | AL24: 1 | AM24: 0
A25: 1 | B25: FPSC | C25: Academic | D25: All | E25: =IF($B25="MGMA",COMP!$G$35,IF($B25="FPSC",COMP!$G$34,IF($B25="SPEC",COMP!$C$107,"no data"))) -> [select] | F25: AAMC | G25: Academic | H25: All | I25: =IF($F25="AAMC",COMP!$G$32,IF($F25="MGMA",COMP!$G$35,IF($F25="SPEC",COMP!$C$97,"no data"))) -> [select] | J25: Test | T25: 0 | Y25: 0 | Z25: 0 | AA25: =IF($F25="SPEC",VLOOKUP($H25,COMP!$B$87:$G$93,2,FALSE)/1000,IFERROR(VLOOKUP($F25&$G25&$H25&$L25&COMP!$G$33&$I25&"L",'COMP BCHMK'!$A$3:$W$4000,10,FALSE)/1000,"no data")) -> no data | AB25: =IF($F25="SPEC",VLOOKUP($H25,COMP!$B$87:$G$93,4,FALSE)/1000,IFERROR(VLOOKUP($F25&$G25&$H25&$L25&COMP!$G$33&$I25&"L",'COMP BCHMK'!$A$3:$W$4000,15,FALSE)/1000,"no data")) -> no data | AC25: =IF($F25="SPEC",VLOOKUP($H25,COMP!$B$87:$G$93,6,FALSE)/1000,IFERROR(VLOOKUP($F25&$G25&$H25&$L25&COMP!$G$33&$I25&"L",'COMP BCHMK'!$A$3:$W$4000,20,FALSE)/1000,"no data")) -> no data | AE25: =IF($J25=0,0,IF($B25="SPEC",COMP!$E$98,IFERROR(VLOOKUP($B25&$C25&$D25&$E25&"L",'RVU BCHMK'!$A$3:$W$4000,13,FALSE),"no data"))) -> no data | AJ25: 1 | AK25: 1 | AL25: 1 | AM25: 0
A26: 1 | B26: FPSC | C26: Academic | D26: All | E26: =IF($B26="MGMA",COMP!$G$35,IF($B26="FPSC",COMP!$G$34,IF($B26="SPEC",COMP!$C$107,"no data"))) -> [select] | F26: AAMC | G26: Academic | H26: All | I26: =IF($F26="AAMC",COMP!$G$32,IF($F26="MGMA",COMP!$G$35,IF($F26="SPEC",COMP!$C$97,"no data"))) -> [select] | J26: Test | T26: 0 | Y26: 0 | Z26: 0 | AA26: =IF($F26="SPEC",VLOOKUP($H26,COMP!$B$87:$G$93,2,FALSE)/1000,IFERROR(VLOOKUP($F26&$G26&$H26&$L26&COMP!$G$33&$I26&"L",'COMP BCHMK'!$A$3:$W$4000,10,FALSE)/1000,"no data")) -> no data | AB26: =IF($F26="SPEC",VLOOKUP($H26,COMP!$B$87:$G$93,4,FALSE)/1000,IFERROR(VLOOKUP($F26&$G26&$H26&$L26&COMP!$G$33&$I26&"L",'COMP BCHMK'!$A$3:$W$4000,15,FALSE)/1000,"no data")) -> no data | AC26: =IF($F26="SPEC",VLOOKUP($H26,COMP!$B$87:$G$93,6,FALSE)/1000,IFERROR(VLOOKUP($F26&$G26&$H26&$L26&COMP!$G$33&$I26&"L",'COMP BCHMK'!$A$3:$W$4000,20,FALSE)/1000,"no data")) -> no data | AE26: =IF($J26=0,0,IF($B26="SPEC",COMP!$E$98,IFERROR(VLOOKUP($B26&$C26&$D26&$E26&"L",'RVU BCHMK'!$A$3:$W$4000,13,FALSE),"no data"))) -> no data | AJ26: 1 | AK26: 1 | AL26: 1 | AM26: 0
A27: 1 | B27: FPSC | C27: Academic | D27: All | E27: =IF($B27="MGMA",COMP!$G$35,IF($B27="FPSC",COMP!$G$34,IF($B27="SPEC",COMP!$C$107,"no data"))) -> [select] | F27: AAMC | G27: Academic | H27: All | I27: =IF($F27="AAMC",COMP!$G$32,IF($F27="MGMA",COMP!$G$35,IF($F27="SPEC",COMP!$C$97,"no data"))) -> [select] | J27: Test | T27: 0 | Y27: 0 | Z27: 0 | AA27: =IF($F27="SPEC",VLOOKUP($H27,COMP!$B$87:$G$93,2,FALSE)/1000,IFERROR(VLOOKUP($F27&$G27&$H27&$L27&COMP!$G$33&$I27&"L",'COMP BCHMK'!$A$3:$W$4000,10,FALSE)/1000,"no data")) -> no data | AB27: =IF($F27="SPEC",VLOOKUP($H27,COMP!$B$87:$G$93,4,FALSE)/1000,IFERROR(VLOOKUP($F27&$G27&$H27&$L27&COMP!$G$33&$I27&"L",'COMP BCHMK'!$A$3:$W$4000,15,FALSE)/1000,"no data")) -> no data | AC27: =IF($F27="SPEC",VLOOKUP($H27,COMP!$B$87:$G$93,6,FALSE)/1000,IFERROR(VLOOKUP($F27&$G27&$H27&$L27&COMP!$G$33&$I27&"L",'COMP BCHMK'!$A$3:$W$4000,20,FALSE)/1000,"no data")) -> no data | AE27: =IF($J27=0,0,IF($B27="SPEC",COMP!$E$98,IFERROR(VLOOKUP($B27&$C27&$D27&$E27&"L",'RVU BCHMK'!$A$3:$W$4000,13,FALSE),"no data"))) -> no data | AJ27: 1 | AK27: 1 | AL27: 1 | AM27: 0
A28: 1 | B28: FPSC | C28: Academic | D28: All | E28: =IF($B28="MGMA",COMP!$G$35,IF($B28="FPSC",COMP!$G$34,IF($B28="SPEC",COMP!$C$107,"no data"))) -> [select] | F28: AAMC | G28: Academic | H28: All | I28: =IF($F28="AAMC",COMP!$G$32,IF($F28="MGMA",COMP!$G$35,IF($F28="SPEC",COMP!$C$97,"no data"))) -> [select] | J28: Test | T28: 0 | Y28: 0 | Z28: 0 | AA28: =IF($F28="SPEC",VLOOKUP($H28,COMP!$B$87:$G$93,2,FALSE)/1000,IFERROR(VLOOKUP($F28&$G28&$H28&$L28&COMP!$G$33&$I28&"L",'COMP BCHMK'!$A$3:$W$4000,10,FALSE)/1000,"no data")) -> no data | AB28: =IF($F28="SPEC",VLOOKUP($H28,COMP!$B$87:$G$93,4,FALSE)/1000,IFERROR(VLOOKUP($F28&$G28&$H28&$L28&COMP!$G$33&$I28&"L",'COMP BCHMK'!$A$3:$W$4000,15,FALSE)/1000,"no data")) -> no data | AC28: =IF($F28="SPEC",VLOOKUP($H28,COMP!$B$87:$G$93,6,FALSE)/1000,IFERROR(VLOOKUP($F28&$G28&$H28&$L28&COMP!$G$33&$I28&"L",'COMP BCHMK'!$A$3:$W$4000,20,FALSE)/1000,"no data")) -> no data | AE28: =IF($J28=0,0,IF($B28="SPEC",COMP!$E$98,IFERROR(VLOOKUP($B28&$C28&$D28&$E28&"L",'RVU BCHMK'!$A$3:$W$4000,13,FALSE),"no data"))) -> no data | AJ28: 1 | AK28: 1 | AL28: 1 | AM28: 0
A29: 0 | B29: FPSC | C29: Academic | D29: All | E29: =IF($B29="MGMA",COMP!$G$35,IF($B29="FPSC",COMP!$G$34,IF($B29="SPEC",COMP!$C$107,"no data"))) -> [select] | F29: AAMC | G29: Academic | H29: All | I29: =IF($F29="AAMC",COMP!$G$32,IF($F29="MGMA",COMP!$G$35,IF($F29="SPEC",COMP!$C$97,"no data"))) -> [select] | T29: 0 | Y29: 0 | Z29: 0 | AA29: =IF($F29="SPEC",VLOOKUP($H29,COMP!$B$87:$G$93,2,FALSE)/1000,IFERROR(VLOOKUP($F29&$G29&$H29&$L29&COMP!$G$33&$I29&"L",'COMP BCHMK'!$A$3:$W$4000,10,FALSE)/1000,"no data")) -> no data | AB29: =IF($F29="SPEC",VLOOKUP($H29,COMP!$B$87:$G$93,4,FALSE)/1000,IFERROR(VLOOKUP($F29&$G29&$H29&$L29&COMP!$G$33&$I29&"L",'COMP BCHMK'!$A$3:$W$4000,15,FALSE)/1000,"no data")) -> no data | AC29: =IF($F29="SPEC",VLOOKUP($H29,COMP!$B$87:$G$93,6,FALSE)/1000,IFERROR(VLOOKUP($F29&$G29&$H29&$L29&COMP!$G$33&$I29&"L",'COMP BCHMK'!$A$3:$W$4000,20,FALSE)/1000,"no data")) -> no data | AE29: =IF($J29=0,0,IF($B29="SPEC",COMP!$E$98,IFERROR(VLOOKUP($B29&$C29&$D29&$E29&"L",'RVU BCHMK'!$A$3:$W$4000,13,FALSE),"no data"))) -> 0 | AG29: 0 | AI29: 0 | AJ29: 0 | AK29: 0 | AL29: 0 | AM29: 0
A30: 0 | B30: FPSC | C30: Academic | D30: All | E30: =IF($B30="MGMA",COMP!$G$35,IF($B30="FPSC",COMP!$G$34,IF($B30="SPEC",COMP!$C$107,"no data"))) -> [select] | F30: AAMC | G30: Academic | H30: All | I30: =IF($F30="AAMC",COMP!$G$32,IF($F30="MGMA",COMP!$G$35,IF($F30="SPEC",COMP!$C$97,"no data"))) -> [select] | T30: 0 | Y30: 0 | Z30: 0 | AA30: =IF($F30="SPEC",VLOOKUP($H30,COMP!$B$87:$G$93,2,FALSE)/1000,IFERROR(VLOOKUP($F30&$G30&$H30&$L30&COMP!$G$33&$I30&"L",'COMP BCHMK'!$A$3:$W$4000,10,FALSE)/1000,"no data")) -> no data | AB30: =IF($F30="SPEC",VLOOKUP($H30,COMP!$B$87:$G$93,4,FALSE)/1000,IFERROR(VLOOKUP($F30&$G30&$H30&$L30&COMP!$G$33&$I30&"L",'COMP BCHMK'!$A$3:$W$4000,15,FALSE)/1000,"no data")) -> no data | AC30: =IF($F30="SPEC",VLOOKUP($H30,COMP!$B$87:$G$93,6,FALSE)/1000,IFERROR(VLOOKUP($F30&$G30&$H30&$L30&COMP!$G$33&$I30&"L",'COMP BCHMK'!$A$3:$W$4000,20,FALSE)/1000,"no data")) -> no data | AE30: =IF($J30=0,0,IF($B30="SPEC",COMP!$E$98,IFERROR(VLOOKUP($B30&$C30&$D30&$E30&"L",'RVU BCHMK'!$A$3:$W$4000,13,FALSE),"no data"))) -> 0 | AG30: 0 | AI30: 0 | AJ30: 0 | AK30: 0 | AL30: 0 | AM30: 0
A31: 0 | B31: FPSC | C31: Academic | D31: All | E31: =IF($B31="MGMA",COMP!$G$35,IF($B31="FPSC",COMP!$G$34,IF($B31="SPEC",COMP!$C$107,"no data"))) -> [select] | F31: AAMC | G31: Academic | H31: All | I31: =IF($F31="AAMC",COMP!$G$32,IF($F31="MGMA",COMP!$G$35,IF($F31="SPEC",COMP!$C$97,"no data"))) -> [select] | T31: 0 | Y31: 0 | Z31: 0 | AA31: =IF($F31="SPEC",VLOOKUP($H31,COMP!$B$87:$G$93,2,FALSE)/1000,IFERROR(VLOOKUP($F31&$G31&$H31&$L31&COMP!$G$33&$I31&"L",'COMP BCHMK'!$A$3:$W$4000,10,FALSE)/1000,"no data")) -> no data | AB31: =IF($F31="SPEC",VLOOKUP($H31,COMP!$B$87:$G$93,4,FALSE)/1000,IFERROR(VLOOKUP($F31&$G31&$H31&$L31&COMP!$G$33&$I31&"L",'COMP BCHMK'!$A$3:$W$4000,15,FALSE)/1000,"no data")) -> no data | AC31: =IF($F31="SPEC",VLOOKUP($H31,COMP!$B$87:$G$93,6,FALSE)/1000,IFERROR(VLOOKUP($F31&$G31&$H31&$L31&COMP!$G$33&$I31&"L",'COMP BCHMK'!$A$3:$W$4000,20,FALSE)/1000,"no data")) -> no data | AE31: =IF($J31=0,0,IF($B31="SPEC",COMP!$E$98,IFERROR(VLOOKUP($B31&$C31&$D31&$E31&"L",'RVU BCHMK'!$A$3:$W$4000,13,FALSE),"no data"))) -> 0 | AG31: 0 | AI31: 0 | AJ31: 0 | AK31: 0 | AL31: 0 | AM31: 0
A32: 0 | B32: FPSC | C32: Academic | D32: All | E32: =IF($B32="MGMA",COMP!$G$35,IF($B32="FPSC",COMP!$G$34,IF($B32="SPEC",COMP!$C$107,"no data"))) -> [select] | F32: AAMC | G32: Academic | H32: All | I32: =IF($F32="AAMC",COMP!$G$32,IF($F32="MGMA",COMP!$G$35,IF($F32="SPEC",COMP!$C$97,"no data"))) -> [select] | T32: 0 | Y32: 0 | Z32: 0 | AA32: =IF($F32="SPEC",VLOOKUP($H32,COMP!$B$87:$G$93,2,FALSE)/1000,IFERROR(VLOOKUP($F32&$G32&$H32&$L32&COMP!$G$33&$I32&"L",'COMP BCHMK'!$A$3:$W$4000,10,FALSE)/1000,"no data")) -> no data | AB32: =IF($F32="SPEC",VLOOKUP($H32,COMP!$B$87:$G$93,4,FALSE)/1000,IFERROR(VLOOKUP($F32&$G32&$H32&$L32&COMP!$G$33&$I32&"L",'COMP BCHMK'!$A$3:$W$4000,15,FALSE)/1000,"no data")) -> no data | AC32: =IF($F32="SPEC",VLOOKUP($H32,COMP!$B$87:$G$93,6,FALSE)/1000,IFERROR(VLOOKUP($F32&$G32&$H32&$L32&COMP!$G$33&$I32&"L",'COMP BCHMK'!$A$3:$W$4000,20,FALSE)/1000,"no data")) -> no data | AE32: =IF($J32=0,0,IF($B32="SPEC",COMP!$E$98,IFERROR(VLOOKUP($B32&$C32&$D32&$E32&"L",'RVU BCHMK'!$A$3:$W$4000,13,FALSE),"no data"))) -> 0 | AG32: 0 | AI32: 0 | AJ32: 0 | AK32: 0 | AL32: 0 | AM32: 0
A33: 0 | B33: FPSC | C33: Academic | D33: All | E33: =IF($B33="MGMA",COMP!$G$35,IF($B33="FPSC",COMP!$G$34,IF($B33="SPEC",COMP!$C$107,"no data"))) -> [select] | F33: AAMC | G33: Academic | H33: All | I33: =IF($F33="AAMC",COMP!$G$32,IF($F33="MGMA",COMP!$G$35,IF($F33="SPEC",COMP!$C$97,"no data"))) -> [select] | T33: 0 | Y33: 0 | Z33: 0 | AA33: =IF($F33="SPEC",VLOOKUP($H33,COMP!$B$87:$G$93,2,FALSE)/1000,IFERROR(VLOOKUP($F33&$G33&$H33&$L33&COMP!$G$33&$I33&"L",'COMP BCHMK'!$A$3:$W$4000,10,FALSE)/1000,"no data")) -> no data | AB33: =IF($F33="SPEC",VLOOKUP($H33,COMP!$B$87:$G$93,4,FALSE)/1000,IFERROR(VLOOKUP($F33&$G33&$H33&$L33&COMP!$G$33&$I33&"L",'COMP BCHMK'!$A$3:$W$4000,15,FALSE)/1000,"no data")) -> no data | AC33: =IF($F33="SPEC",VLOOKUP($H33,COMP!$B$87:$G$93,6,FALSE)/1000,IFERROR(VLOOKUP($F33&$G33&$H33&$L33&COMP!$G$33&$I33&"L",'COMP BCHMK'!$A$3:$W$4000,20,FALSE)/1000,"no data")) -> no data | AE33: =IF($J33=0,0,IF($B33="SPEC",COMP!$E$98,IFERROR(VLOOKUP($B33&$C33&$D33&$E33&"L",'RVU BCHMK'!$A$3:$W$4000,13,FALSE),"no data"))) -> 0 | AG33: 0 | AI33: 0 | AJ33: 0 | AK33: 0 | AL33: 0 | AM33: 0
A34: 0 | B34: FPSC | C34: Academic | D34: All | E34: =IF($B34="MGMA",COMP!$G$35,IF($B34="FPSC",COMP!$G$34,IF($B34="SPEC",COMP!$C$107,"no data"))) -> [select] | F34: AAMC | G34: Academic | H34: All | I34: =IF($F34="AAMC",COMP!$G$32,IF($F34="MGMA",COMP!$G$35,IF($F34="SPEC",COMP!$C$97,"no data"))) -> [select] | T34: 0 | Y34: 0 | Z34: 0 | AA34: =IF($F34="SPEC",VLOOKUP($H34,COMP!$B$87:$G$93,2,FALSE)/1000,IFERROR(VLOOKUP($F34&$G34&$H34&$L34&COMP!$G$33&$I34&"L",'COMP BCHMK'!$A$3:$W$4000,10,FALSE)/1000,"no data")) -> no data | AB34: =IF($F34="SPEC",VLOOKUP($H34,COMP!$B$87:$G$93,4,FALSE)/1000,IFERROR(VLOOKUP($F34&$G34&$H34&$L34&COMP!$G$33&$I34&"L",'COMP BCHMK'!$A$3:$W$4000,15,FALSE)/1000,"no data")) -> no data | AC34: =IF($F34="SPEC",VLOOKUP($H34,COMP!$B$87:$G$93,6,FALSE)/1000,IFERROR(VLOOKUP($F34&$G34&$H34&$L34&COMP!$G$33&$I34&"L",'COMP BCHMK'!$A$3:$W$4000,20,FALSE)/1000,"no data")) -> no data | AE34: =IF($J34=0,0,IF($B34="SPEC",COMP!$E$98,IFERROR(VLOOKUP($B34&$C34&$D34&$E34&"L",'RVU BCHMK'!$A$3:$W$4000,13,FALSE),"no data"))) -> 0 | AG34: 0 | AI34: 0 | AJ34: 0 | AK34: 0 | AL34: 0 | AM34: 0
A35: 0 | B35: FPSC | C35: Academic | D35: All | E35: =IF($B35="MGMA",COMP!$G$35,IF($B35="FPSC",COMP!$G$34,IF($B35="SPEC",COMP!$C$107,"no data"))) -> [select] | F35: AAMC | G35: Academic | H35: All | I35: =IF($F35="AAMC",COMP!$G$32,IF($F35="MGMA",COMP!$G$35,IF($F35="SPEC",COMP!$C$97,"no data"))) -> [select] | T35: 0 | Y35: 0 | Z35: 0 | AA35: =IF($F35="SPEC",VLOOKUP($H35,COMP!$B$87:$G$93,2,FALSE)/1000,IFERROR(VLOOKUP($F35&$G35&$H35&$L35&COMP!$G$33&$I35&"L",'COMP BCHMK'!$A$3:$W$4000,10,FALSE)/1000,"no data")) -> no data | AB35: =IF($F35="SPEC",VLOOKUP($H35,COMP!$B$87:$G$93,4,FALSE)/1000,IFERROR(VLOOKUP($F35&$G35&$H35&$L35&COMP!$G$33&$I35&"L",'COMP BCHMK'!$A$3:$W$4000,15,FALSE)/1000,"no data")) -> no data | AC35: =IF($F35="SPEC",VLOOKUP($H35,COMP!$B$87:$G$93,6,FALSE)/1000,IFERROR(VLOOKUP($F35&$G35&$H35&$L35&COMP!$G$33&$I35&"L",'COMP BCHMK'!$A$3:$W$4000,20,FALSE)/1000,"no data")) -> no data | AE35: =IF($J35=0,0,IF($B35="SPEC",COMP!$E$98,IFERROR(VLOOKUP($B35&$C35&$D35&$E35&"L",'RVU BCHMK'!$A$3:$W$4000,13,FALSE),"no data"))) -> 0 | AG35: 0 | AI35: 0 | AJ35: 0 | AK35: 0 | AL35: 0 | AM35: 0
A36: 0 | B36: FPSC | C36: Academic | D36: All | E36: =IF($B36="MGMA",COMP!$G$35,IF($B36="FPSC",COMP!$G$34,IF($B36="SPEC",COMP!$C$107,"no data"))) -> [select] | F36: AAMC | G36: Academic | H36: All | I36: =IF($F36="AAMC",COMP!$G$32,IF($F36="MGMA",COMP!$G$35,IF($F36="SPEC",COMP!$C$97,"no data"))) -> [select] | T36: 0 | Y36: 0 | Z36: 0 | AA36: =IF($F36="SPEC",VLOOKUP($H36,COMP!$B$87:$G$93,2,FALSE)/1000,IFERROR(VLOOKUP($F36&$G36&$H36&$L36&COMP!$G$33&$I36&"L",'COMP BCHMK'!$A$3:$W$4000,10,FALSE)/1000,"no data")) -> no data | AB36: =IF($F36="SPEC",VLOOKUP($H36,COMP!$B$87:$G$93,4,FALSE)/1000,IFERROR(VLOOKUP($F36&$G36&$H36&$L36&COMP!$G$33&$I36&"L",'COMP BCHMK'!$A$3:$W$4000,15,FALSE)/1000,"no data")) -> no data | AC36: =IF($F36="SPEC",VLOOKUP($H36,COMP!$B$87:$G$93,6,FALSE)/1000,IFERROR(VLOOKUP($F36&$G36&$H36&$L36&COMP!$G$33&$I36&"L",'COMP BCHMK'!$A$3:$W$4000,20,FALSE)/1000,"no data")) -> no data | AE36: =IF($J36=0,0,IF($B36="SPEC",COMP!$E$98,IFERROR(VLOOKUP($B36&$C36&$D36&$E36&"L",'RVU BCHMK'!$A$3:$W$4000,13,FALSE),"no data"))) -> 0 | AG36: 0 | AI36: 0 | AJ36: 0 | AK36: 0 | AL36: 0 | AM36: 0
A37: 0 | B37: FPSC | C37: Academic | D37: All | E37: =IF($B37="MGMA",COMP!$G$35,IF($B37="FPSC",COMP!$G$34,IF($B37="SPEC",COMP!$C$107,"no data"))) -> [select] | F37: AAMC | G37: Academic | H37: All | I37: =IF($F37="AAMC",COMP!$G$32,IF($F37="MGMA",COMP!$G$35,IF($F37="SPEC",COMP!$C$97,"no data"))) -> [select] | T37: 0 | Y37: 0 | Z37: 0 | AA37: =IF($F37="SPEC",VLOOKUP($H37,COMP!$B$87:$G$93,2,FALSE)/1000,IFERROR(VLOOKUP($F37&$G37&$H37&$L37&COMP!$G$33&$I37&"L",'COMP BCHMK'!$A$3:$W$4000,10,FALSE)/1000,"no data")) -> no data | AB37: =IF($F37="SPEC",VLOOKUP($H37,COMP!$B$87:$G$93,4,FALSE)/1000,IFERROR(VLOOKUP($F37&$G37&$H37&$L37&COMP!$G$33&$I37&"L",'COMP BCHMK'!$A$3:$W$4000,15,FALSE)/1000,"no data")) -> no data | AC37: =IF($F37="SPEC",VLOOKUP($H37,COMP!$B$87:$G$93,6,FALSE)/1000,IFERROR(VLOOKUP($F37&$G37&$H37&$L37&COMP!$G$33&$I37&"L",'COMP BCHMK'!$A$3:$W$4000,20,FALSE)/1000,"no data")) -> no data | AE37: =IF($J37=0,0,IF($B37="SPEC",COMP!$E$98,IFERROR(VLOOKUP($B37&$C37&$D37&$E37&"L",'RVU BCHMK'!$A$3:$W$4000,13,FALSE),"no data"))) -> 0 | AG37: 0 | AI37: 0 | AJ37: 0 | AK37: 0 | AL37: 0 | AM37: 0
A38: 0 | B38: FPSC | C38: Academic | D38: All | E38: =IF($B38="MGMA",COMP!$G$35,IF($B38="FPSC",COMP!$G$34,IF($B38="SPEC",COMP!$C$107,"no data"))) -> [select] | F38: AAMC | G38: Academic | H38: All | I38: =IF($F38="AAMC",COMP!$G$32,IF($F38="MGMA",COMP!$G$35,IF($F38="SPEC",COMP!$C$97,"no data"))) -> [select] | T38: 0 | Y38: 0 | Z38: 0 | AA38: =IF($F38="SPEC",VLOOKUP($H38,COMP!$B$87:$G$93,2,FALSE)/1000,IFERROR(VLOOKUP($F38&$G38&$H38&$L38&COMP!$G$33&$I38&"L",'COMP BCHMK'!$A$3:$W$4000,10,FALSE)/1000,"no data")) -> no data | AB38: =IF($F38="SPEC",VLOOKUP($H38,COMP!$B$87:$G$93,4,FALSE)/1000,IFERROR(VLOOKUP($F38&$G38&$H38&$L38&COMP!$G$33&$I38&"L",'COMP BCHMK'!$A$3:$W$4000,15,FALSE)/1000,"no data")) -> no data | AC38: =IF($F38="SPEC",VLOOKUP($H38,COMP!$B$87:$G$93,6,FALSE)/1000,IFERROR(VLOOKUP($F38&$G38&$H38&$L38&COMP!$G$33&$I38&"L",'COMP BCHMK'!$A$3:$W$4000,20,FALSE)/1000,"no data")) -> no data | AE38: =IF($J38=0,0,IF($B38="SPEC",COMP!$E$98,IFERROR(VLOOKUP($B38&$C38&$D38&$E38&"L",'RVU BCHMK'!$A$3:$W$4000,13,FALSE),"no data"))) -> 0 | AG38: 0 | AI38: 0 | AJ38: 0 | AK38: 0 | AL38: 0 | AM38: 0
A39: 0 | B39: FPSC | C39: Academic | D39: All | E39: =IF($B39="MGMA",COMP!$G$35,IF($B39="FPSC",COMP!$G$34,IF($B39="SPEC",COMP!$C$107,"no data"))) -> [select] | F39: AAMC | G39: Academic | H39: All | I39: =IF($F39="AAMC",COMP!$G$32,IF($F39="MGMA",COMP!$G$35,IF($F39="SPEC",COMP!$C$97,"no data"))) -> [select] | T39: 0 | Y39: 0 | Z39: 0 | AA39: =IF($F39="SPEC",VLOOKUP($H39,COMP!$B$87:$G$93,2,FALSE)/1000,IFERROR(VLOOKUP($F39&$G39&$H39&$L39&COMP!$G$33&$I39&"L",'COMP BCHMK'!$A$3:$W$4000,10,FALSE)/1000,"no data")) -> no data | AB39: =IF($F39="SPEC",VLOOKUP($H39,COMP!$B$87:$G$93,4,FALSE)/1000,IFERROR(VLOOKUP($F39&$G39&$H39&$L39&COMP!$G$33&$I39&"L",'COMP BCHMK'!$A$3:$W$4000,15,FALSE)/1000,"no data")) -> no data | AC39: =IF($F39="SPEC",VLOOKUP($H39,COMP!$B$87:$G$93,6,FALSE)/1000,IFERROR(VLOOKUP($F39&$G39&$H39&$L39&COMP!$G$33&$I39&"L",'COMP BCHMK'!$A$3:$W$4000,20,FALSE)/1000,"no data")) -> no data | AE39: =IF($J39=0,0,IF($B39="SPEC",COMP!$E$98,IFERROR(VLOOKUP($B39&$C39&$D39&$E39&"L",'RVU BCHMK'!$A$3:$W$4000,13,FALSE),"no data"))) -> 0 | AG39: 0 | AI39: 0 | AJ39: 0 | AK39: 0 | AL39: 0 | AM39: 0
A40: 0 | B40: FPSC | C40: Academic | D40: All | E40: =IF($B40="MGMA",COMP!$G$35,IF($B40="FPSC",COMP!$G$34,IF($B40="SPEC",COMP!$C$107,"no data"))) -> [select] | F40: AAMC | G40: Academic | H40: All | I40: =IF($F40="AAMC",COMP!$G$32,IF($F40="MGMA",COMP!$G$35,IF($F40="SPEC",COMP!$C$97,"no data"))) -> [select] | T40: 0 | Y40: 0 | Z40: 0 | AA40: =IF($F40="SPEC",VLOOKUP($H40,COMP!$B$87:$G$93,2,FALSE)/1000,IFERROR(VLOOKUP($F40&$G40&$H40&$L40&COMP!$G$33&$I40&"L",'COMP BCHMK'!$A$3:$W$4000,10,FALSE)/1000,"no data")) -> no data | AB40: =IF($F40="SPEC",VLOOKUP($H40,COMP!$B$87:$G$93,4,FALSE)/1000,IFERROR(VLOOKUP($F40&$G40&$H40&$L40&COMP!$G$33&$I40&"L",'COMP BCHMK'!$A$3:$W$4000,15,FALSE)/1000,"no data")) -> no data | AC40: =IF($F40="SPEC",VLOOKUP($H40,COMP!$B$87:$G$93,6,FALSE)/1000,IFERROR(VLOOKUP($F40&$G40&$H40&$L40&COMP!$G$33&$I40&"L",'COMP BCHMK'!$A$3:$W$4000,20,FALSE)/1000,"no data")) -> no data | AE40: =IF($J40=0,0,IF($B40="SPEC",COMP!$E$98,IFERROR(VLOOKUP($B40&$C40&$D40&$E40&"L",'RVU BCHMK'!$A$3:$W$4000,13,FALSE),"no data"))) -> 0 | AG40: 0 | AI40: 0 | AJ40: 0 | AK40: 0 | AL40: 0 | AM40: 0
A41: 0 | B41: FPSC | C41: Academic | D41: All | E41: =IF($B41="MGMA",COMP!$G$35,IF($B41="FPSC",COMP!$G$34,IF($B41="SPEC",COMP!$C$107,"no data"))) -> [select] | F41: AAMC | G41: Academic | H41: All | I41: =IF($F41="AAMC",COMP!$G$32,IF($F41="MGMA",COMP!$G$35,IF($F41="SPEC",COMP!$C$97,"no data"))) -> [select] | T41: 0 | Y41: 0 | Z41: 0 | AA41: =IF($F41="SPEC",VLOOKUP($H41,COMP!$B$87:$G$93,2,FALSE)/1000,IFERROR(VLOOKUP($F41&$G41&$H41&$L41&COMP!$G$33&$I41&"L",'COMP BCHMK'!$A$3:$W$4000,10,FALSE)/1000,"no data")) -> no data | AB41: =IF($F41="SPEC",VLOOKUP($H41,COMP!$B$87:$G$93,4,FALSE)/1000,IFERROR(VLOOKUP($F41&$G41&$H41&$L41&COMP!$G$33&$I41&"L",'COMP BCHMK'!$A$3:$W$4000,15,FALSE)/1000,"no data")) -> no data | AC41: =IF($F41="SPEC",VLOOKUP($H41,COMP!$B$87:$G$93,6,FALSE)/1000,IFERROR(VLOOKUP($F41&$G41&$H41&$L41&COMP!$G$33&$I41&"L",'COMP BCHMK'!$A$3:$W$4000,20,FALSE)/1000,"no data")) -> no data | AE41: =IF($J41=0,0,IF($B41="SPEC",COMP!$E$98,IFERROR(VLOOKUP($B41&$C41&$D41&$E41&"L",'RVU BCHMK'!$A$3:$W$4000,13,FALSE),"no data"))) -> 0 | AG41: 0 | AI41: 0 | AJ41: 0 | AK41: 0 | AL41: 0 | AM41: 0
A42: 0 | B42: FPSC | C42: Academic | D42: All | E42: =IF($B42="MGMA",COMP!$G$35,IF($B42="FPSC",COMP!$G$34,IF($B42="SPEC",COMP!$C$107,"no data"))) -> [select] | F42: AAMC | G42: Academic | H42: All | I42: =IF($F42="AAMC",COMP!$G$32,IF($F42="MGMA",COMP!$G$35,IF($F42="SPEC",COMP!$C$97,"no data"))) -> [select] | T42: 0 | Y42: 0 | Z42: 0 | AA42: =IF($F42="SPEC",VLOOKUP($H42,COMP!$B$87:$G$93,2,FALSE)/1000,IFERROR(VLOOKUP($F42&$G42&$H42&$L42&COMP!$G$33&$I42&"L",'COMP BCHMK'!$A$3:$W$4000,10,FALSE)/1000,"no data")) -> no data | AB42: =IF($F42="SPEC",VLOOKUP($H42,COMP!$B$87:$G$93,4,FALSE)/1000,IFERROR(VLOOKUP($F42&$G42&$H42&$L42&COMP!$G$33&$I42&"L",'COMP BCHMK'!$A$3:$W$4000,15,FALSE)/1000,"no data")) -> no data | AC42: =IF($F42="SPEC",VLOOKUP($H42,COMP!$B$87:$G$93,6,FALSE)/1000,IFERROR(VLOOKUP($F42&$G42&$H42&$L42&COMP!$G$33&$I42&"L",'COMP BCHMK'!$A$3:$W$4000,20,FALSE)/1000,"no data")) -> no data | AE42: =IF($J42=0,0,IF($B42="SPEC",COMP!$E$98,IFERROR(VLOOKUP($B42&$C42&$D42&$E42&"L",'RVU BCHMK'!$A$3:$W$4000,13,FALSE),"no data"))) -> 0 | AG42: 0 | AI42: 0 | AJ42: 0 | AK42: 0 | AL42: 0 | AM42: 0
A43: 0 | B43: FPSC | C43: Academic | D43: All | E43: =IF($B43="MGMA",COMP!$G$35,IF($B43="FPSC",COMP!$G$34,IF($B43="SPEC",COMP!$C$107,"no data"))) -> [select] | F43: AAMC | G43: Academic | H43: All | I43: =IF($F43="AAMC",COMP!$G$32,IF($F43="MGMA",COMP!$G$35,IF($F43="SPEC",COMP!$C$97,"no data"))) -> [select] | T43: 0 | Y43: 0 | Z43: 0 | AA43: =IF($F43="SPEC",VLOOKUP($H43,COMP!$B$87:$G$93,2,FALSE)/1000,IFERROR(VLOOKUP($F43&$G43&$H43&$L43&COMP!$G$33&$I43&"L",'COMP BCHMK'!$A$3:$W$4000,10,FALSE)/1000,"no data")) -> no data | AB43: =IF($F43="SPEC",VLOOKUP($H43,COMP!$B$87:$G$93,4,FALSE)/1000,IFERROR(VLOOKUP($F43&$G43&$H43&$L43&COMP!$G$33&$I43&"L",'COMP BCHMK'!$A$3:$W$4000,15,FALSE)/1000,"no data")) -> no data | AC43: =IF($F43="SPEC",VLOOKUP($H43,COMP!$B$87:$G$93,6,FALSE)/1000,IFERROR(VLOOKUP($F43&$G43&$H43&$L43&COMP!$G$33&$I43&"L",'COMP BCHMK'!$A$3:$W$4000,20,FALSE)/1000,"no data")) -> no data | AE43: =IF($J43=0,0,IF($B43="SPEC",COMP!$E$98,IFERROR(VLOOKUP($B43&$C43&$D43&$E43&"L",'RVU BCHMK'!$A$3:$W$4000,13,FALSE),"no data"))) -> 0 | AG43: 0 | AI43: 0 | AJ43: 0 | AK43: 0 | AL43: 0 | AM43: 0
A44: 0 | B44: FPSC | C44: Academic | D44: All | E44: =IF($B44="MGMA",COMP!$G$35,IF($B44="FPSC",COMP!$G$34,IF($B44="SPEC",COMP!$C$107,"no data"))) -> [select] | F44: AAMC | G44: Academic | H44: All | I44: =IF($F44="AAMC",COMP!$G$32,IF($F44="MGMA",COMP!$G$35,IF($F44="SPEC",COMP!$C$97,"no data"))) -> [select] | T44: 0 | Y44: 0 | Z44: 0 | AA44: =IF($F44="SPEC",VLOOKUP($H44,COMP!$B$87:$G$93,2,FALSE)/1000,IFERROR(VLOOKUP($F44&$G44&$H44&$L44&COMP!$G$33&$I44&"L",'COMP BCHMK'!$A$3:$W$4000,10,FALSE)/1000,"no data")) -> no data | AB44: =IF($F44="SPEC",VLOOKUP($H44,COMP!$B$87:$G$93,4,FALSE)/1000,IFERROR(VLOOKUP($F44&$G44&$H44&$L44&COMP!$G$33&$I44&"L",'COMP BCHMK'!$A$3:$W$4000,15,FALSE)/1000,"no data")) -> no data | AC44: =IF($F44="SPEC",VLOOKUP($H44,COMP!$B$87:$G$93,6,FALSE)/1000,IFERROR(VLOOKUP($F44&$G44&$H44&$L44&COMP!$G$33&$I44&"L",'COMP BCHMK'!$A$3:$W$4000,20,FALSE)/1000,"no data")) -> no data | AE44: =IF($J44=0,0,IF($B44="SPEC",COMP!$E$98,IFERROR(VLOOKUP($B44&$C44&$D44&$E44&"L",'RVU BCHMK'!$A$3:$W$4000,13,FALSE),"no data"))) -> 0 | AG44: 0 | AI44: 0 | AJ44: 0 | AK44: 0 | AL44: 0 | AM44: 0
A45: 0 | B45: FPSC | C45: Academic | D45: All | E45: =IF($B45="MGMA",COMP!$G$35,IF($B45="FPSC",COMP!$G$34,IF($B45="SPEC",COMP!$C$107,"no data"))) -> [select] | F45: AAMC | G45: Academic | H45: All | I45: =IF($F45="AAMC",COMP!$G$32,IF($F45="MGMA",COMP!$G$35,IF($F45="SPEC",COMP!$C$97,"no data"))) -> [select] | T45: 0 | Y45: 0 | Z45: 0 | AA45: =IF($F45="SPEC",VLOOKUP($H45,COMP!$B$87:$G$93,2,FALSE)/1000,IFERROR(VLOOKUP($F45&$G45&$H45&$L45&COMP!$G$33&$I45&"L",'COMP BCHMK'!$A$3:$W$4000,10,FALSE)/1000,"no data")) -> no data | AB45: =IF($F45="SPEC",VLOOKUP($H45,COMP!$B$87:$G$93,4,FALSE)/1000,IFERROR(VLOOKUP($F45&$G45&$H45&$L45&COMP!$G$33&$I45&"L",'COMP BCHMK'!$A$3:$W$4000,15,FALSE)/1000,"no data")) -> no data | AC45: =IF($F45="SPEC",VLOOKUP($H45,COMP!$B$87:$G$93,6,FALSE)/1000,IFERROR(VLOOKUP($F45&$G45&$H45&$L45&COMP!$G$33&$I45&"L",'COMP BCHMK'!$A$3:$W$4000,20,FALSE)/1000,"no data")) -> no data | AE45: =IF($J45=0,0,IF($B45="SPEC",COMP!$E$98,IFERROR(VLOOKUP($B45&$C45&$D45&$E45&"L",'RVU BCHMK'!$A$3:$W$4000,13,FALSE),"no data"))) -> 0 | AG45: 0 | AI45: 0 | AJ45: 0 | AK45: 0 | AL45: 0 | AM45: 0
A46: 0 | B46: FPSC | C46: Academic | D46: All | E46: =IF($B46="MGMA",COMP!$G$35,IF($B46="FPSC",COMP!$G$34,IF($B46="SPEC",COMP!$C$107,"no data"))) -> [select] | F46: AAMC | G46: Academic | H46: All | I46: =IF($F46="AAMC",COMP!$G$32,IF($F46="MGMA",COMP!$G$35,IF($F46="SPEC",COMP!$C$97,"no data"))) -> [select] | T46: 0 | Y46: 0 | Z46: 0 | AA46: =IF($F46="SPEC",VLOOKUP($H46,COMP!$B$87:$G$93,2,FALSE)/1000,IFERROR(VLOOKUP($F46&$G46&$H46&$L46&COMP!$G$33&$I46&"L",'COMP BCHMK'!$A$3:$W$4000,10,FALSE)/1000,"no data")) -> no data | AB46: =IF($F46="SPEC",VLOOKUP($H46,COMP!$B$87:$G$93,4,FALSE)/1000,IFERROR(VLOOKUP($F46&$G46&$H46&$L46&COMP!$G$33&$I46&"L",'COMP BCHMK'!$A$3:$W$4000,15,FALSE)/1000,"no data")) -> no data | AC46: =IF($F46="SPEC",VLOOKUP($H46,COMP!$B$87:$G$93,6,FALSE)/1000,IFERROR(VLOOKUP($F46&$G46&$H46&$L46&COMP!$G$33&$I46&"L",'COMP BCHMK'!$A$3:$W$4000,20,FALSE)/1000,"no data")) -> no data | AE46: =IF($J46=0,0,IF($B46="SPEC",COMP!$E$98,IFERROR(VLOOKUP($B46&$C46&$D46&$E46&"L",'RVU BCHMK'!$A$3:$W$4000,13,FALSE),"no data"))) -> 0 | AG46: 0 | AI46: 0 | AJ46: 0 | AK46: 0 | AL46: 0 | AM46: 0
A47: 0 | B47: FPSC | C47: Academic | D47: All | E47: =IF($B47="MGMA",COMP!$G$35,IF($B47="FPSC",COMP!$G$34,IF($B47="SPEC",COMP!$C$107,"no data"))) -> [select] | F47: AAMC | G47: Academic | H47: All | I47: =IF($F47="AAMC",COMP!$G$32,IF($F47="MGMA",COMP!$G$35,IF($F47="SPEC",COMP!$C$97,"no data"))) -> [select] | T47: 0 | Y47: 0 | Z47: 0 | AA47: =IF($F47="SPEC",VLOOKUP($H47,COMP!$B$87:$G$93,2,FALSE)/1000,IFERROR(VLOOKUP($F47&$G47&$H47&$L47&COMP!$G$33&$I47&"L",'COMP BCHMK'!$A$3:$W$4000,10,FALSE)/1000,"no data")) -> no data | AB47: =IF($F47="SPEC",VLOOKUP($H47,COMP!$B$87:$G$93,4,FALSE)/1000,IFERROR(VLOOKUP($F47&$G47&$H47&$L47&COMP!$G$33&$I47&"L",'COMP BCHMK'!$A$3:$W$4000,15,FALSE)/1000,"no data")) -> no data | AC47: =IF($F47="SPEC",VLOOKUP($H47,COMP!$B$87:$G$93,6,FALSE)/1000,IFERROR(VLOOKUP($F47&$G47&$H47&$L47&COMP!$G$33&$I47&"L",'COMP BCHMK'!$A$3:$W$4000,20,FALSE)/1000,"no data")) -> no data | AE47: =IF($J47=0,0,IF($B47="SPEC",COMP!$E$98,IFERROR(VLOOKUP($B47&$C47&$D47&$E47&"L",'RVU BCHMK'!$A$3:$W$4000,13,FALSE),"no data"))) -> 0 | AG47: 0 | AI47: 0 | AJ47: 0 | AK47: 0 | AL47: 0 | AM47: 0
A48: 0 | B48: FPSC | C48: Academic | D48: All | E48: =IF($B48="MGMA",COMP!$G$35,IF($B48="FPSC",COMP!$G$34,IF($B48="SPEC",COMP!$C$107,"no data"))) -> [select] | F48: AAMC | G48: Academic | H48: All | I48: =IF($F48="AAMC",COMP!$G$32,IF($F48="MGMA",COMP!$G$35,IF($F48="SPEC",COMP!$C$97,"no data"))) -> [select] | T48: 0 | Y48: 0 | Z48: 0 | AA48: =IF($F48="SPEC",VLOOKUP($H48,COMP!$B$87:$G$93,2,FALSE)/1000,IFERROR(VLOOKUP($F48&$G48&$H48&$L48&COMP!$G$33&$I48&"L",'COMP BCHMK'!$A$3:$W$4000,10,FALSE)/1000,"no data")) -> no data | AB48: =IF($F48="SPEC",VLOOKUP($H48,COMP!$B$87:$G$93,4,FALSE)/1000,IFERROR(VLOOKUP($F48&$G48&$H48&$L48&COMP!$G$33&$I48&"L",'COMP BCHMK'!$A$3:$W$4000,15,FALSE)/1000,"no data")) -> no data | AC48: =IF($F48="SPEC",VLOOKUP($H48,COMP!$B$87:$G$93,6,FALSE)/1000,IFERROR(VLOOKUP($F48&$G48&$H48&$L48&COMP!$G$33&$I48&"L",'COMP BCHMK'!$A$3:$W$4000,20,FALSE)/1000,"no data")) -> no data | AE48: =IF($J48=0,0,IF($B48="SPEC",COMP!$E$98,IFERROR(VLOOKUP($B48&$C48&$D48&$E48&"L",'RVU BCHMK'!$A$3:$W$4000,13,FALSE),"no data"))) -> 0 | AG48: 0 | AI48: 0 | AJ48: 0 | AK48: 0 | AL48: 0 | AM48: 0
A49: 0 | B49: FPSC | C49: Academic | D49: All | E49: =IF($B49="MGMA",COMP!$G$35,IF($B49="FPSC",COMP!$G$34,IF($B49="SPEC",COMP!$C$107,"no data"))) -> [select] | F49: AAMC | G49: Academic | H49: All | I49: =IF($F49="AAMC",COMP!$G$32,IF($F49="MGMA",COMP!$G$35,IF($F49="SPEC",COMP!$C$97,"no data"))) -> [select] | T49: 0 | Y49: 0 | Z49: 0 | AA49: =IF($F49="SPEC",VLOOKUP($H49,COMP!$B$87:$G$93,2,FALSE)/1000,IFERROR(VLOOKUP($F49&$G49&$H49&$L49&COMP!$G$33&$I49&"L",'COMP BCHMK'!$A$3:$W$4000,10,FALSE)/1000,"no data")) -> no data | AB49: =IF($F49="SPEC",VLOOKUP($H49,COMP!$B$87:$G$93,4,FALSE)/1000,IFERROR(VLOOKUP($F49&$G49&$H49&$L49&COMP!$G$33&$I49&"L",'COMP BCHMK'!$A$3:$W$4000,15,FALSE)/1000,"no data")) -> no data | AC49: =IF($F49="SPEC",VLOOKUP($H49,COMP!$B$87:$G$93,6,FALSE)/1000,IFERROR(VLOOKUP($F49&$G49&$H49&$L49&COMP!$G$33&$I49&"L",'COMP BCHMK'!$A$3:$W$4000,20,FALSE)/1000,"no data")) -> no data | AE49: =IF($J49=0,0,IF($B49="SPEC",COMP!$E$98,IFERROR(VLOOKUP($B49&$C49&$D49&$E49&"L",'RVU BCHMK'!$A$3:$W$4000,13,FALSE),"no data"))) -> 0 | AG49: 0 | AI49: 0 | AJ49: 0 | AK49: 0 | AL49: 0 | AM49: 0
A50: 0 | B50: FPSC | C50: Academic | D50: All | E50: =IF($B50="MGMA",COMP!$G$35,IF($B50="FPSC",COMP!$G$34,IF($B50="SPEC",COMP!$C$107,"no data"))) -> [select] | F50: AAMC | G50: Academic | H50: All | I50: =IF($F50="AAMC",COMP!$G$32,IF($F50="MGMA",COMP!$G$35,IF($F50="SPEC",COMP!$C$97,"no data"))) -> [select] | T50: 0 | Y50: 0 | Z50: 0 | AA50: =IF($F50="SPEC",VLOOKUP($H50,COMP!$B$87:$G$93,2,FALSE)/1000,IFERROR(VLOOKUP($F50&$G50&$H50&$L50&COMP!$G$33&$I50&"L",'COMP BCHMK'!$A$3:$W$4000,10,FALSE)/1000,"no data")) -> no data | AB50: =IF($F50="SPEC",VLOOKUP($H50,COMP!$B$87:$G$93,4,FALSE)/1000,IFERROR(VLOOKUP($F50&$G50&$H50&$L50&COMP!$G$33&$I50&"L",'COMP BCHMK'!$A$3:$W$4000,15,FALSE)/1000,"no data")) -> no data | AC50: =IF($F50="SPEC",VLOOKUP($H50,COMP!$B$87:$G$93,6,FALSE)/1000,IFERROR(VLOOKUP($F50&$G50&$H50&$L50&COMP!$G$33&$I50&"L",'COMP BCHMK'!$A$3:$W$4000,20,FALSE)/1000,"no data")) -> no data | AE50: =IF($J50=0,0,IF($B50="SPEC",COMP!$E$98,IFERROR(VLOOKUP($B50&$C50&$D50&$E50&"L",'RVU BCHMK'!$A$3:$W$4000,13,FALSE),"no data"))) -> 0 | AG50: 0 | AI50: 0 | AJ50: 0 | AK50: 0 | AL50: 0 | AM50: 0
A51: 0 | B51: FPSC | C51: Academic | D51: All | E51: =IF($B51="MGMA",COMP!$G$35,IF($B51="FPSC",COMP!$G$34,IF($B51="SPEC",COMP!$C$107,"no data"))) -> [select] | F51: AAMC | G51: Academic | H51: All | I51: =IF($F51="AAMC",COMP!$G$32,IF($F51="MGMA",COMP!$G$35,IF($F51="SPEC",COMP!$C$97,"no data"))) -> [select] | T51: 0 | Y51: 0 | Z51: 0 | AA51: =IF($F51="SPEC",VLOOKUP($H51,COMP!$B$87:$G$93,2,FALSE)/1000,IFERROR(VLOOKUP($F51&$G51&$H51&$L51&COMP!$G$33&$I51&"L",'COMP BCHMK'!$A$3:$W$4000,10,FALSE)/1000,"no data")) -> no data | AB51: =IF($F51="SPEC",VLOOKUP($H51,COMP!$B$87:$G$93,4,FALSE)/1000,IFERROR(VLOOKUP($F51&$G51&$H51&$L51&COMP!$G$33&$I51&"L",'COMP BCHMK'!$A$3:$W$4000,15,FALSE)/1000,"no data")) -> no data | AC51: =IF($F51="SPEC",VLOOKUP($H51,COMP!$B$87:$G$93,6,FALSE)/1000,IFERROR(VLOOKUP($F51&$G51&$H51&$L51&COMP!$G$33&$I51&"L",'COMP BCHMK'!$A$3:$W$4000,20,FALSE)/1000,"no data")) -> no data | AE51: =IF($J51=0,0,IF($B51="SPEC",COMP!$E$98,IFERROR(VLOOKUP($B51&$C51&$D51&$E51&"L",'RVU BCHMK'!$A$3:$W$4000,13,FALSE),"no data"))) -> 0 | AG51: 0 | AI51: 0 | AJ51: 0 | AK51: 0 | AL51: 0 | AM51: 0
A52: 1
A53: 1 | B53: Grand Totals | J53: =COUNTA(J9:J51) -> 18 | N53: =SUM(N9:N51) -> 0 | O53: 0 | P53: 0 | Q53: 0 | R53: 0 | S53: 0 | T53: 0 | V53: =SUM(V9:V51) -> 0 | W53: 0 | X53: 0 | Y53: =SUM(Y9:Y51) -> 0 | Z53: 0 | AA53: 0 | AB53: 0 | AC53: 0 | AE53: =SUM(AE9:AE51) -> 0 | AG53: =SUM(AG9:AG51) ->  | AH53: =SUM(AH9:AH51) -> 0 | AI53: =SUM(AI9:AI51) -> 
A54: 1
A55: 1 | Z55: Div Over/(Under) Benchmark: | AA55: =$Z$53-AA53 -> 0 | AB55: =$Z$53-AB53 -> 0 | AC55: =$Z$53-AC53 -> 0 | AH55: CFTE Above/(Below) Expectation: | AI55: =IF(AE53=0,0,AI53/(AE53/J53)) -> 0
A56: 1 | J56: Notes/Comments:
A57: 1
A58: 1
A59: 1
A60: 1
AF61: 110% Productivity | AH61: =110%*AG53 -> 
AF62: Actual Productivity | AH62: =AH53 -> 0
AF63: Over/(Under) 110% | AH63: =AH62-AH61 -> 
L64: Start Date | N64: End Date
J65: The RVWs in Column AG are from Period: | M65: =IF(OR(L65="[enter]",L65="[select]",L65=0)=TRUE,"error","") -> error | O65: =IF(OR(N65="[enter]",N65="[select]",N65=0)=TRUE,"error","") -> error | R65: This Tab is not password protected, click Review-Unprotect if needed
AG66: Compensation Plan RVU Benchmark for Employee seeking AA change: | AH66: 0 | AI66: =IF(OR(AH66="[enter]",AH66="[select]",AH66=0)=TRUE,"error","") -> error
K67: Fiscal Year: | M67: =IF(OR(L67="[enter]",L67="[select]",L67=0)=TRUE,"error","") -> error
AF68: Variance from compensation plan target | AH68: =AH9-AH66 -> 0
J69: If Other time period please list dates/details:

Sheet LOOKUP
A2: Transaction Type
A3: [select]
A4: FTE Increase
A5: FTE Reduction
A6: Salary Increase
A7: Salary Reduction
A8: Promotion
A9: Pathway Change
A12: Department
A13: [select]
A14: Anesthesiology
A15: Biochemistry & Molecular Biology
A16: Biomedical Informatics
A17: Biostatistics
A18: Dermatology
A19: Emergency Medicine
A20: Family Medicine
A21: Genetics
A22: Geriatrics
A23: Internal Medicine
A24: Medical Humanities
A25: Microbiology & immunology
A26: Neurobiology & Developmental Sciences
A27: Neurology
A28: Neurosurgery
A29: Obstetrics & Gynecology
A30: Ophthalmology
A31: Orthopedics
A32: Otolaryngology
A33: Pathology
A34: Pediatrics
A35: Pharmacology & Toxicology
A36: Physical Medicine & Rehabilitation
A37: Physiology & Biophysics
A38: Psychiatry
A39: Radiation Oncology
A40: Radiology
A41: Surgery
A42: Urology
A46: Service Line
A47: [select]
A48: Behavioral
A49: Cancer
A50: Cardiology
A51: Emergency Medicine
A52: Imaging
A53: Interventional
A54: Lab & Pathology
A55: Medical Specialties
A56: Musculoskeletal
A57: Myeloma
A58: Neurosciences
A59: Nursing
A60: Opthalmology
A61: Pharmacy & Therapeutics
A62: Population Health/Primary Care
A63: Spine
A64: Surgical Specialties
A65: Transplant
A66: Women's
A67: ICE Core
A68: n/a
A70: Physician Extender
A71: [select]
A72: Faculty
A73: Mid-level
A76: Position Type
A77: [select]
A78: Clinical
A79: Non-Clinical
A82: Pathway
A83: [select]
A84: Basic Scientist (Tenure Pathway)
A85: Basic Scientist (Non Tenure Pathway)
A86: Clinical Scientist (Tenure Pathway)
A87: Clinical Scientist (Non Tenure Pathway)
A88: Clinical Educator (Tenure Pathway)
A89: Clinical Educator (Non Tenure Pathway)
A90: Clinical Attending (Non Tenure Pathway)
A91: N/A
A93: Tenure
A94: [select]
A95: Tenure
A96: Non-Tenure
A99: Degree
A100: [select]
A101: MD
A102: PhD
A103: Other
A106: Rank
A107: [select]
A108: Instructor
A109: Assistant
A110: Associate
A111: Professor
A112: Chief
A113: Chair
A114: Non-Faculty Billing Provider
E115: Total FTE: | F115: =COMP!C67 -> 1 | L115: Total FTE: | M115: =COMP!E67 -> 1
A116: VA8ths | B116: VA Hrs Per 8th | C116: Rolling Total | D116: % of 50 hr week | E116: UAMS FTE | F116: Total FTE | H116: VA8ths | I116: VA Hrs Per 8th | J116: Rolling Total | K116: % of 50 hr week | L116: UAMS FTE | M116: Total FTE
A117: 0 | B117: 0 | C117: =B117 -> 0 | D117: =C117/50 -> 0 | E117: =1-D117 -> 1 | F117: =$F$115-D117 -> 1 | H117: 0 | I117: 0 | J117: =I117 -> 0 | K117: =J117/50 -> 0 | L117: =1-K117 -> 1 | M117: =$F$115-K117 -> 1
A118: 1 | B118: =40/8 -> 5 | C118: =B118 -> 5 | D118: =C118/50 -> 0.1 | E118: =1-D118 -> 0.9 | F118: =$F$115-D118 -> 0.9 | H118: 1 | I118: =40/8 -> 5 | J118: =I118 -> 5 | K118: =J118/50 -> 0.1 | L118: =1-K118 -> 0.9 | M118: =$F$115-K118 -> 0.9
A119: 2 | B119: 5 | C119: =B119+C118 -> 10 | D119: 0.2 | E119: 0.8 | F119: 0.8 | H119: 2 | I119: 5 | J119: =I119+J118 -> 10 | K119: 0.2 | L119: 0.8 | M119: 0.8
A120: 3 | B120: 5 | C120: 15 | D120: 0.3 | E120: 0.7 | F120: 0.7 | H120: 3 | I120: 5 | J120: 15 | K120: 0.3 | L120: 0.7 | M120: 0.7
A121: 4 | B121: 5 | C121: 20 | D121: 0.4 | E121: 0.6 | F121: 0.6 | H121: 4 | I121: 5 | J121: 20 | K121: 0.4 | L121: 0.6 | M121: 0.6
A122: 5 | B122: 5 | C122: 25 | D122: 0.5 | E122: 0.5 | F122: 0.5 | H122: 5 | I122: 5 | J122: 25 | K122: 0.5 | L122: 0.5 | M122: 0.5
A123: 6 | B123: 5 | C123: 30 | D123: 0.6 | E123: 0.4 | F123: 0.4 | H123: 6 | I123: 5 | J123: 30 | K123: 0.6 | L123: 0.4 | M123: 0.4
A124: 7 | B124: 5 | C124: 35 | D124: 0.7 | E124: 0.3 | F124: 0.3 | H124: 7 | I124: 5 | J124: 35 | K124: 0.7 | L124: 0.3 | M124: 0.3
A125: 8 | B125: 5 | C125: 40 | D125: 0.8 | E125: 0.2 | F125: 0.2 | H125: 8 | I125: 5 | J125: 40 | K125: 0.8 | L125: 0.2 | M125: 0.2
B126: =SUM(B117:B125) -> 40 | I126: =SUM(I117:I125) -> 40
A131: Source
A133: COM
A134: ICE
A135: ACH
A136: INST
A137: OTHER
A140: DURATION
A142: Half Days/Week
A143: Half Months/Year
A144: Days/Year
A145: Weekends/Year
A146: Days/Week
A147: Days/Year
A148: Hours/Day
A149: Hours
A150: Days
A151: Weeks
A154: ADMIN
A156: Department Chair
A157: Vice Chair
A158: Division Chief
A159: Section Chief
A161: Residency Director
A162: Assist Residency Director
A163: Fellowship Director
A164: Clerkship Director
A165: Course Director
A167: Core Director
A168: Dept Funded Leadership
A169: National Assoc/Committees
A170: Other Leadership
A171: ACH Academic
A172: COM Leadership Role
A173: ICE Leadership Role
A174: Other Colleges Leadership
A175: Campus Leadership Role
A176: External Leadership Role
A178: Clinical Administration
A179: Clinical Contract (no-RVW)
A180: Other Leadership
A182: RESEARCH
A184: Grant
A185: Contract
A186: External Clinical Trial
A187: Internal Clinical Trial
A188: Cap Funding
A189: Commitment
A190: Cost Share
A191: Dept Funded Research
A192: ACH Academic
A194: EDUCATION
A196: M1&M2 Non Clinical Teaching
A197: M3&M4 Non Clinical Teaching
A198: Graduate Student Teaching
A199: Dept Funded Teaching
A200: Other Teaching
A201: External Teaching
A202: ACH Academic
A204: CLINICAL
A206: Clinical
A207: OP Clinic
A208: OP Procedure
A209: IP Procedure
A210: IP Wards
A211: IP Consults
A212: Lab Work
A213: ED Coverage
A214: Film Work
A215: Clinical Documentation
A218: MISSIONS
A220: Clinical
A221: Research
A222: Education
A223: Admin
A225: REVENUE
A227: Clinical Pro Fees
A228: Clinical Tech Fees
A229: Enhanced Medicaid
A230: Grant
A231: Contract
A232: Dean's Commitment
A233: Foundation
A234: Gift
A235: Other
A236: Budget
A237: No Budget
A240: REVENUE
A242: Budget
A243: No Budget
A244: Grant
... 86 more rows

Sheet BCHMK LOOKUP
A1: SOURCE | B1: AAMC | D1: SOURCE | E1: MGMA | G1: SOURCE | H1: FPSC
A2: TYPE | B2: (All) | D2: TYPE | E2: (All) | G2: TYPE | H2: (All)
A3: Fiscal Year | B3: 2019 | D3: Fiscal Year | E3: 2019 | G3: YEAR | H3: 2019
A5: Count of CODE | D5: Count of CODE | G5: Count of CODE
A6: SPECIALTY DESC | B6: Total | D6: SPECIALTY DESC | E6: Total | G6: SPECIALTY DESC | H6: Total
A7: Adolescent Medicine | B7: 24 | D7: Allergy/Immunology | E7: 4 | G7: Allergy / Immunology | H7: 1
A8: Allergy/Immunology-Med. | B8: 24 | D8: Anesthesiology | E8: 7 | G8: Audiology | H8: 1
A9: Allergy/Immunology-Peds. | B9: 24 | D9: Anesthesiology: Pain Management | E9: 3 | G9: Bone Marrow Transplant | H9: 1
A10: Anatomy | B10: 24 | D10: Audiologist | E10: 2 | G10: Cardiology: Electrophysiology | H10: 1
A11: Anesthesiology: General | B11: 24 | D11: Cardiology: Electrophysiology | E11: 4 | G11: Cardiology: General | H11: 1
A12: Anesthesiology: Pain Management | B12: 24 | D12: Cardiology: Invasive | E12: 4 | G12: Cardiology: Invasive | H12: 1
A13: Anesthesiology: Pediatric | B13: 24 | D13: Cardiology: Invasive-Interventional | E13: 4 | G13: Cardiology: Invasive Interventional | H13: 1
A14: BASIC SCIENCE - TOTAL ALL DEPARTMENTS/SPECIALTIES | B14: 24 | D14: Cardiology: Noninvasive | E14: 6 | G14: Cardiology: Noninvasive | H14: 1
A15: Biochemistry | B15: 24 | D15: Critical Care: Intensivist | E15: 4 | G15: Clinical Genetics | H15: 1
A16: Bioethics/Medical Humanities | B16: 24 | D16: Dermatology | E16: 4 | G16: Critical Care | H16: 1
A17: Biomedical Informatics | B17: 24 | D17: Dermatology: Dermatopathology | E17: 1 | G17: Dermatology | H17: 1
A18: Biostatistics | B18: 24 | D18: Dermatology: Mohs Surgery | E18: 3 | G18: Dermatopathology | H18: 1
A19: Cardiology: Invasive Interventional-Med. | B19: 24 | D19: Emergency Medicine | E19: 6 | G19: Emergency Medicine | H19: 1
A20: Cardiology: Invasive Non-interventional-Med. | B20: 24 | D20: Endocrinology/Metabolism | E20: 5 | G20: Endocrinology / Metabolism | H20: 1
A21: Cardiology: Non-invasive-Med. | B21: 24 | D21: Family Medicine (with OB) | E21: 4 | G21: Family Medicine (with OB) | H21: 1
A22: Cardiology: Total | B22: 24 | D22: Family Medicine (without OB) | E22: 6 | G22: Family Medicine (without OB) | H22: 1
A23: CLINICAL SCIENCE - TOTAL ALL DEPARTMENTS/SPECIALTIES | B23: 24 | D23: Family Medicine: Ambulatory Only (No Inpatient Work) | E23: 4 | G23: Family Medicine: Sports Medicine | H23: 1
A24: Community Health | B24: 24 | D24: Family Medicine: Sports Medicine | E24: 2 | G24: Gastroenterology | H24: 1
A25: Critical/Intensive Care-Med. | B25: 24 | D25: Family Medicine: Urgent Care | E25: 1 | G25: General Internal Medicine | H25: 1
A26: Critical/Intensive Care-Peds. | B26: 24 | D26: Gastroenterology | E26: 6 | G26: Geriatrics | H26: 1
A27: Dermatology (excluding Mohs Surgery) | B27: 24 | D27: Gastroenterology: Hepatology | E27: 4 | G27: Gynecological Oncology | H27: 1
A28: Dermatology: Mohs Surgery | B28: 24 | D28: Genetics | E28: 2 | G28: Gynecology | H28: 1
A29: Diagnostic Radiology: Interventional | B29: 24 | D29: Geriatrics | E29: 4 | G29: Hematology | H29: 1
A30: Diagnostic Radiology: Non-interventional | B30: 24 | D30: Hematology/Oncology | E30: 6 | G30: Hepatology | H30: 1
A31: Diagnostic Radiology: Total | B31: 24 | D31: Hematology/Oncology: Oncology (Only) | E31: 4 | G31: Hospitalists | H31: 1
A32: Emergency Medicine | B32: 24 | D32: Hospice/Palliative Care | E32: 4 | G32: Infectious Disease | H32: 1
A33: Emergency Medicine-Peds. | B33: 24 | D33: Hospitalist: Family Medicine | E33: 2 | G33: Maternal and Fetal Medicine | H33: 1
A34: Endocrinology-Med. | B34: 24 | D34: Hospitalist: Internal Medicine | E34: 7 | G34: Medical Oncology with Infusion | H34: 1
A35: Endocrinology-Peds. | B35: 24 | D35: Hospitalist: OB/GYN | E35: 1 | G35: Medical Oncology without Infusion | H35: 1
A36: Family Medicine: General | B36: 24 | D36: Hyperbaric Medicine/Wound Care | E36: 1 | G36: MOHS Surgery | H36: 1
A37: Family Medicine: Other | B37: 24 | D37: Infectious Disease | E37: 6 | G37: Nephrology | H37: 1
A38: Family Medicine: Sports Medicine | B38: 24 | D38: Internal Medicine: Ambulatory Only (No Inpatient Work) | E38: 2 | G38: Nephrology without Dialysis | H38: 1
A39: Gastroenterology-Med. | B39: 24 | D39: Internal Medicine: General | E39: 7 | G39: Neurology: Epilepsy / EEG | H39: 1
A40: Gastroenterology-Peds. | B40: 24 | D40: Nephrology | E40: 5 | G40: Neurology: General | H40: 1
A41: General Internal Medicine | B41: 24 | D41: Neurology | E41: 6 | G41: Neurology: Neuromuscular | H41: 1
A42: General Pediatrics | B42: 24 | D42: Neurology: Epilepsy/EEG | E42: 4 | G42: Neuropsychology | H42: 1
A43: General Surgery | B43: 24 | D43: Neurology: Neuromuscular | E43: 4 | G43: Obstetrics / Gynecology | H43: 1
A44: Genetics | B44: 24 | D44: Neurology: Stroke Medicine | E44: 4 | G44: Ophthalmology: Corneal / Refractive Surgery | H44: 1
A45: Genetics-Peds. | B45: 24 | D45: OB/GYN: Gynecological Oncology | E45: 4 | G45: Ophthalmology: General / Comprehensive | H45: 1
A46: Geriatrics-Med. | B46: 24 | D46: OB/GYN: Gynecology (Only) | E46: 4 | G46: Ophthalmology: Glaucoma | H46: 1
A47: Hematology/Oncology-Med. | B47: 24 | D47: OB/GYN: Maternal and Fetal Medicine | E47: 4 | G47: Ophthalmology: Neuro | H47: 1
A48: Hematology/Oncology-Peds. | B48: 24 | D48: OB/GYN: Reproductive Endocrinology | E48: 4 | G48: Ophthalmology: Oculoplastic / Reconstructive Surgery | H48: 1
A49: Hospital Medicine | B49: 24 | D49: OB/GYN: Urogynecology | E49: 4 | G49: Ophthalmology: Optometry | H49: 1
A50: Hospital Medicine-Peds. | B50: 24 | D50: Obstetrics/Gynecology: General | E50: 7 | G50: Ophthalmology: Pediatric | H50: 1
A51: Infectious Disease-Med. | B51: 24 | D51: Occupational Medicine | E51: 1 | G51: Ophthalmology: Retinal | H51: 1
A52: Infectious Disease-Peds. | B52: 24 | D52: Ophthalmology | E52: 4 | G52: Orthopedic Surgery: Foot / Ankle | H52: 1
A53: Microbiology | B53: 24 | D53: Ophthalmology: Corneal and Refractive Surgery | E53: 4 | G53: Orthopedic Surgery: General | H53: 1
A54: Molecular & Cellular Biology | B54: 24 | D54: Ophthalmology: Glaucoma | E54: 3 | G54: Orthopedic Surgery: Hand | H54: 1
A55: Neonatology | B55: 24 | D55: Ophthalmology: Neurology | E55: 1 | G55: Orthopedic Surgery: Joint | H55: 1
A56: Nephrology-Med. | B56: 24 | D56: Ophthalmology: Retina | E56: 4 | G56: Orthopedic Surgery: Oncology | H56: 1
A57: Nephrology-Peds. | B57: 24 | D57: Orthopedic (Nonsurgical) | E57: 2 | G57: Orthopedic Surgery: Pediatric | H57: 1
A58: Neurology | B58: 24 | D58: Orthopedic Surgery: Foot and Ankle | E58: 3 | G58: Orthopedic Surgery: Shoulder / Elbow | H58: 1
A59: Neurology-Peds. | B59: 24 | D59: Orthopedic Surgery: General | E59: 4 | G59: Orthopedic Surgery: Spine | H59: 1
A60: Neurosciences | B60: 24 | D60: Orthopedic Surgery: Hand | E60: 4 | G60: Orthopedic Surgery: Sports Medicine | H60: 1
A61: Neurosurgery | B61: 24 | D61: Orthopedic Surgery: Hip and Joint | E61: 3 | G61: Orthopedic Surgery: Trauma | H61: 1
A62: Nuclear Medicine | B62: 24 | D62: Orthopedic Surgery: Oncology | E62: 1 | G62: Otorhinolaryngology | H62: 1
A63: OB/GYN: General | B63: 24 | D63: Orthopedic Surgery: Shoulder/Elbow | E63: 1 | G63: Pain Management | H63: 1
A64: OB/GYN: Gynecologic Oncology | B64: 24 | D64: Orthopedic Surgery: Spine | E64: 3 | G64: Palliative Care | H64: 1
A65: OB/GYN: Maternal & Fetal | B65: 24 | D65: Orthopedic Surgery: Sports Medicine | E65: 4 | G65: Pathology: Anatomic | H65: 1
A66: OB/GYN: Other OB/GYN | B66: 24 | D66: Orthopedic Surgery: Trauma | E66: 4 | G66: Pathology: Clinical | H66: 1
A67: OB/GYN: Reproductive Endocrinology | B67: 24 | D67: Otorhinolaryngology | E67: 4 | G67: Pathology: Cytopathology | H67: 1
A68: Ophthalmology | B68: 24 | D68: Pain Management: Nonanesthesia | E68: 2 | G68: Pathology: Surgical | H68: 1
A69: Orthopedic Surgery: General | B69: 24 | D69: Pathology: Anatomic | E69: 4 | G69: Pediatrics: Adolescent Medicine | H69: 1
A70: Orthopedic Surgery: Sports Medicine | B70: 24 | D70: Pathology: Anatomic and Clinical | E70: 4 | G70: Pediatrics: Allergy / Immunology | H70: 1
A71: Other | B71: 24 | D71: Pathology: Anatomic-Cytopathology | E71: 1 | G71: Pediatrics: Cardiology | H71: 1
A72: Other Basic Sciences | B72: 24 | D72: Pathology: Clinical | E72: 4 | G72: Pediatrics: Cardiology Interventional | H72: 1
A73: Other Medicine | B73: 24 | D73: Pathology: Clinical-Hematopathology | E73: 2 | G73: Pediatrics: Cardiology-Invasive | H73: 1
A74: Other Pediatrics | B74: 24 | D74: Pathology: Surgical | E74: 4 | G74: Pediatrics: Cardiology-Noninvasive | H74: 1
A75: Other Radiology | B75: 24 | D75: Pediatrics: Adolescent Medicine | E75: 3 | G75: Pediatrics: Critical Care | H75: 1
A76: Other Surgery | B76: 24 | D76: Pediatrics: Allergy/Immunology | E76: 3 | G76: Pediatrics: Dermatology | H76: 1
A77: Otolaryngology | B77: 24 | D77: Pediatrics: Anesthesiology | E77: 4 | G77: Pediatrics: Developmental | H77: 1
A78: Pathology: Anatomic | B78: 24 | D78: Pediatrics: Bone Marrow Transplant | E78: 3 | G78: Pediatrics: Emergency Medicine | H78: 1
A79: Pathology: Clinical | B79: 24 | D79: Pediatrics: Cardiology | E79: 4 | G79: Pediatrics: Endocrinology | H79: 1
A80: Pathology: Other Pathology | B80: 24 | D80: Pediatrics: Cardiovascular Surgery | E80: 3 | G80: Pediatrics: Gastroenterology | H80: 1
A81: Pediatric Cardiology | B81: 24 | D81: Pediatrics: Child Development | E81: 2 | G81: Pediatrics: General | H81: 1
A82: Pediatric Surgery | B82: 24 | D82: Pediatrics: Critical Care/Intensivist | E82: 5 | G82: Pediatrics: Hematology / Oncology | H82: 1
A83: Pharmacology | B83: 24 | D83: Pediatrics: Dermatology | E83: 1 | G83: Pediatrics: Hospitalists | H83: 1
A84: Physical Medicine & Rehabilitation | B84: 24 | D84: Pediatrics: Emergency Medicine | E84: 5 | G84: Pediatrics: Infectious Disease | H84: 1
A85: Physiology | B85: 24 | D85: Pediatrics: Endocrinology | E85: 4 | G85: Pediatrics: Neonatal Medicine | H85: 1
A86: Plastic Surgery | B86: 24 | D86: Pediatrics: Gastroenterology | E86: 4 | G86: Pediatrics: Nephrology | H86: 1
A87: Preventive Medicine | B87: 24 | D87: Pediatrics: General | E87: 6 | G87: Pediatrics: Neurology | H87: 1
A88: Psychiatry: Child & Adolescent | B88: 24 | D88: Pediatrics: Genetics | E88: 4 | G88: Pediatrics: Otorhinolaryngology | H88: 1
A89: Psychiatry: General | B89: 24 | D89: Pediatrics: Hematology/Oncology | E89: 5 | G89: Pediatrics: Psychiatry | H89: 1
A90: Psychiatry: Other | B90: 24 | D90: Pediatrics: Hospitalist | E90: 6 | G90: Pediatrics: Psychology | H90: 1
A91: Pulmonary-Med. | B91: 24 | D91: Pediatrics: Hospitalist-Internal Medicine | E91: 1 | G91: Pediatrics: Pulmonology | H91: 1
A92: Pulmonary-Peds. | B92: 24 | D92: Pediatrics: Infectious Disease | E92: 4 | G92: Pediatrics: Rehabilitation | H92: 1
A93: Radiation Oncology | B93: 24 | D93: Pediatrics: Internal Medicine | E93: 1 | G93: Pediatrics: Rheumatology | H93: 1
A94: Rheumatology-Med. | B94: 24 | D94: Pediatrics: Neonatal Medicine | E94: 6 | G94: Pediatrics: Urology | H94: 1
A95: Rheumatology-Peds. | B95: 24 | D95: Pediatrics: Nephrology | E95: 4 | G95: Physical Medicine: General | H95: 1
A96: Surgical Oncology | B96: 24 | D96: Pediatrics: Neurology | E96: 5 | G96: Physical Medicine: Neurological | H96: 1
A97: Thoracic & Cardiovascular Surgery | B97: 24 | D97: Pediatrics: Neurosurgery | E97: 2 | G97: Physical Medicine: Pain and Spine | H97: 1
A98: Total Anesthesiology | B98: 24 | D98: Pediatrics: Ophthalmology | E98: 2 | G98: Physical Medicine: Sports - MSK | H98: 1
A99: Total Dermatology | B99: 24 | D99: Pediatrics: Orthopedic Surgery | E99: 4 | G99: Physical Therapy | H99: 1
A100: Total Family Medicine | B100: 24 | D100: Pediatrics: Otorhinolaryngology | E100: 4 | G100: Podiatry | H100: 1
A101: Total Medicine | B101: 24 | D101: Pediatrics: Pulmonology | E101: 4 | G101: Psychiatry | H101: 1
A102: Total OB/GYN | B102: 24 | D102: Pediatrics: Radiology | E102: 4 | G102: Psychology | H102: 1
A103: Total Pathology | B103: 24 | D103: Pediatrics: Rheumatology | E103: 3 | G103: Pulmonary Disease | H103: 1
A104: Total Pediatrics | B104: 24 | D104: Pediatrics: Surgery | E104: 4 | G104: Radiation Oncology | H104: 1
A105: Total Psychiatry | B105: 24 | D105: Pediatrics: Urgent Care | E105: 1 | G105: Radiology: Diagnostic | H105: 1
A106: Total Radiology | B106: 24 | D106: Pediatrics: Urology | E106: 3 | G106: Radiology: Interventional | H106: 1
A107: Total Surgery | B107: 24 | D107: Physiatry (Physical Medicine and Rehabilitation) | E107: 5 | G107: Radiology: Nuclear Medicine | H107: 1
A108: Transplant Surgery | B108: 24 | D108: Podiatry: General | E108: 1 | G108: Reproductive Endocrinology | H108: 1
A109: Trauma/Critical Care Surgery | B109: 24 | D109: Podiatry: Surgery-Foot and Ankle | E109: 1 | G109: Rheumatology | H109: 1
A110: Urology | B110: 24 | D110: Psychiatry: Child and Adolescent | E110: 4 | G110: Sleep Medicine | H110: 1
A111: Vascular Surgery | B111: 24 | D111: Psychiatry: Forensic | E111: 1 | G111: Surgery: Bariatric | H111: 1
A112: Orthopedic Surgery: Other | B112: 24 | D112: Psychiatry: General | E112: 7 | G112: Surgery: Breast | H112: 1
A113: Orthopedic Surgery: Total | B113: 24 | D113: Psychiatry: Geriatric | E113: 1 | G113: Surgery: Cardiac | H113: 1
A114: Psychiatry: Psychology | B114: 24 | D114: Psychologist | E114: 6 | G114: Surgery: Colon and Rectal | H114: 1
A115: Psychology-Peds. | B115: 24 | D115: Pulmonary Medicine: Critical Care | E115: 4 | G115: Surgery: General | H115: 1
A116: [select] | D116: Pulmonary Medicine: General | E116: 4 | G116: Surgery: Neurological | H116: 1
D117: Pulmonary Medicine: General and Critical Care | E117: 5 | G117: Surgery: Oral | H117: 1
D118: Radiation Oncology | E118: 4 | G118: Surgery: Pediatric | H118: 1
D119: Radiology: Diagnostic | E119: 6 | G119: Surgery: Plastic | H119: 1
D120: Radiology: Interventional | E120: 4 | G120: Surgery: Thoracic | H120: 1
D121: Radiology: Neurological | E121: 4 | G121: Surgery: Trauma | H121: 1
D122: Radiology: Nuclear Medicine | E122: 4 | G122: Surgery: Vascular | H122: 1
D123: Rheumatology | E123: 6 | G123: Surgical Oncology | H123: 1
D124: Sleep Medicine | E124: 3 | G124: Transplant Surgery: General | H124: 1
D125: Surgery: Bariatric | E125: 3 | G125: Transplant Surgery: Kidney | H125: 1
D126: Surgery: Breast | E126: 3 | G126: Transplant Surgery: Liver | H126: 1
D127: Surgery: Cardiovascular | E127: 5 | G127: Uro-Gynecology | H127: 1
D128: Surgery: Colon and Rectal | E128: 4 | G128: Urology | H128: 1
D129: Surgery: General | E129: 5 | G129: Neurology: Stroke | H129: 1
D130: Surgery: Neurological | E130: 4 | G130: Pathology: Hematopathology | H130: 1
D131: Surgery: Oncology | E131: 4 | G131: Pediatrics: Bone Marrow Transplant * | H131: 1
D132: Surgery: Oral | E132: 2 | G132: Surgery: Burn | H132: 1
D133: Surgery: Plastic and Reconstruction | E133: 5 | G133: Surgery: Pediatric Cardiac | H133: 1
D134: Surgery: Plastic and Reconstruction-Hand | E134: 1 | G134: Surgery: Pediatric Neurosurgery | H134: 1
D135: Surgery: Thoracic (Primary) | E135: 4 | G135: PhD or N/A | H135: 1
D136: Surgery: Transplant | E136: 5 | G136: [select]
D137: Surgery: Transplant-Kidney | E137: 1
D138: Surgery: Transplant-Liver | E138: 1
D139: Surgery: Trauma | E139: 4
D140: Surgery: Trauma-Burn | E140: 3
D141: Surgery: Vascular (Primary) | E141: 5
D142: Urgent Care | E142: 2
D143: Urology | E143: 4
D144: NP (Nonsurgical/Nonprimary Care) | E144: 4
D145: NP: Acute Care | E145: 3
D146: NP: Adult | E146: 2
D147: NP: Pediatric/Child Health | E147: 4
D148: Ophthalmology: Oculoplastic and Reconstructive Surgery | E148: 2
D149: Optometrist | E149: 3
D150: PhD or N/A | E150: 4
D151: Research | E151: 4
D152: Certified Registered Nurse Anesthetist | E152: 3
D153: Licensed Clinical Social Worker | E153: 3
D154: NP (Primary Care) | E154: 3
D155: NP (Surgical) | E155: 3
D156: NP: Cardiology | E156: 3
D157: NP: Hematology/Oncology | E157: 3
D158: NP: Neurology | E158: 3
D159: NP: Pulmonary Medicine | E159: 3
D160: Nurse Midwife: Outpatient/Inpatient Deliveries | E160: 3
D161: PA (Nonsurgical/Nonprimary Care) | E161: 3
D162: PA: Emergency Medicine | E162: 3
D163: PA: Surgery: General | E163: 3
D164: NP: Anesthesiology | E164: 2
D165: NP: Emergency Medicine | E165: 2
D166: NP: Endocrinology | E166: 2
D167: NP: Family Medicine (without OB) | E167: 2
D168: NP: Gastroenterology | E168: 2
D169: NP: Gerontology/Elder Health | E169: 2
D170: NP: Hospitalist (Primary Care) | E170: 2
D171: NP: Internal Medicine | E171: 2
D172: NP: Neonatal/Perinatal | E172: 2
D173: NP: Nephrology | E173: 2
D174: NP: Neurosurgery | E174: 2
D175: NP: OB/GYN/Women's Health | E175: 2
D176: NP: Orthopedics (Nonsurgical/Nonprimary Care) | E176: 2
D177: NP: Orthopedics (Surgical) | E177: 2
D178: NP: Psychiatry | E178: 2
D179: NP: Urology | E179: 2
D180: PA (Primary Care) | E180: 2
D181: PA (Surgical) | E181: 2
D182: PA: Cardiology | E182: 2
D183: PA: Cardiothoracic Surgery | E183: 2
D184: PA: Gastroenterology | E184: 2
D185: PA: Internal Medicine | E185: 2
D186: PA: Neurology | E186: 2
D187: PA: OB/GYN/Women's Health | E187: 2
D188: PA: Orthopedic (Surgical) | E188: 2
D189: PA: Otorhinolaryngology | E189: 2
D190: PA: Pediatric | E190: 2
D191: Physical Therapist | E191: 2
D192: Anesthesia Assistant | E192: 1
D193: Bariatrics (Nonsurgical)/Obesity Medicine | E193: 1
D194: Chiropractor | E194: 1
D195: Dentistry | E195: 1
D196: Dietician/Nutritionist | E196: 1
D197: (blank) | E197: 1
D198: NP: Allergy/Immunology | E198: 1
D199: NP: Dermatology | E199: 1
D200: NP: Family Medicine (with OB) | E200: 1
D201: NP: Otorhinolaryngology | E201: 1
... 33 more rows

Sheet COMP BCHMK
A4: Key | B4: Specialty | C4: Code | D4: Source | E4: Type | F4: Category | G4: Rank | H4: Degress | I4: Year | J4: P25 | K4: P30 | L4: P35 | M4: P40 | N4: P45 | O4: P50 | P4: P55 | Q4: P60 | R4: P65 | S4: P70 | T4: P75 | U4: P80 | V4: P85 | W4: P90
A5: =D5&E5&F5&G5&H5&B5&"L" -> MGMAAcademicAllNon-FacultyMDAllergy/ImmunologyL | B5: Allergy/Immunology | C5: Code | D5: MGMA | E5: Academic | F5: All | G5: Non-Faculty | H5: MD | I5: 2022 | J5: 0 | K5: =0 -> 0 | L5: =((O5-J5)/25)*10 + J5 -> 0 | M5: =((O5-J5)/25)*15 + J5 -> 0 | N5: =((O5-J5)/25)*20 + J5 -> 0 | O5: 0 | P5: =((T5-O5)/25)*5 + O5 -> 0 | Q5: =((T5-O5)/25)*10 + O5 -> 0 | R5: =((T5-O5)/25)*15 + O5 -> 0 | S5: =((T5-O5)/25)*20 + O5 -> 0 | T5: 0 | U5: =((W5-T5)/25)*5 + T5 -> 0 | V5: =((W5-T5)/25)*10 + T5 -> 0 | W5: 0
A6: =D6&E6&F6&G6&H6&B6&"L" -> MGMAAcademicAllNon-FacultyMDAnesthesiologyL | B6: Anesthesiology | C6: Code | D6: MGMA | E6: Academic | F6: All | G6: Non-Faculty | H6: MD | I6: 2022 | J6: 395394 | K6: =((O6-J6)/25)*5 + J6 -> 396861.2 | L6: =((O6-J6)/25)*10 + J6 -> 398328.4 | M6: =((O6-J6)/25)*15 + J6 -> 399795.6 | N6: =((O6-J6)/25)*20 + J6 -> 401262.8 | O6: $402,730 | P6: =((T6-O6)/25)*5 + O6 -> 412442 | Q6: =((T6-O6)/25)*10 + O6 -> 422154 | R6: =((T6-O6)/25)*15 + O6 -> 431866 | S6: =((T6-O6)/25)*20 + O6 -> 441578 | T6: $451,290 | U6: =((W6-T6)/25)*5 + T6 -> 468713.8 | V6: =((W6-T6)/25)*10 + T6 -> 486137.6 | W6: $538,409
A7: MGMAAcademicAllNon-FacultyMDAnesthesiology: CardiologyL | B7: Anesthesiology: Cardiology | C7: Code | D7: MGMA | E7: Academic | F7: All | G7: Non-Faculty | H7: MD | I7: 2022 | J7: 0 | K7: =((O7-J7)/25)*5 + J7 -> 0 | L7: 0 | M7: 0 | N7: 0 | O7: 0 | P7: 0 | Q7: 0 | R7: 0 | S7: 0 | T7: 0 | U7: 0 | V7: 0 | W7: 0
A8: MGMAAcademicAllNon-FacultyMDAnesthesiology: Pain ManagementL | B8: Anesthesiology: Pain Management | C8: Code | D8: MGMA | E8: Academic | F8: All | G8: Non-Faculty | H8: MD | I8: 2022 | J8: 0 | K8: =((O8-J8)/25)*5 + J8 -> 0 | L8: 0 | M8: 0 | N8: 0 | O8: 0 | P8: 0 | Q8: 0 | R8: 0 | S8: 0 | T8: 0 | U8: 0 | V8: 0 | W8: 0
A9: MGMAAcademicAllNon-FacultyMDCardiology: ElectrophysiologyL | B9: Cardiology: Electrophysiology | C9: Code | D9: MGMA | E9: Academic | F9: All | G9: Non-Faculty | H9: MD | I9: 2022 | J9: 0 | K9: 0 | L9: 0 | M9: 0 | N9: 0 | O9: 0 | P9: 0 | Q9: 0 | R9: 0 | S9: 0 | T9: 0 | U9: 0 | V9: 0 | W9: 0
A10: MGMAAcademicAllNon-FacultyMDCardiology: InvasiveL | B10: Cardiology: Invasive | C10: Code | D10: MGMA | E10: Academic | F10: All | G10: Non-Faculty | H10: MD | I10: 2022 | J10: 0 | K10: 0 | L10: 0 | M10: 0 | N10: 0 | O10: 0 | P10: 0 | Q10: 0 | R10: 0 | S10: 0 | T10: 0 | U10: 0 | V10: 0 | W10: 0
A11: MGMAAcademicAllNon-FacultyMDCardiology: Invasive-InterventionalL | B11: Cardiology: Invasive-Interventional | C11: Code | D11: MGMA | E11: Academic | F11: All | G11: Non-Faculty | H11: MD | I11: 2022 | J11: $275,821 | K11: 303651.6 | L11: 331482.2 | M11: 359312.8 | N11: 387143.4 | O11: $414,974 | P11: 430389.8 | Q11: 445805.6 | R11: 461221.4 | S11: 476637.2 | T11: $492,053 | U11: 516465.4 | V11: 540877.8 | W11: $614,115
A12: MGMAAcademicAllNon-FacultyMDCardiology: NoninvasiveL | B12: Cardiology: Noninvasive | C12: Code | D12: MGMA | E12: Academic | F12: All | G12: Non-Faculty | H12: MD | I12: 2022 | J12: $254,514 | K12: 265604.6 | L12: 276695.2 | M12: 287785.8 | N12: 298876.4 | O12: $309,967 | P12: 323895.8 | Q12: 337824.6 | R12: 351753.4 | S12: 365682.2 | T12: $379,611 | U12: 393345.2 | V12: 407079.4 | W12: $448,282
A13: MGMAAcademicAllNon-FacultyMDClinical PharmacologyL | B13: Clinical Pharmacology | C13: Code | D13: MGMA | E13: Academic | F13: All | G13: Non-Faculty | H13: MD | I13: 2022 | J13: 0 | K13: 0 | L13: 0 | M13: 0 | N13: 0 | O13: 0 | P13: 0 | Q13: 0 | R13: 0 | S13: 0 | T13: 0 | U13: 0 | V13: 0 | W13: 0
A14: MGMAAcademicAllNon-FacultyMDCritical Care: IntensivistL | B14: Critical Care: Intensivist | C14: Code | D14: MGMA | E14: Academic | F14: All | G14: Non-Faculty | H14: MD | I14: 2022 | J14: $289,753 | K14: 304418 | L14: 319083 | M14: 333748 | N14: 348413 | O14: $363,078 | P14: 378235.6 | Q14: 393393.2 | R14: 408550.8 | S14: 423708.4 | T14: $438,866 | U14: 464662.6 | V14: 490459.2 | W14: $567,849
A15: MGMAAcademicAllNon-FacultyMDDentistryL | B15: Dentistry | C15: Code | D15: MGMA | E15: Academic | F15: All | G15: Non-Faculty | H15: MD | I15: 2022 | J15: 0 | K15: 0 | L15: 0 | M15: 0 | N15: 0 | O15: 0 | P15: 0 | Q15: 0 | R15: 0 | S15: 0 | T15: 0 | U15: 0 | V15: 0 | W15: 0
A16: MGMAAcademicAllNon-FacultyMDDermatologyL | B16: Dermatology | C16: Code | D16: MGMA | E16: Academic | F16: All | G16: Non-Faculty | H16: MD | I16: 2022 | J16: 0 | K16: 0 | L16: 0 | M16: 0 | N16: 0 | O16: 0 | P16: 0 | Q16: 0 | R16: 0 | S16: 0 | T16: 0 | U16: 0 | V16: 0 | W16: 0
A17: MGMAAcademicAllNon-FacultyMDDermatology: DermatopathologyL | B17: Dermatology: Dermatopathology | C17: Code | D17: MGMA | E17: Academic | F17: All | G17: Non-Faculty | H17: MD | I17: 2022 | J17: 0 | K17: 0 | L17: 0 | M17: 0 | N17: 0 | O17: 0 | P17: 0 | Q17: 0 | R17: 0 | S17: 0 | T17: 0 | U17: 0 | V17: 0 | W17: 0
A18: MGMAAcademicAllNon-FacultyMDDermatology: Mohs SurgeryL | B18: Dermatology: Mohs Surgery | C18: Code | D18: MGMA | E18: Academic | F18: All | G18: Non-Faculty | H18: MD | I18: 2022 | J18: 0 | K18: 0 | L18: 0 | M18: 0 | N18: 0 | O18: 0 | P18: 0 | Q18: 0 | R18: 0 | S18: 0 | T18: 0 | U18: 0 | V18: 0 | W18: 0
A19: MGMAAcademicAllNon-FacultyMDEmergency MedicineL | B19: Emergency Medicine | C19: Code | D19: MGMA | E19: Academic | F19: All | G19: Non-Faculty | H19: MD | I19: 2022 | J19: $234,694 | K19: 248800.8 | L19: 262907.6 | M19: 277014.4 | N19: 291121.2 | O19: $305,228 | P19: 308724 | Q19: 312220 | R19: 315716 | S19: 319212 | T19: $322,708 | U19: 335860 | V19: 349012 | W19: $388,468
A20: MGMAAcademicAllNon-FacultyMDEndocrinology/MetabolismL | B20: Endocrinology/Metabolism | C20: Code | D20: MGMA | E20: Academic | F20: All | G20: Non-Faculty | H20: MD | I20: 2022 | J20: 0 | K20: 0 | L20: 0 | M20: 0 | N20: 0 | O20: 0 | P20: 0 | Q20: 0 | R20: 0 | S20: 0 | T20: 0 | U20: 0 | V20: 0 | W20: 0
A21: MGMAAcademicAllNon-FacultyMDFamily Medicine (with OB)L | B21: Family Medicine (with OB) | C21: Code | D21: MGMA | E21: Academic | F21: All | G21: Non-Faculty | H21: MD | I21: 2022 | J21: 0 | K21: 0 | L21: 0 | M21: 0 | N21: 0 | O21: 0 | P21: 0 | Q21: 0 | R21: 0 | S21: 0 | T21: 0 | U21: 0 | V21: 0 | W21: 0
A22: MGMAAcademicAllNon-FacultyMDFamily Medicine (without OB)L | B22: Family Medicine (without OB) | C22: Code | D22: MGMA | E22: Academic | F22: All | G22: Non-Faculty | H22: MD | I22: 2022 | J22: 0 | K22: 0 | L22: 0 | M22: 0 | N22: 0 | O22: 0 | P22: 0 | Q22: 0 | R22: 0 | S22: 0 | T22: 0 | U22: 0 | V22: 0 | W22: 0
A23: MGMAAcademicAllNon-FacultyMDFamily Medicine: Ambulatory Only (No Inpatient Work)L | B23: Family Medicine: Ambulatory Only (No Inpatient Work) | C23: Code | D23: MGMA | E23: Academic | F23: All | G23: Non-Faculty | H23: MD | I23: 2022 | J23: 0 | K23: 0 | L23: 0 | M23: 0 | N23: 0 | O23: 0 | P23: 0 | Q23: 0 | R23: 0 | S23: 0 | T23: 0 | U23: 0 | V23: 0 | W23: 0
A24: MGMAAcademicAllNon-FacultyMDFamily Medicine: Sports MedicineL | B24: Family Medicine: Sports Medicine | C24: Code | D24: MGMA | E24: Academic | F24: All | G24: Non-Faculty | H24: MD | I24: 2022 | J24: 0 | K24: 0 | L24: 0 | M24: 0 | N24: 0 | O24: 0 | P24: 0 | Q24: 0 | R24: 0 | S24: 0 | T24: 0 | U24: 0 | V24: 0 | W24: 0
A25: MGMAAcademicAllNon-FacultyMDFamily Medicine: Urgent CareL | B25: Family Medicine: Urgent Care | C25: Code | D25: MGMA | E25: Academic | F25: All | G25: Non-Faculty | H25: MD | I25: 2022 | J25: 0 | K25: 0 | L25: 0 | M25: 0 | N25: 0 | O25: 0 | P25: 0 | Q25: 0 | R25: 0 | S25: 0 | T25: 0 | U25: 0 | V25: 0 | W25: 0
A26: MGMAAcademicAllNon-FacultyMDGastroenterologyL | B26: Gastroenterology | C26: Code | D26: MGMA | E26: Academic | F26: All | G26: Non-Faculty | H26: MD | I26: 2022 | J26: $173,029 | K26: 193154.2 | L26: 213279.4 | M26: 233404.6 | N26: 253529.8 | O26: $273,655 | P26: 293951 | Q26: 314247 | R26: 334543 | S26: 354839 | T26: $375,135 | U26: 395389.8 | V26: 415644.6 | W26: $476,409
A27: MGMAAcademicAllNon-FacultyMDGastroenterology: HepatologyL | B27: Gastroenterology: Hepatology | C27: Code | D27: MGMA | E27: Academic | F27: All | G27: Non-Faculty | H27: MD | I27: 2022 | J27: 0 | K27: 0 | L27: 0 | M27: 0 | N27: 0 | O27: 0 | P27: 0 | Q27: 0 | R27: 0 | S27: 0 | T27: 0 | U27: 0 | V27: 0 | W27: 0
A28: MGMAAcademicAllNon-FacultyMDGeneticsL | B28: Genetics | C28: Code | D28: MGMA | E28: Academic | F28: All | G28: Non-Faculty | H28: MD | I28: 2022 | J28: 0 | K28: 0 | L28: 0 | M28: 0 | N28: 0 | O28: 0 | P28: 0 | Q28: 0 | R28: 0 | S28: 0 | T28: 0 | U28: 0 | V28: 0 | W28: 0
A29: MGMAAcademicAllNon-FacultyMDGeriatricsL | B29: Geriatrics | C29: Code | D29: MGMA | E29: Academic | F29: All | G29: Non-Faculty | H29: MD | I29: 2022 | J29: 0 | K29: 0 | L29: 0 | M29: 0 | N29: 0 | O29: 0 | P29: 0 | Q29: 0 | R29: 0 | S29: 0 | T29: 0 | U29: 0 | V29: 0 | W29: 0
A30: MGMAAcademicAllNon-FacultyMDHematology/OncologyL | B30: Hematology/Oncology | C30: Code | D30: MGMA | E30: Academic | F30: All | G30: Non-Faculty | H30: MD | I30: 2022 | J30: 0 | K30: 0 | L30: 0 | M30: 0 | N30: 0 | O30: 0 | P30: 0 | Q30: 0 | R30: 0 | S30: 0 | T30: 0 | U30: 0 | V30: 0 | W30: 0
A31: MGMAAcademicAllNon-FacultyMDHematology/Oncology: Oncology (Only)L | B31: Hematology/Oncology: Oncology (Only) | C31: Code | D31: MGMA | E31: Academic | F31: All | G31: Non-Faculty | H31: MD | I31: 2022 | J31: 0 | K31: 0 | L31: 0 | M31: 0 | N31: 0 | O31: 0 | P31: 0 | Q31: 0 | R31: 0 | S31: 0 | T31: 0 | U31: 0 | V31: 0 | W31: 0
A32: MGMAAcademicAllNon-FacultyMDHospice/Palliative CareL | B32: Hospice/Palliative Care | C32: Code | D32: MGMA | E32: Academic | F32: All | G32: Non-Faculty | H32: MD | I32: 2022 | J32: $250,581 | K32: 251367.6 | L32: 252154.2 | M32: 252940.8 | N32: 253727.4 | O32: $254,514 | P32: 255496.6 | Q32: 256479.2 | R32: 257461.8 | S32: 258444.4 | T32: $259,427 | U32: 262054.4 | V32: 264681.8 | W32: $272,564
A33: MGMAAcademicAllNon-FacultyMDHospitalist: Family MedicineL | B33: Hospitalist: Family Medicine | C33: Code | D33: MGMA | E33: Academic | F33: All | G33: Non-Faculty | H33: MD | I33: 2022 | J33: 0 | K33: 0 | L33: 0 | M33: 0 | N33: 0 | O33: 0 | P33: 0 | Q33: 0 | R33: 0 | S33: 0 | T33: 0 | U33: 0 | V33: 0 | W33: 0
A34: MGMAAcademicAllNon-FacultyMDHospitalist: Internal MedicineL | B34: Hospitalist: Internal Medicine | C34: Code | D34: MGMA | E34: Academic | F34: All | G34: Non-Faculty | H34: MD | I34: 2022 | J34: $245,235 | K34: 247090.8 | L34: 248946.6 | M34: 250802.4 | N34: 252658.2 | O34: $254,514 | P34: 260152.2 | Q34: 265790.4 | R34: 271428.6 | S34: 277066.8 | T34: $282,705 | U34: 288786.6 | V34: 294868.2 | W34: $313,113
A35: MGMAAcademicAllNon-FacultyMDHospitalist: NocturnistL | B35: Hospitalist: Nocturnist | C35: Code | D35: MGMA | E35: Academic | F35: All | G35: Non-Faculty | H35: MD | I35: 2022 | J35: 0 | K35: 0 | L35: 0 | M35: 0 | N35: 0 | O35: 0 | P35: 0 | Q35: 0 | R35: 0 | S35: 0 | T35: 0 | U35: 0 | V35: 0 | W35: 0
A36: MGMAAcademicAllNon-FacultyMDHyperbaric Medicine/Wound CareL | B36: Hyperbaric Medicine/Wound Care | C36: Code | D36: MGMA | E36: Academic | F36: All | G36: Non-Faculty | H36: MD | I36: 2022 | J36: 0 | K36: 0 | L36: 0 | M36: 0 | N36: 0 | O36: 0 | P36: 0 | Q36: 0 | R36: 0 | S36: 0 | T36: 0 | U36: 0 | V36: 0 | W36: 0
A37: MGMAAcademicAllNon-FacultyMDInfectious DiseaseL | B37: Infectious Disease | C37: Code | D37: MGMA | E37: Academic | F37: All | G37: Non-Faculty | H37: MD | I37: 2022 | J37: $187,246 | K37: 197762 | L37: 208278 | M37: 218794 | N37: 229310 | O37: $239,826 | P37: 245815.6 | Q37: 251805.2 | R37: 257794.8 | S37: 263784.4 | T37: $269,774 | U37: 278278.6 | V37: 286783.2 | W37: $312,297
A38: MGMAAcademicAllNon-FacultyMDInternal Medicine: GeneralL | B38: Internal Medicine: General | C38: Code | D38: MGMA | E38: Academic | F38: All | G38: Non-Faculty | H38: MD | I38: 2022 | J38: $165,593 | K38: 183377.2 | L38: 201161.4 | M38: 218945.6 | N38: 236729.8 | O38: $254,514 | P38: 254514 | Q38: 254514 | R38: 254514 | S38: 254514 | T38: $254,514 | U38: 265698.6 | V38: 276883.2 | W38: $310,437
A39: MGMAAcademicAllNon-FacultyMDInternal Medicine: Ambulatory Only (No Inpatient Work)L | B39: Internal Medicine: Ambulatory Only (No Inpatient Work) | C39: Code | D39: MGMA | E39: Academic | F39: All | G39: Non-Faculty | H39: MD | I39: 2022 | J39: 0 | K39: 0 | L39: 0 | M39: 0 | N39: 0 | O39: 0 | P39: 0 | Q39: 0 | R39: 0 | S39: 0 | T39: 0 | U39: 0 | V39: 0 | W39: 0
A40: MGMAAcademicAllNon-FacultyMDNephrologyL | B40: Nephrology | C40: Code | D40: MGMA | E40: Academic | F40: All | G40: Non-Faculty | H40: MD | I40: 2022 | J40: 0 | K40: 0 | L40: 0 | M40: 0 | N40: 0 | O40: 0 | P40: 0 | Q40: 0 | R40: 0 | S40: 0 | T40: 0 | U40: 0 | V40: 0 | W40: 0
A41: MGMAAcademicAllNon-FacultyMDNephrology: TransplantL | B41: Nephrology: Transplant | C41: Code | D41: MGMA | E41: Academic | F41: All | G41: Non-Faculty | H41: MD | I41: 2022 | J41: 0 | K41: 0 | L41: 0 | M41: 0 | N41: 0 | O41: 0 | P41: 0 | Q41: 0 | R41: 0 | S41: 0 | T41: 0 | U41: 0 | V41: 0 | W41: 0
A42: MGMAAcademicAllNon-FacultyMDNeurologyL | B42: Neurology | C42: Code | D42: MGMA | E42: Academic | F42: All | G42: Non-Faculty | H42: MD | I42: 2022 | J42: $223,139 | K42: 231208.6 | L42: 239278.2 | M42: 247347.8 | N42: 255417.4 | O42: $263,487 | P42: 272767.6 | Q42: 282048.2 | R42: 291328.8 | S42: 300609.4 | T42: $309,890 | U42: 324551.4 | V42: 339212.8 | W42: $383,197
A43: MGMAAcademicAllNon-FacultyMDNeurology: Epilepsy/EEGL | B43: Neurology: Epilepsy/EEG | C43: Code | D43: MGMA | E43: Academic | F43: All | G43: Non-Faculty | H43: MD | I43: 2022 | J43: 0 | K43: 0 | L43: 0 | M43: 0 | N43: 0 | O43: 0 | P43: 0 | Q43: 0 | R43: 0 | S43: 0 | T43: 0 | U43: 0 | V43: 0 | W43: 0
A44: MGMAAcademicAllNon-FacultyMDNeurology: Neurocritical CareL | B44: Neurology: Neurocritical Care | C44: Code | D44: MGMA | E44: Academic | F44: All | G44: Non-Faculty | H44: MD | I44: 2022 | J44: 0 | K44: 0 | L44: 0 | M44: 0 | N44: 0 | O44: 0 | P44: 0 | Q44: 0 | R44: 0 | S44: 0 | T44: 0 | U44: 0 | V44: 0 | W44: 0
A45: MGMAAcademicAllNon-FacultyMDNeurology: Neuromuscular MedicineL | B45: Neurology: Neuromuscular Medicine | C45: Code | D45: MGMA | E45: Academic | F45: All | G45: Non-Faculty | H45: MD | I45: 2022 | J45: 0 | K45: 0 | L45: 0 | M45: 0 | N45: 0 | O45: 0 | P45: 0 | Q45: 0 | R45: 0 | S45: 0 | T45: 0 | U45: 0 | V45: 0 | W45: 0
A46: MGMAAcademicAllNon-FacultyMDNeurology: Stroke MedicineL | B46: Neurology: Stroke Medicine | C46: Code | D46: MGMA | E46: Academic | F46: All | G46: Non-Faculty | H46: MD | I46: 2022 | J46: 0 | K46: 0 | L46: 0 | M46: 0 | N46: 0 | O46: 0 | P46: 0 | Q46: 0 | R46: 0 | S46: 0 | T46: 0 | U46: 0 | V46: 0 | W46: 0
A47: MGMAAcademicAllNon-FacultyMDObstetrics/Gynecology: GeneralL | B47: Obstetrics/Gynecology: General | C47: Code | D47: MGMA | E47: Academic | F47: All | G47: Non-Faculty | H47: MD | I47: 2022 | J47: $129,493 | K47: 162063 | L47: 194633 | M47: 227203 | N47: 259773 | O47: $292,343 | P47: 296526.4 | Q47: 300709.8 | R47: 304893.2 | S47: 309076.6 | T47: $313,260 | U47: 325480.6 | V47: 337701.2 | W47: $374,363
A48: MGMAAcademicAllNon-FacultyMDOB/GYN: Gynecology (Only)L | B48: OB/GYN: Gynecology (Only) | C48: Code | D48: MGMA | E48: Academic | F48: All | G48: Non-Faculty | H48: MD | I48: 2022 | J48: 0 | K48: 0 | L48: 0 | M48: 0 | N48: 0 | O48: 0 | P48: 0 | Q48: 0 | R48: 0 | S48: 0 | T48: 0 | U48: 0 | V48: 0 | W48: 0
A49: MGMAAcademicAllNon-FacultyMDOB/GYN: Gynecological OncologyL | B49: OB/GYN: Gynecological Oncology | C49: Code | D49: MGMA | E49: Academic | F49: All | G49: Non-Faculty | H49: MD | I49: 2022 | J49: 0 | K49: 0 | L49: 0 | M49: 0 | N49: 0 | O49: 0 | P49: 0 | Q49: 0 | R49: 0 | S49: 0 | T49: 0 | U49: 0 | V49: 0 | W49: 0
A50: MGMAAcademicAllNon-FacultyMDOB/GYN: Maternal and Fetal MedicineL | B50: OB/GYN: Maternal and Fetal Medicine | C50: Code | D50: MGMA | E50: Academic | F50: All | G50: Non-Faculty | H50: MD | I50: 2022 | J50: 0 | K50: 0 | L50: 0 | M50: 0 | N50: 0 | O50: 0 | P50: 0 | Q50: 0 | R50: 0 | S50: 0 | T50: 0 | U50: 0 | V50: 0 | W50: 0
A51: MGMAAcademicAllNon-FacultyMDOB/GYN: Minimally Invasive Gynecologic SurgeryL | B51: OB/GYN: Minimally Invasive Gynecologic Surgery | C51: Code | D51: MGMA | E51: Academic | F51: All | G51: Non-Faculty | H51: MD | I51: 2022 | J51: 0 | K51: 0 | L51: 0 | M51: 0 | N51: 0 | O51: 0 | P51: 0 | Q51: 0 | R51: 0 | S51: 0 | T51: 0 | U51: 0 | V51: 0 | W51: 0
A52: MGMAAcademicAllNon-FacultyMDOB/GYN: Reproductive EndocrinologyL | B52: OB/GYN: Reproductive Endocrinology | C52: Code | D52: MGMA | E52: Academic | F52: All | G52: Non-Faculty | H52: MD | I52: 2022 | J52: 0 | K52: 0 | L52: 0 | M52: 0 | N52: 0 | O52: 0 | P52: 0 | Q52: 0 | R52: 0 | S52: 0 | T52: 0 | U52: 0 | V52: 0 | W52: 0
A53: MGMAAcademicAllNon-FacultyMDOB/GYN: UrogynecologyL | B53: OB/GYN: Urogynecology | C53: Code | D53: MGMA | E53: Academic | F53: All | G53: Non-Faculty | H53: MD | I53: 2022 | J53: 0 | K53: 0 | L53: 0 | M53: 0 | N53: 0 | O53: 0 | P53: 0 | Q53: 0 | R53: 0 | S53: 0 | T53: 0 | U53: 0 | V53: 0 | W53: 0
A54: MGMAAcademicAllNon-FacultyMDOccupational MedicineL | B54: Occupational Medicine | C54: Code | D54: MGMA | E54: Academic | F54: All | G54: Non-Faculty | H54: MD | I54: 2022 | J54: 0 | K54: 0 | L54: 0 | M54: 0 | N54: 0 | O54: 0 | P54: 0 | Q54: 0 | R54: 0 | S54: 0 | T54: 0 | U54: 0 | V54: 0 | W54: 0
A55: MGMAAcademicAllNon-FacultyMDOphthalmologyL | B55: Ophthalmology | C55: Code | D55: MGMA | E55: Academic | F55: All | G55: Non-Faculty | H55: MD | I55: 2022 | J55: $123,390 | K55: 157729.4 | L55: 192068.8 | M55: 226408.2 | N55: 260747.6 | O55: $295,087 | P55: 295087 | Q55: 295087 | R55: 295087 | S55: 295087 | T55: $295,087 | U55: 311456.4 | V55: 327825.8 | W55: $376,934
A56: MGMAAcademicAllNon-FacultyMDOphthalmology: Corneal and Refractive SurgeryL | B56: Ophthalmology: Corneal and Refractive Surgery | C56: Code | D56: MGMA | E56: Academic | F56: All | G56: Non-Faculty | H56: MD | I56: 2022 | J56: 0 | K56: 0 | L56: 0 | M56: 0 | N56: 0 | O56: 0 | P56: 0 | Q56: 0 | R56: 0 | S56: 0 | T56: 0 | U56: 0 | V56: 0 | W56: 0
A57: MGMAAcademicAllNon-FacultyMDOphthalmology: GlaucomaL | B57: Ophthalmology: Glaucoma | C57: Code | D57: MGMA | E57: Academic | F57: All | G57: Non-Faculty | H57: MD | I57: 2022 | J57: 0 | K57: 0 | L57: 0 | M57: 0 | N57: 0 | O57: 0 | P57: 0 | Q57: 0 | R57: 0 | S57: 0 | T57: 0 | U57: 0 | V57: 0 | W57: 0
A58: MGMAAcademicAllNon-FacultyMDOphthalmology: NeurologyL | B58: Ophthalmology: Neurology | C58: Code | D58: MGMA | E58: Academic | F58: All | G58: Non-Faculty | H58: MD | I58: 2022 | J58: 0 | K58: 0 | L58: 0 | M58: 0 | N58: 0 | O58: 0 | P58: 0 | Q58: 0 | R58: 0 | S58: 0 | T58: 0 | U58: 0 | V58: 0 | W58: 0
A59: MGMAAcademicAllNon-FacultyMDOphthalmology: Oculoplastic and Reconstructive SurgeryL | B59: Ophthalmology: Oculoplastic and Reconstructive Surgery | C59: Code | D59: MGMA | E59: Academic | F59: All | G59: Non-Faculty | H59: MD | I59: 2022 | J59: 0 | K59: 0 | L59: 0 | M59: 0 | N59: 0 | O59: 0 | P59: 0 | Q59: 0 | R59: 0 | S59: 0 | T59: 0 | U59: 0 | V59: 0 | W59: 0
A60: MGMAAcademicAllNon-FacultyMDOphthalmology: RetinaL | B60: Ophthalmology: Retina | C60: Code | D60: MGMA | E60: Academic | F60: All | G60: Non-Faculty | H60: MD | I60: 2022 | J60: 0 | K60: 0 | L60: 0 | M60: 0 | N60: 0 | O60: 0 | P60: 0 | Q60: 0 | R60: 0 | S60: 0 | T60: 0 | U60: 0 | V60: 0 | W60: 0
A61: MGMAAcademicAllNon-FacultyMDOrthopedic (Nonsurgical)L | B61: Orthopedic (Nonsurgical) | C61: Code | D61: MGMA | E61: Academic | F61: All | G61: Non-Faculty | H61: MD | I61: 2022 | J61: 0 | K61: 0 | L61: 0 | M61: 0 | N61: 0 | O61: 0 | P61: 0 | Q61: 0 | R61: 0 | S61: 0 | T61: 0 | U61: 0 | V61: 0 | W61: 0
A62: MGMAAcademicAllNon-FacultyMDOrthopedic Surgery: GeneralL | B62: Orthopedic Surgery: General | C62: Code | D62: MGMA | E62: Academic | F62: All | G62: Non-Faculty | H62: MD | I62: 2022 | J62: 0 | K62: 0 | L62: 0 | M62: 0 | N62: 0 | O62: 0 | P62: 0 | Q62: 0 | R62: 0 | S62: 0 | T62: 0 | U62: 0 | V62: 0 | W62: 0
A63: MGMAAcademicAllNon-FacultyMDOrthopedic Surgery: Foot and AnkleL | B63: Orthopedic Surgery: Foot and Ankle | C63: Code | D63: MGMA | E63: Academic | F63: All | G63: Non-Faculty | H63: MD | I63: 2022 | J63: 0 | K63: 0 | L63: 0 | M63: 0 | N63: 0 | O63: 0 | P63: 0 | Q63: 0 | R63: 0 | S63: 0 | T63: 0 | U63: 0 | V63: 0 | W63: 0
A64: MGMAAcademicAllNon-FacultyMDOrthopedic Surgery: HandL | B64: Orthopedic Surgery: Hand | C64: Code | D64: MGMA | E64: Academic | F64: All | G64: Non-Faculty | H64: MD | I64: 2022 | J64: 0 | K64: 0 | L64: 0 | M64: 0 | N64: 0 | O64: 0 | P64: 0 | Q64: 0 | R64: 0 | S64: 0 | T64: 0 | U64: 0 | V64: 0 | W64: 0
A65: MGMAAcademicAllNon-FacultyMDOrthopedic Surgery: Hip and JointL | B65: Orthopedic Surgery: Hip and Joint | C65: Code | D65: MGMA | E65: Academic | F65: All | G65: Non-Faculty | H65: MD | I65: 2022 | J65: 0 | K65: 0 | L65: 0 | M65: 0 | N65: 0 | O65: 0 | P65: 0 | Q65: 0 | R65: 0 | S65: 0 | T65: 0 | U65: 0 | V65: 0 | W65: 0
A66: MGMAAcademicAllNon-FacultyMDOrthopedic Surgery: OncologyL | B66: Orthopedic Surgery: Oncology | C66: Code | D66: MGMA | E66: Academic | F66: All | G66: Non-Faculty | H66: MD | I66: 2022 | J66: 0 | K66: 0 | L66: 0 | M66: 0 | N66: 0 | O66: 0 | P66: 0 | Q66: 0 | R66: 0 | S66: 0 | T66: 0 | U66: 0 | V66: 0 | W66: 0
A67: MGMAAcademicAllNon-FacultyMDOrthopedic Surgery: Shoulder/ElbowL | B67: Orthopedic Surgery: Shoulder/Elbow | C67: Code | D67: MGMA | E67: Academic | F67: All | G67: Non-Faculty | H67: MD | I67: 2022 | J67: 0 | K67: 0 | L67: 0 | M67: 0 | N67: 0 | O67: 0 | P67: 0 | Q67: 0 | R67: 0 | S67: 0 | T67: 0 | U67: 0 | V67: 0 | W67: 0
A68: MGMAAcademicAllNon-FacultyMDOrthopedic Surgery: SpineL | B68: Orthopedic Surgery: Spine | C68: Code | D68: MGMA | E68: Academic | F68: All | G68: Non-Faculty | H68: MD | I68: 2022 | J68: 0 | K68: 0 | L68: 0 | M68: 0 | N68: 0 | O68: 0 | P68: 0 | Q68: 0 | R68: 0 | S68: 0 | T68: 0 | U68: 0 | V68: 0 | W68: 0
A69: MGMAAcademicAllNon-FacultyMDOrthopedic Surgery: Sports MedicineL | B69: Orthopedic Surgery: Sports Medicine | C69: Code | D69: MGMA | E69: Academic | F69: All | G69: Non-Faculty | H69: MD | I69: 2022 | J69: 0 | K69: 0 | L69: 0 | M69: 0 | N69: 0 | O69: 0 | P69: 0 | Q69: 0 | R69: 0 | S69: 0 | T69: 0 | U69: 0 | V69: 0 | W69: 0
A70: =D70&E70&F70&G70&H70&B70&"L" -> MGMAAcademicAllNon-FacultyMDOrthopedic Surgery: TraumaL | B70: Orthopedic Surgery: Trauma | C70: Code | D70: MGMA | E70: Academic | F70: All | G70: Non-Faculty | H70: MD | I70: 2022 | J70: 0 | K70: 0 | L70: =((O70-J70)/25)*10 + J70 -> 0 | M70: =((O70-J70)/25)*15 + J70 -> 0 | N70: =((O70-J70)/25)*20 + J70 -> 0 | O70: 0 | P70: =((T70-O70)/25)*5 + O70 -> 0 | Q70: =((T70-O70)/25)*10 + O70 -> 0 | R70: =((T70-O70)/25)*15 + O70 -> 0 | S70: =((T70-O70)/25)*20 + O70 -> 0 | T70: 0 | U70: =((W70-T70)/25)*5 + T70 -> 0 | V70: =((W70-T70)/25)*10 + T70 -> 0 | W70: 0
A71: MGMAAcademicAllNon-FacultyMDOtorhinolaryngologyL | B71: Otorhinolaryngology | C71: Code | D71: MGMA | E71: Academic | F71: All | G71: Non-Faculty | H71: MD | I71: 2022 | J71: 0 | K71: 0 | L71: 0 | M71: 0 | N71: 0 | O71: 0 | P71: 0 | Q71: 0 | R71: 0 | S71: 0 | T71: 0 | U71: 0 | V71: 0 | W71: 0
A72: MGMAAcademicAllNon-FacultyMDPain Management: NonanesthesiaL | B72: Pain Management: Nonanesthesia | C72: Code | D72: MGMA | E72: Academic | F72: All | G72: Non-Faculty | H72: MD | I72: 2022 | J72: $353,244 | K72: =((O72-J72)/25)*5 + J72 -> 369772.2 | L72: 386300.4 | M72: 402828.6 | N72: 419356.8 | O72: $435,885 | P72: 451689.6 | Q72: 467494.2 | R72: 483298.8 | S72: 499103.4 | T72: $514,908 | U72: 528427.2 | V72: 541946.4 | W72: $582,504
A73: MGMAAcademicAllNon-FacultyMDPathology: Anatomic and ClinicalL | B73: Pathology: Anatomic and Clinical | C73: Code | D73: MGMA | E73: Academic | F73: All | G73: Non-Faculty | H73: MD | I73: 2022 | J73: 0 | K73: 0 | L73: 0 | M73: 0 | N73: 0 | O73: 0 | P73: 0 | Q73: 0 | R73: 0 | S73: 0 | T73: 0 | U73: 0 | V73: 0 | W73: 0
A74: MGMAAcademicAllNon-FacultyMDPathology: AnatomicL | B74: Pathology: Anatomic | C74: Code | D74: MGMA | E74: Academic | F74: All | G74: Non-Faculty | H74: MD | I74: 2022 | J74: 0 | K74: 0 | L74: 0 | M74: 0 | N74: 0 | O74: 0 | P74: 0 | Q74: 0 | R74: 0 | S74: 0 | T74: 0 | U74: 0 | V74: 0 | W74: 0
A75: MGMAAcademicAllNon-FacultyMDPathology: Anatomic-AutopsyL | B75: Pathology: Anatomic-Autopsy | C75: Code | D75: MGMA | E75: Academic | F75: All | G75: Non-Faculty | H75: MD | I75: 2022 | J75: 0 | K75: 0 | L75: 0 | M75: 0 | N75: 0 | O75: 0 | P75: 0 | Q75: 0 | R75: 0 | S75: 0 | T75: 0 | U75: 0 | V75: 0 | W75: 0
A76: MGMAAcademicAllNon-FacultyMDPathology: Anatomic-CytopathologyL | B76: Pathology: Anatomic-Cytopathology | C76: Code | D76: MGMA | E76: Academic | F76: All | G76: Non-Faculty | H76: MD | I76: 2022 | J76: 0 | K76: 0 | L76: 0 | M76: 0 | N76: 0 | O76: 0 | P76: 0 | Q76: 0 | R76: 0 | S76: 0 | T76: 0 | U76: 0 | V76: 0 | W76: 0
A77: MGMAAcademicAllNon-FacultyMDPathology: Anatomic-NeuropathologyL | B77: Pathology: Anatomic-Neuropathology | C77: Code | D77: MGMA | E77: Academic | F77: All | G77: Non-Faculty | H77: MD | I77: 2022 | J77: 0 | K77: 0 | L77: 0 | M77: 0 | N77: 0 | O77: 0 | P77: 0 | Q77: 0 | R77: 0 | S77: 0 | T77: 0 | U77: 0 | V77: 0 | W77: 0
A78: MGMAAcademicAllNon-FacultyMDPathology: Anatomic-RenalL | B78: Pathology: Anatomic-Renal | C78: Code | D78: MGMA | E78: Academic | F78: All | G78: Non-Faculty | H78: MD | I78: 2022 | J78: 0 | K78: 0 | L78: 0 | M78: 0 | N78: 0 | O78: 0 | P78: 0 | Q78: 0 | R78: 0 | S78: 0 | T78: 0 | U78: 0 | V78: 0 | W78: 0
A79: MGMAAcademicAllNon-FacultyMDPathology: ClinicalL | B79: Pathology: Clinical | C79: Code | D79: MGMA | E79: Academic | F79: All | G79: Non-Faculty | H79: MD | I79: 2022 | J79: 0 | K79: 0 | L79: 0 | M79: 0 | N79: 0 | O79: 0 | P79: 0 | Q79: 0 | R79: 0 | S79: 0 | T79: 0 | U79: 0 | V79: 0 | W79: 0
A80: MGMAAcademicAllNon-FacultyMDPathology: Clinical-HematopathologyL | B80: Pathology: Clinical-Hematopathology | C80: Code | D80: MGMA | E80: Academic | F80: All | G80: Non-Faculty | H80: MD | I80: 2022 | J80: 0 | K80: 0 | L80: 0 | M80: 0 | N80: 0 | O80: 0 | P80: 0 | Q80: 0 | R80: 0 | S80: 0 | T80: 0 | U80: 0 | V80: 0 | W80: 0
A81: MGMAAcademicAllNon-FacultyMDPathology: Clinical-Transfusion MedicineL | B81: Pathology: Clinical-Transfusion Medicine | C81: Code | D81: MGMA | E81: Academic | F81: All | G81: Non-Faculty | H81: MD | I81: 2022 | J81: 0 | K81: 0 | L81: 0 | M81: 0 | N81: 0 | O81: 0 | P81: 0 | Q81: 0 | R81: 0 | S81: 0 | T81: 0 | U81: 0 | V81: 0 | W81: 0
A82: MGMAAcademicAllNon-FacultyMDPathology: SurgicalL | B82: Pathology: Surgical | C82: Code | D82: MGMA | E82: Academic | F82: All | G82: Non-Faculty | H82: MD | I82: 2022 | J82: 0 | K82: 0 | L82: 0 | M82: 0 | N82: 0 | O82: 0 | P82: 0 | Q82: 0 | R82: 0 | S82: 0 | T82: 0 | U82: 0 | V82: 0 | W82: 0
A83: MGMAAcademicAllNon-FacultyMDPediatrics: GeneralL | B83: Pediatrics: General | C83: Code | D83: MGMA | E83: Academic | F83: All | G83: Non-Faculty | H83: MD | I83: 2022 | J83: $185,834 | K83: 186707 | L83: 187580 | M83: 188453 | N83: 189326 | O83: $190,199 | P83: 202863 | Q83: 215527 | R83: 228191 | S83: 240855 | T83: $253,519 | U83: 273415.4 | V83: 293311.8 | W83: $353,001
A84: MGMAAcademicAllNon-FacultyMDPediatrics: Adolescent MedicineL | B84: Pediatrics: Adolescent Medicine | C84: Code | D84: MGMA | E84: Academic | F84: All | G84: Non-Faculty | H84: MD | I84: 2022 | J84: 0 | K84: 0 | L84: 0 | M84: 0 | N84: 0 | O84: 0 | P84: 0 | Q84: 0 | R84: 0 | S84: 0 | T84: 0 | U84: 0 | V84: 0 | W84: 0
A85: MGMAAcademicAllNon-FacultyMDPediatrics: Allergy/ImmunologyL | B85: Pediatrics: Allergy/Immunology | C85: Code | D85: MGMA | E85: Academic | F85: All | G85: Non-Faculty | H85: MD | I85: 2022 | J85: 0 | K85: 0 | L85: 0 | M85: 0 | N85: 0 | O85: 0 | P85: 0 | Q85: 0 | R85: 0 | S85: 0 | T85: 0 | U85: 0 | V85: 0 | W85: 0
A86: MGMAAcademicAllNon-FacultyMDPediatrics: AnesthesiologyL | B86: Pediatrics: Anesthesiology | C86: Code | D86: MGMA | E86: Academic | F86: All | G86: Non-Faculty | H86: MD | I86: 2022 | J86: 0 | K86: 0 | L86: 0 | M86: 0 | N86: 0 | O86: 0 | P86: 0 | Q86: 0 | R86: 0 | S86: 0 | T86: 0 | U86: 0 | V86: 0 | W86: 0
A87: MGMAAcademicAllNon-FacultyMDPediatrics: Bone Marrow TransplantL | B87: Pediatrics: Bone Marrow Transplant | C87: Code | D87: MGMA | E87: Academic | F87: All | G87: Non-Faculty | H87: MD | I87: 2022 | J87: 0 | K87: 0 | L87: 0 | M87: 0 | N87: 0 | O87: 0 | P87: 0 | Q87: 0 | R87: 0 | S87: 0 | T87: 0 | U87: 0 | V87: 0 | W87: 0
A88: MGMAAcademicAllNon-FacultyMDPediatrics: CardiologyL | B88: Pediatrics: Cardiology | C88: Code | D88: MGMA | E88: Academic | F88: All | G88: Non-Faculty | H88: MD | I88: 2022 | J88: 0 | K88: 0 | L88: 0 | M88: 0 | N88: 0 | O88: 0 | P88: 0 | Q88: 0 | R88: 0 | S88: 0 | T88: 0 | U88: 0 | V88: 0 | W88: 0
A89: MGMAAcademicAllNon-FacultyMDPediatrics: Cardiovascular SurgeryL | B89: Pediatrics: Cardiovascular Surgery | C89: Code | D89: MGMA | E89: Academic | F89: All | G89: Non-Faculty | H89: MD | I89: 2022 | J89: 0 | K89: 0 | L89: 0 | M89: 0 | N89: 0 | O89: 0 | P89: 0 | Q89: 0 | R89: 0 | S89: 0 | T89: 0 | U89: 0 | V89: 0 | W89: 0
A90: MGMAAcademicAllNon-FacultyMDPediatrics: Child DevelopmentL | B90: Pediatrics: Child Development | C90: Code | D90: MGMA | E90: Academic | F90: All | G90: Non-Faculty | H90: MD | I90: 2022 | J90: 0 | K90: 0 | L90: 0 | M90: 0 | N90: 0 | O90: 0 | P90: 0 | Q90: 0 | R90: 0 | S90: 0 | T90: 0 | U90: 0 | V90: 0 | W90: 0
A91: MGMAAcademicAllNon-FacultyMDPediatrics: Critical Care/IntensivistL | B91: Pediatrics: Critical Care/Intensivist | C91: Code | D91: MGMA | E91: Academic | F91: All | G91: Non-Faculty | H91: MD | I91: 2022 | J91: 0 | K91: 0 | L91: 0 | M91: 0 | N91: 0 | O91: 0 | P91: 0 | Q91: 0 | R91: 0 | S91: 0 | T91: 0 | U91: 0 | V91: 0 | W91: 0
A92: MGMAAcademicAllNon-FacultyMDPediatrics: DermatologyL | B92: Pediatrics: Dermatology | C92: Code | D92: MGMA | E92: Academic | F92: All | G92: Non-Faculty | H92: MD | I92: 2022 | J92: 0 | K92: 0 | L92: 0 | M92: 0 | N92: 0 | O92: 0 | P92: 0 | Q92: 0 | R92: 0 | S92: 0 | T92: 0 | U92: 0 | V92: 0 | W92: 0
A93: MGMAAcademicAllNon-FacultyMDPediatrics: Emergency MedicineL | B93: Pediatrics: Emergency Medicine | C93: Code | D93: MGMA | E93: Academic | F93: All | G93: Non-Faculty | H93: MD | I93: 2022 | J93: 0 | K93: 0 | L93: 0 | M93: 0 | N93: 0 | O93: 0 | P93: 0 | Q93: 0 | R93: 0 | S93: 0 | T93: 0 | U93: 0 | V93: 0 | W93: 0
A94: MGMAAcademicAllNon-FacultyMDPediatrics: EndocrinologyL | B94: Pediatrics: Endocrinology | C94: Code | D94: MGMA | E94: Academic | F94: All | G94: Non-Faculty | H94: MD | I94: 2022 | J94: 0 | K94: 0 | L94: 0 | M94: 0 | N94: 0 | O94: 0 | P94: 0 | Q94: 0 | R94: 0 | S94: 0 | T94: 0 | U94: 0 | V94: 0 | W94: 0
A95: MGMAAcademicAllNon-FacultyMDPediatrics: GastroenterologyL | B95: Pediatrics: Gastroenterology | C95: Code | D95: MGMA | E95: Academic | F95: All | G95: Non-Faculty | H95: MD | I95: 2022 | J95: 0 | K95: 0 | L95: 0 | M95: 0 | N95: 0 | O95: 0 | P95: 0 | Q95: 0 | R95: 0 | S95: 0 | T95: 0 | U95: 0 | V95: 0 | W95: 0
A96: MGMAAcademicAllNon-FacultyMDPediatrics: GeneticsL | B96: Pediatrics: Genetics | C96: Code | D96: MGMA | E96: Academic | F96: All | G96: Non-Faculty | H96: MD | I96: 2022 | J96: 0 | K96: 0 | L96: 0 | M96: 0 | N96: 0 | O96: 0 | P96: 0 | Q96: 0 | R96: 0 | S96: 0 | T96: 0 | U96: 0 | V96: 0 | W96: 0
A97: MGMAAcademicAllNon-FacultyMDPediatrics: Hematology/OncologyL | B97: Pediatrics: Hematology/Oncology | C97: Code | D97: MGMA | E97: Academic | F97: All | G97: Non-Faculty | H97: MD | I97: 2022 | J97: 0 | K97: 0 | L97: 0 | M97: 0 | N97: 0 | O97: 0 | P97: 0 | Q97: 0 | R97: 0 | S97: 0 | T97: 0 | U97: 0 | V97: 0 | W97: 0
A98: MGMAAcademicAllNon-FacultyMDPediatrics: HospitalistL | B98: Pediatrics: Hospitalist | C98: Code | D98: MGMA | E98: Academic | F98: All | G98: Non-Faculty | H98: MD | I98: 2022 | J98: 0 | K98: 0 | L98: 0 | M98: 0 | N98: 0 | O98: 0 | P98: 0 | Q98: 0 | R98: 0 | S98: 0 | T98: 0 | U98: 0 | V98: 0 | W98: 0
A99: MGMAAcademicAllNon-FacultyMDPediatrics: Hospitalist-Internal MedicineL | B99: Pediatrics: Hospitalist-Internal Medicine | C99: Code | D99: MGMA | E99: Academic | F99: All | G99: Non-Faculty | H99: MD | I99: 2022 | J99: 0 | K99: 0 | L99: 0 | M99: 0 | N99: 0 | O99: 0 | P99: 0 | Q99: 0 | R99: 0 | S99: 0 | T99: 0 | U99: 0 | V99: 0 | W99: 0
A100: MGMAAcademicAllNon-FacultyMDPediatrics: Infectious DiseaseL | B100: Pediatrics: Infectious Disease | C100: Code | D100: MGMA | E100: Academic | F100: All | G100: Non-Faculty | H100: MD | I100: 2022 | J100: 0 | K100: 0 | L100: 0 | M100: 0 | N100: 0 | O100: 0 | P100: 0 | Q100: 0 | R100: 0 | S100: 0 | T100: 0 | U100: 0 | V100: 0 | W100: 0
A101: MGMAAcademicAllNon-FacultyMDPediatrics: Internal MedicineL | B101: Pediatrics: Internal Medicine | C101: Code | D101: MGMA | E101: Academic | F101: All | G101: Non-Faculty | H101: MD | I101: 2022 | J101: 0 | K101: 0 | L101: 0 | M101: 0 | N101: 0 | O101: 0 | P101: 0 | Q101: 0 | R101: 0 | S101: 0 | T101: 0 | U101: 0 | V101: 0 | W101: 0
A102: MGMAAcademicAllNon-FacultyMDPediatrics: Neonatal MedicineL | B102: Pediatrics: Neonatal Medicine | C102: Code | D102: MGMA | E102: Academic | F102: All | G102: Non-Faculty | H102: MD | I102: 2022 | J102: 0 | K102: 0 | L102: 0 | M102: 0 | N102: 0 | O102: 0 | P102: 0 | Q102: 0 | R102: 0 | S102: 0 | T102: 0 | U102: 0 | V102: 0 | W102: 0
A103: MGMAAcademicAllNon-FacultyMDPediatrics: NephrologyL | B103: Pediatrics: Nephrology | C103: Code | D103: MGMA | E103: Academic | F103: All | G103: Non-Faculty | H103: MD | I103: 2022 | J103: 0 | K103: 0 | L103: 0 | M103: 0 | N103: 0 | O103: 0 | P103: 0 | Q103: 0 | R103: 0 | S103: 0 | T103: 0 | U103: 0 | V103: 0 | W103: 0
A104: MGMAAcademicAllNon-FacultyMDPediatrics: NeurologyL | B104: Pediatrics: Neurology | C104: Code | D104: MGMA | E104: Academic | F104: All | G104: Non-Faculty | H104: MD | I104: 2022 | J104: 0 | K104: 0 | L104: 0 | M104: 0 | N104: 0 | O104: 0 | P104: 0 | Q104: 0 | R104: 0 | S104: 0 | T104: 0 | U104: 0 | V104: 0 | W104: 0
A105: MGMAAcademicAllNon-FacultyMDPediatrics: NeurosurgeryL | B105: Pediatrics: Neurosurgery | C105: Code | D105: MGMA | E105: Academic | F105: All | G105: Non-Faculty | H105: MD | I105: 2022 | J105: 0 | K105: 0 | L105: 0 | M105: 0 | N105: 0 | O105: 0 | P105: 0 | Q105: 0 | R105: 0 | S105: 0 | T105: 0 | U105: 0 | V105: 0 | W105: 0
A106: MGMAAcademicAllNon-FacultyMDPediatrics: OphthalmologyL | B106: Pediatrics: Ophthalmology | C106: Code | D106: MGMA | E106: Academic | F106: All | G106: Non-Faculty | H106: MD | I106: 2022 | J106: 0 | K106: 0 | L106: 0 | M106: 0 | N106: 0 | O106: 0 | P106: 0 | Q106: 0 | R106: 0 | S106: 0 | T106: 0 | U106: 0 | V106: 0 | W106: 0
A107: MGMAAcademicAllNon-FacultyMDPediatrics: Orthopedic SurgeryL | B107: Pediatrics: Orthopedic Surgery | C107: Code | D107: MGMA | E107: Academic | F107: All | G107: Non-Faculty | H107: MD | I107: 2022 | J107: 0 | K107: 0 | L107: 0 | M107: 0 | N107: 0 | O107: 0 | P107: 0 | Q107: 0 | R107: 0 | S107: 0 | T107: 0 | U107: 0 | V107: 0 | W107: 0
A108: MGMAAcademicAllNon-FacultyMDPediatrics: OtorhinolaryngologyL | B108: Pediatrics: Otorhinolaryngology | C108: Code | D108: MGMA | E108: Academic | F108: All | G108: Non-Faculty | H108: MD | I108: 2022 | J108: 0 | K108: 0 | L108: 0 | M108: 0 | N108: 0 | O108: 0 | P108: 0 | Q108: 0 | R108: 0 | S108: 0 | T108: 0 | U108: 0 | V108: 0 | W108: 0
A109: MGMAAcademicAllNon-FacultyMDPediatrics: Plastic and Reconstruction SurgeryL | B109: Pediatrics: Plastic and Reconstruction Surgery | C109: Code | D109: MGMA | E109: Academic | F109: All | G109: Non-Faculty | H109: MD | I109: 2022 | J109: 0 | K109: 0 | L109: 0 | M109: 0 | N109: 0 | O109: 0 | P109: 0 | Q109: 0 | R109: 0 | S109: 0 | T109: 0 | U109: 0 | V109: 0 | W109: 0
A110: MGMAAcademicAllNon-FacultyMDPediatrics: PulmonologyL | B110: Pediatrics: Pulmonology | C110: Code | D110: MGMA | E110: Academic | F110: All | G110: Non-Faculty | H110: MD | I110: 2022 | J110: 0 | K110: 0 | L110: 0 | M110: 0 | N110: 0 | O110: 0 | P110: 0 | Q110: 0 | R110: 0 | S110: 0 | T110: 0 | U110: 0 | V110: 0 | W110: 0
A111: MGMAAcademicAllNon-FacultyMDPediatrics: RadiologyL | B111: Pediatrics: Radiology | C111: Code | D111: MGMA | E111: Academic | F111: All | G111: Non-Faculty | H111: MD | I111: 2022 | J111: 0 | K111: 0 | L111: 0 | M111: 0 | N111: 0 | O111: 0 | P111: 0 | Q111: 0 | R111: 0 | S111: 0 | T111: 0 | U111: 0 | V111: 0 | W111: 0
A112: MGMAAcademicAllNon-FacultyMDPediatrics: RheumatologyL | B112: Pediatrics: Rheumatology | C112: Code | D112: MGMA | E112: Academic | F112: All | G112: Non-Faculty | H112: MD | I112: 2022 | J112: 0 | K112: 0 | L112: 0 | M112: 0 | N112: 0 | O112: 0 | P112: 0 | Q112: 0 | R112: 0 | S112: 0 | T112: 0 | U112: 0 | V112: 0 | W112: 0
A113: MGMAAcademicAllNon-FacultyMDPediatrics: Sports MedicineL | B113: Pediatrics: Sports Medicine | C113: Code | D113: MGMA | E113: Academic | F113: All | G113: Non-Faculty | H113: MD | I113: 2022 | J113: 0 | K113: 0 | L113: 0 | M113: 0 | N113: 0 | O113: 0 | P113: 0 | Q113: 0 | R113: 0 | S113: 0 | T113: 0 | U113: 0 | V113: 0 | W113: 0
A114: MGMAAcademicAllNon-FacultyMDPediatrics: SurgeryL | B114: Pediatrics: Surgery | C114: Code | D114: MGMA | E114: Academic | F114: All | G114: Non-Faculty | H114: MD | I114: 2022 | J114: 0 | K114: 0 | L114: 0 | M114: 0 | N114: 0 | O114: 0 | P114: 0 | Q114: 0 | R114: 0 | S114: 0 | T114: 0 | U114: 0 | V114: 0 | W114: 0
A115: MGMAAcademicAllNon-FacultyMDPediatrics: Urgent CareL | B115: Pediatrics: Urgent Care | C115: Code | D115: MGMA | E115: Academic | F115: All | G115: Non-Faculty | H115: MD | I115: 2022 | J115: 0 | K115: 0 | L115: 0 | M115: 0 | N115: 0 | O115: 0 | P115: 0 | Q115: 0 | R115: 0 | S115: 0 | T115: 0 | U115: 0 | V115: 0 | W115: 0
A116: MGMAAcademicAllNon-FacultyMDPediatrics: UrologyL | B116: Pediatrics: Urology | C116: Code | D116: MGMA | E116: Academic | F116: All | G116: Non-Faculty | H116: MD | I116: 2022 | J116: 0 | K116: 0 | L116: 0 | M116: 0 | N116: 0 | O116: 0 | P116: 0 | Q116: 0 | R116: 0 | S116: 0 | T116: 0 | U116: 0 | V116: 0 | W116: 0
A117: MGMAAcademicAllNon-FacultyMDPhysiatry (Physical Medicine and Rehabilitation)L | B117: Physiatry (Physical Medicine and Rehabilitation) | C117: Code | D117: MGMA | E117: Academic | F117: All | G117: Non-Faculty | H117: MD | I117: 2022 | J117: $147,081 | K117: 166283.2 | L117: 185485.4 | M117: 204687.6 | N117: 223889.8 | O117: $243,092 | P117: 245583.6 | Q117: 248075.2 | R117: 250566.8 | S117: 253058.4 | T117: $255,550 | U117: 268591 | V117: 281632 | W117: $320,755
A118: MGMAAcademicAllNon-FacultyMDPodiatry: GeneralL | B118: Podiatry: General | C118: Code | D118: MGMA | E118: Academic | F118: All | G118: Non-Faculty | H118: MD | I118: 2022 | J118: 0 | K118: 0 | L118: 0 | M118: 0 | N118: 0 | O118: 0 | P118: 0 | Q118: 0 | R118: 0 | S118: 0 | T118: 0 | U118: 0 | V118: 0 | W118: 0
A119: MGMAAcademicAllNon-FacultyMDPodiatry: Surgery-Foot and AnkleL | B119: Podiatry: Surgery-Foot and Ankle | C119: Code | D119: MGMA | E119: Academic | F119: All | G119: Non-Faculty | H119: MD | I119: 2022 | J119: 0 | K119: 0 | L119: 0 | M119: 0 | N119: 0 | O119: 0 | P119: 0 | Q119: 0 | R119: 0 | S119: 0 | T119: 0 | U119: 0 | V119: 0 | W119: 0
A120: MGMAAcademicAllNon-FacultyMDPsychiatry: GeneralL | B120: Psychiatry: General | C120: Code | D120: MGMA | E120: Academic | F120: All | G120: Non-Faculty | H120: MD | I120: 2022 | J120: 0 | K120: 0 | L120: 0 | M120: 0 | N120: 0 | O120: 0 | P120: 0 | Q120: 0 | R120: 0 | S120: 0 | T120: 0 | U120: 0 | V120: 0 | W120: 0
A121: MGMAAcademicAllNon-FacultyMDPsychiatry: Addiction MedicineL | B121: Psychiatry: Addiction Medicine | C121: Code | D121: MGMA | E121: Academic | F121: All | G121: Non-Faculty | H121: MD | I121: 2022 | J121: 0 | K121: 0 | L121: 0 | M121: 0 | N121: 0 | O121: 0 | P121: 0 | Q121: 0 | R121: 0 | S121: 0 | T121: 0 | U121: 0 | V121: 0 | W121: 0
A122: MGMAAcademicAllNon-FacultyMDPsychiatry: Behavioral MedicineL | B122: Psychiatry: Behavioral Medicine | C122: Code | D122: MGMA | E122: Academic | F122: All | G122: Non-Faculty | H122: MD | I122: 2022 | J122: 0 | K122: 0 | L122: 0 | M122: 0 | N122: 0 | O122: 0 | P122: 0 | Q122: 0 | R122: 0 | S122: 0 | T122: 0 | U122: 0 | V122: 0 | W122: 0
A123: MGMAAcademicAllNon-FacultyMDPsychiatry: Chemical DependencyL | B123: Psychiatry: Chemical Dependency | C123: Code | D123: MGMA | E123: Academic | F123: All | G123: Non-Faculty | H123: MD | I123: 2022 | J123: 0 | K123: 0 | L123: 0 | M123: 0 | N123: 0 | O123: 0 | P123: 0 | Q123: 0 | R123: 0 | S123: 0 | T123: 0 | U123: 0 | V123: 0 | W123: 0
A124: MGMAAcademicAllNon-FacultyMDPsychiatry: Child and AdolescentL | B124: Psychiatry: Child and Adolescent | C124: Code | D124: MGMA | E124: Academic | F124: All | G124: Non-Faculty | H124: MD | I124: 2022 | J124: 0 | K124: 0 | L124: 0 | M124: 0 | N124: 0 | O124: 0 | P124: 0 | Q124: 0 | R124: 0 | S124: 0 | T124: 0 | U124: 0 | V124: 0 | W124: 0
A125: MGMAAcademicAllNon-FacultyMDPsychiatry: ForensicL | B125: Psychiatry: Forensic | C125: Code | D125: MGMA | E125: Academic | F125: All | G125: Non-Faculty | H125: MD | I125: 2022 | J125: 0 | K125: 0 | L125: 0 | M125: 0 | N125: 0 | O125: 0 | P125: 0 | Q125: 0 | R125: 0 | S125: 0 | T125: 0 | U125: 0 | V125: 0 | W125: 0
A126: MGMAAcademicAllNon-FacultyMDPsychiatry: GeriatricL | B126: Psychiatry: Geriatric | C126: Code | D126: MGMA | E126: Academic | F126: All | G126: Non-Faculty | H126: MD | I126: 2022 | J126: 0 | K126: 0 | L126: 0 | M126: 0 | N126: 0 | O126: 0 | P126: 0 | Q126: 0 | R126: 0 | S126: 0 | T126: 0 | U126: 0 | V126: 0 | W126: 0
A127: MGMAAcademicAllNon-FacultyMDPulmonary Medicine: GeneralL | B127: Pulmonary Medicine: General | C127: Code | D127: MGMA | E127: Academic | F127: All | G127: Non-Faculty | H127: MD | I127: 2022 | J127: $242,379 | K127: 247378.2 | L127: 252377.4 | M127: 257376.6 | N127: 262375.8 | O127: $267,375 | P127: 278361.2 | Q127: 289347.4 | R127: 300333.6 | S127: 311319.8 | T127: $322,306 | U127: 351099.2 | V127: 379892.4 | W127: $466,272
A128: MGMAAcademicAllNon-FacultyMDPulmonary Medicine: Critical CareL | B128: Pulmonary Medicine: Critical Care | C128: Code | D128: MGMA | E128: Academic | F128: All | G128: Non-Faculty | H128: MD | I128: 2022 | J128: 0 | K128: 0 | L128: 0 | M128: 0 | N128: 0 | O128: 0 | P128: 0 | Q128: 0 | R128: 0 | S128: 0 | T128: 0 | U128: 0 | V128: 0 | W128: 0
A129: MGMAAcademicAllNon-FacultyMDPulmonary Medicine: General and Critical CareL | B129: Pulmonary Medicine: General and Critical Care | C129: Code | D129: MGMA | E129: Academic | F129: All | G129: Non-Faculty | H129: MD | I129: 2022 | J129: 0 | K129: 0 | L129: 0 | M129: 0 | N129: 0 | O129: 0 | P129: 0 | Q129: 0 | R129: 0 | S129: 0 | T129: 0 | U129: 0 | V129: 0 | W129: 0
A130: MGMAAcademicAllNon-FacultyMDRadiation OncologyL | B130: Radiation Oncology | C130: Code | D130: MGMA | E130: Academic | F130: All | G130: Non-Faculty | H130: MD | I130: 2022 | J130: 0 | K130: 0 | L130: 0 | M130: 0 | N130: 0 | O130: 0 | P130: 0 | Q130: 0 | R130: 0 | S130: 0 | T130: 0 | U130: 0 | V130: 0 | W130: 0
A131: MGMAAcademicAllNon-FacultyMDRadiology: InterventionalL | B131: Radiology: Interventional | C131: Code | D131: MGMA | E131: Academic | F131: All | G131: Non-Faculty | H131: MD | I131: 2022 | J131: 0 | K131: 0 | L131: 0 | M131: 0 | N131: 0 | O131: 0 | P131: 0 | Q131: 0 | R131: 0 | S131: 0 | T131: 0 | U131: 0 | V131: 0 | W131: 0
A132: MGMAAcademicAllNon-FacultyMDRadiology: DiagnosticL | B132: Radiology: Diagnostic | C132: Code | D132: MGMA | E132: Academic | F132: All | G132: Non-Faculty | H132: MD | I132: 2022 | J132: $361,206 | K132: 365604.2 | L132: 370002.4 | M132: 374400.6 | N132: 378798.8 | O132: $383,197 | P132: 410260.6 | Q132: 437324.2 | R132: 464387.8 | S132: 491451.4 | T132: $518,515 | U132: 538374.6 | V132: 558234.2 | W132: $617,813
A133: MGMAAcademicAllNon-FacultyMDRadiology: NeurologicalL | B133: Radiology: Neurological | C133: Code | D133: MGMA | E133: Academic | F133: All | G133: Non-Faculty | H133: MD | I133: 2022 | J133: 0 | K133: 0 | L133: 0 | M133: 0 | N133: 0 | O133: 0 | P133: 0 | Q133: 0 | R133: 0 | S133: 0 | T133: 0 | U133: 0 | V133: 0 | W133: 0
A134: =D134&E134&F134&G134&H134&B134&"L" -> MGMAAcademicAllNon-FacultyMDRadiology: Nuclear MedicineL | B134: Radiology: Nuclear Medicine | C134: Code | D134: MGMA | E134: Academic | F134: All | G134: Non-Faculty | H134: MD | I134: 2022 | J134: 0 | K134: 0 | L134: =((O134-J134)/25)*10 + J134 -> 0 | M134: =((O134-J134)/25)*15 + J134 -> 0 | N134: =((O134-J134)/25)*20 + J134 -> 0 | O134: 0 | P134: =((T134-O134)/25)*5 + O134 -> 0 | Q134: =((T134-O134)/25)*10 + O134 -> 0 | R134: =((T134-O134)/25)*15 + O134 -> 0 | S134: =((T134-O134)/25)*20 + O134 -> 0 | T134: 0 | U134: =((W134-T134)/25)*5 + T134 -> 0 | V134: =((W134-T134)/25)*10 + T134 -> 0 | W134: 0
A135: MGMAAcademicAllNon-FacultyMDRheumatologyL | B135: Rheumatology | C135: Code | D135: MGMA | E135: Academic | F135: All | G135: Non-Faculty | H135: MD | I135: 2022 | J135: $167,500 | K135: 170052.2 | L135: 172604.4 | M135: 175156.6 | N135: 177708.8 | O135: $180,261 | P135: 199552 | Q135: 218843 | R135: 238134 | S135: 257425 | T135: $276,716 | U135: 293189.8 | V135: 309663.6 | W135: $359,085
A136: MGMAAcademicAllNon-FacultyMDSleep MedicineL | B136: Sleep Medicine | C136: Code | D136: MGMA | E136: Academic | F136: All | G136: Non-Faculty | H136: MD | I136: 2022 | J136: 0 | K136: =((O136-J136)/25)*5 + J136 -> 0 | L136: 0 | M136: 0 | N136: 0 | O136: 0 | P136: 0 | Q136: 0 | R136: 0 | S136: 0 | T136: 0 | U136: 0 | V136: 0 | W136: 0
A137: MGMAAcademicAllNon-FacultyMDSurgery: GeneralL | B137: Surgery: General | C137: Code | D137: MGMA | E137: Academic | F137: All | G137: Non-Faculty | H137: MD | I137: 2022 | J137: 0 | K137: 0 | L137: 0 | M137: 0 | N137: 0 | O137: 0 | P137: 0 | Q137: 0 | R137: 0 | S137: 0 | T137: 0 | U137: 0 | V137: 0 | W137: 0
A138: MGMAAcademicAllNon-FacultyMDSurgery: BariatricL | B138: Surgery: Bariatric | C138: Code | D138: MGMA | E138: Academic | F138: All | G138: Non-Faculty | H138: MD | I138: 2022 | J138: 0 | K138: 0 | L138: 0 | M138: 0 | N138: 0 | O138: 0 | P138: 0 | Q138: 0 | R138: 0 | S138: 0 | T138: 0 | U138: 0 | V138: 0 | W138: 0
A139: MGMAAcademicAllNon-FacultyMDSurgery: BreastL | B139: Surgery: Breast | C139: Code | D139: MGMA | E139: Academic | F139: All | G139: Non-Faculty | H139: MD | I139: 2022 | J139: 0 | K139: 0 | L139: 0 | M139: 0 | N139: 0 | O139: 0 | P139: 0 | Q139: 0 | R139: 0 | S139: 0 | T139: 0 | U139: 0 | V139: 0 | W139: 0
A140: MGMAAcademicAllNon-FacultyMDSurgery: CardiovascularL | B140: Surgery: Cardiovascular | C140: Code | D140: MGMA | E140: Academic | F140: All | G140: Non-Faculty | H140: MD | I140: 2022 | J140: 0 | K140: 0 | L140: 0 | M140: 0 | N140: 0 | O140: 0 | P140: 0 | Q140: 0 | R140: 0 | S140: 0 | T140: 0 | U140: 0 | V140: 0 | W140: 0
A141: MGMAAcademicAllNon-FacultyMDSurgery: Colon and RectalL | B141: Surgery: Colon and Rectal | C141: Code | D141: MGMA | E141: Academic | F141: All | G141: Non-Faculty | H141: MD | I141: 2022 | J141: 0 | K141: 0 | L141: 0 | M141: 0 | N141: 0 | O141: 0 | P141: 0 | Q141: 0 | R141: 0 | S141: 0 | T141: 0 | U141: 0 | V141: 0 | W141: 0
A142: MGMAAcademicAllNon-FacultyMDSurgery: EndocrineL | B142: Surgery: Endocrine | C142: Code | D142: MGMA | E142: Academic | F142: All | G142: Non-Faculty | H142: MD | I142: 2022 | J142: 0 | K142: 0 | L142: 0 | M142: 0 | N142: 0 | O142: 0 | P142: 0 | Q142: 0 | R142: 0 | S142: 0 | T142: 0 | U142: 0 | V142: 0 | W142: 0
A143: MGMAAcademicAllNon-FacultyMDSurgery: Endovascular (Primary)L | B143: Surgery: Endovascular (Primary) | C143: Code | D143: MGMA | E143: Academic | F143: All | G143: Non-Faculty | H143: MD | I143: 2022 | J143: 0 | K143: 0 | L143: 0 | M143: 0 | N143: 0 | O143: 0 | P143: 0 | Q143: 0 | R143: 0 | S143: 0 | T143: 0 | U143: 0 | V143: 0 | W143: 0
A144: MGMAAcademicAllNon-FacultyMDSurgery: NeurologicalL | B144: Surgery: Neurological | C144: Code | D144: MGMA | E144: Academic | F144: All | G144: Non-Faculty | H144: MD | I144: 2022 | J144: 0 | K144: 0 | L144: 0 | M144: 0 | N144: 0 | O144: 0 | P144: 0 | Q144: 0 | R144: 0 | S144: 0 | T144: 0 | U144: 0 | V144: 0 | W144: 0
A145: MGMAAcademicAllNon-FacultyMDSurgery: OncologyL | B145: Surgery: Oncology | C145: Code | D145: MGMA | E145: Academic | F145: All | G145: Non-Faculty | H145: MD | I145: 2022 | J145: 0 | K145: 0 | L145: 0 | M145: 0 | N145: 0 | O145: 0 | P145: 0 | Q145: 0 | R145: 0 | S145: 0 | T145: 0 | U145: 0 | V145: 0 | W145: 0
A146: MGMAAcademicAllNon-FacultyMDSurgery: OralL | B146: Surgery: Oral | C146: Code | D146: MGMA | E146: Academic | F146: All | G146: Non-Faculty | H146: MD | I146: 2022 | J146: 0 | K146: 0 | L146: 0 | M146: 0 | N146: 0 | O146: 0 | P146: 0 | Q146: 0 | R146: 0 | S146: 0 | T146: 0 | U146: 0 | V146: 0 | W146: 0
A147: MGMAAcademicAllNon-FacultyMDSurgery: Plastic and ReconstructionL | B147: Surgery: Plastic and Reconstruction | C147: Code | D147: MGMA | E147: Academic | F147: All | G147: Non-Faculty | H147: MD | I147: 2022 | J147: $332,802 | K147: 335287.4 | L147: 337772.8 | M147: 340258.2 | N147: 342743.6 | O147: $345,229 | P147: 387257.8 | Q147: 429286.6 | R147: 471315.4 | S147: 513344.2 | T147: $555,373 | U147: 590144.8 | V147: 624916.6 | W147: $729,232
A148: MGMAAcademicAllNon-FacultyMDSurgery: Plastic and Reconstruction-HandL | B148: Surgery: Plastic and Reconstruction-Hand | C148: Code | D148: MGMA | E148: Academic | F148: All | G148: Non-Faculty | H148: MD | I148: 2022 | J148: 0 | K148: 0 | L148: 0 | M148: 0 | N148: 0 | O148: 0 | P148: 0 | Q148: 0 | R148: 0 | S148: 0 | T148: 0 | U148: 0 | V148: 0 | W148: 0
A149: MGMAAcademicAllNon-FacultyMDSurgery: Thoracic (Primary)L | B149: Surgery: Thoracic (Primary) | C149: Code | D149: MGMA | E149: Academic | F149: All | G149: Non-Faculty | H149: MD | I149: 2022 | J149: 0 | K149: 0 | L149: 0 | M149: 0 | N149: 0 | O149: 0 | P149: 0 | Q149: 0 | R149: 0 | S149: 0 | T149: 0 | U149: 0 | V149: 0 | W149: 0
A150: MGMAAcademicAllNon-FacultyMDSurgery: TransplantL | B150: Surgery: Transplant | C150: Code | D150: MGMA | E150: Academic | F150: All | G150: Non-Faculty | H150: MD | I150: 2022 | J150: 0 | K150: 0 | L150: 0 | M150: 0 | N150: 0 | O150: 0 | P150: 0 | Q150: 0 | R150: 0 | S150: 0 | T150: 0 | U150: 0 | V150: 0 | W150: 0
A151: MGMAAcademicAllNon-FacultyMDSurgery: Transplant-HeartL | B151: Surgery: Transplant-Heart | C151: Code | D151: MGMA | E151: Academic | F151: All | G151: Non-Faculty | H151: MD | I151: 2022 | J151: 0 | K151: 0 | L151: 0 | M151: 0 | N151: 0 | O151: 0 | P151: 0 | Q151: 0 | R151: 0 | S151: 0 | T151: 0 | U151: 0 | V151: 0 | W151: 0
A152: MGMAAcademicAllNon-FacultyMDSurgery: Transplant-Heart/LungL | B152: Surgery: Transplant-Heart/Lung | C152: Code | D152: MGMA | E152: Academic | F152: All | G152: Non-Faculty | H152: MD | I152: 2022 | J152: 0 | K152: 0 | L152: 0 | M152: 0 | N152: 0 | O152: 0 | P152: 0 | Q152: 0 | R152: 0 | S152: 0 | T152: 0 | U152: 0 | V152: 0 | W152: 0
A153: MGMAAcademicAllNon-FacultyMDSurgery: Transplant-KidneyL | B153: Surgery: Transplant-Kidney | C153: Code | D153: MGMA | E153: Academic | F153: All | G153: Non-Faculty | H153: MD | I153: 2022 | J153: 0 | K153: 0 | L153: 0 | M153: 0 | N153: 0 | O153: 0 | P153: 0 | Q153: 0 | R153: 0 | S153: 0 | T153: 0 | U153: 0 | V153: 0 | W153: 0
A154: MGMAAcademicAllNon-FacultyMDSurgery: Transplant-LiverL | B154: Surgery: Transplant-Liver | C154: Code | D154: MGMA | E154: Academic | F154: All | G154: Non-Faculty | H154: MD | I154: 2022 | J154: 0 | K154: 0 | L154: 0 | M154: 0 | N154: 0 | O154: 0 | P154: 0 | Q154: 0 | R154: 0 | S154: 0 | T154: 0 | U154: 0 | V154: 0 | W154: 0
A155: MGMAAcademicAllNon-FacultyMDSurgery: TraumaL | B155: Surgery: Trauma | C155: Code | D155: MGMA | E155: Academic | F155: All | G155: Non-Faculty | H155: MD | I155: 2022 | J155: 0 | K155: 0 | L155: 0 | M155: 0 | N155: 0 | O155: 0 | P155: 0 | Q155: 0 | R155: 0 | S155: 0 | T155: 0 | U155: 0 | V155: 0 | W155: 0
A156: MGMAAcademicAllNon-FacultyMDSurgery: Trauma-BurnL | B156: Surgery: Trauma-Burn | C156: Code | D156: MGMA | E156: Academic | F156: All | G156: Non-Faculty | H156: MD | I156: 2022 | J156: 0 | K156: 0 | L156: 0 | M156: 0 | N156: 0 | O156: 0 | P156: 0 | Q156: 0 | R156: 0 | S156: 0 | T156: 0 | U156: 0 | V156: 0 | W156: 0
A157: MGMAAcademicAllNon-FacultyMDSurgery: Vascular (Primary)L | B157: Surgery: Vascular (Primary) | C157: Code | D157: MGMA | E157: Academic | F157: All | G157: Non-Faculty | H157: MD | I157: 2022 | J157: 0 | K157: 0 | L157: 0 | M157: 0 | N157: 0 | O157: 0 | P157: 0 | Q157: 0 | R157: 0 | S157: 0 | T157: 0 | U157: 0 | V157: 0 | W157: 0
A158: MGMAAcademicAllNon-FacultyMDUrgent CareL | B158: Urgent Care | C158: Code | D158: MGMA | E158: Academic | F158: All | G158: Non-Faculty | H158: MD | I158: 2022 | J158: 0 | K158: 0 | L158: 0 | M158: 0 | N158: 0 | O158: 0 | P158: 0 | Q158: 0 | R158: 0 | S158: 0 | T158: 0 | U158: 0 | V158: 0 | W158: 0
A159: MGMAAcademicAllNon-FacultyMDUrologyL | B159: Urology | C159: Code | D159: MGMA | E159: Academic | F159: All | G159: Non-Faculty | H159: MD | I159: 2022 | J159: 0 | K159: 0 | L159: 0 | M159: 0 | N159: 0 | O159: 0 | P159: 0 | Q159: 0 | R159: 0 | S159: 0 | T159: 0 | U159: 0 | V159: 0 | W159: 0
A160: MGMAAcademicAllNon-FacultyMDAnesthesia AssistanttL | B160: Anesthesia Assistantt | C160: Code | D160: MGMA | E160: Academic | F160: All | G160: Non-Faculty | H160: MD | I160: 2022 | J160: 0 | K160: 0 | L160: 0 | M160: 0 | N160: 0 | O160: 0 | P160: 0 | Q160: 0 | R160: 0 | S160: 0 | T160: 0 | U160: 0 | V160: 0 | W160: 0
A161: MGMAAcademicAllNon-FacultyMDAudiologistL | B161: Audiologist | C161: Code | D161: MGMA | E161: Academic | F161: All | G161: Non-Faculty | H161: MD | I161: 2022 | J161: 0 | K161: 0 | L161: 0 | M161: 0 | N161: 0 | O161: 0 | P161: 0 | Q161: 0 | R161: 0 | S161: 0 | T161: 0 | U161: 0 | V161: 0 | W161: 0
A162: MGMAAcademicAllNon-FacultyMDCertified Registered Nurse AnesthetistL | B162: Certified Registered Nurse Anesthetist | C162: Code | D162: MGMA | E162: Academic | F162: All | G162: Non-Faculty | H162: MD | I162: 2022 | J162: $201,990 | K162: 207991.4 | L162: 213992.8 | M162: 219994.2 | N162: 225995.6 | O162: $231,997 | P162: 243825.2 | Q162: 255653.4 | R162: 267481.6 | S162: 279309.8 | T162: $291,138 | U162: 313456.4 | V162: 335774.8 | W162: $402,730
A163: MGMAAcademicAllNon-FacultyMDChiropractorL | B163: Chiropractor | C163: Code | D163: MGMA | E163: Academic | F163: All | G163: Non-Faculty | H163: MD | I163: 2022 | J163: 0 | K163: 0 | L163: 0 | M163: 0 | N163: 0 | O163: 0 | P163: 0 | Q163: 0 | R163: 0 | S163: 0 | T163: 0 | U163: 0 | V163: 0 | W163: 0
A164: MGMAAcademicAllNon-FacultyMDClinical Nurse Specialist L | B164: Clinical Nurse Specialist | C164: Code | D164: MGMA | E164: Academic | F164: All | G164: Non-Faculty | H164: MD | I164: 2022 | J164: 0 | K164: 0 | L164: 0 | M164: 0 | N164: 0 | O164: 0 | P164: 0 | Q164: 0 | R164: 0 | S164: 0 | T164: 0 | U164: 0 | V164: 0 | W164: 0
A165: MGMAAcademicAllNon-FacultyMDDietician/NutritionistL | B165: Dietician/Nutritionist | C165: Code | D165: MGMA | E165: Academic | F165: All | G165: Non-Faculty | H165: MD | I165: 2022 | J165: 0 | K165: 0 | L165: 0 | M165: 0 | N165: 0 | O165: 0 | P165: 0 | Q165: 0 | R165: 0 | S165: 0 | T165: 0 | U165: 0 | V165: 0 | W165: 0
A166: MGMAAcademicAllNon-FacultyMDGenetic Counselor L | B166: Genetic Counselor | C166: Code | D166: MGMA | E166: Academic | F166: All | G166: Non-Faculty | H166: MD | I166: 2022 | J166: 0 | K166: 0 | L166: 0 | M166: 0 | N166: 0 | O166: 0 | P166: 0 | Q166: 0 | R166: 0 | S166: 0 | T166: 0 | U166: 0 | V166: 0 | W166: 0
A167: MGMAAcademicAllNon-FacultyMDLicensed Clinical Social WorkerL | B167: Licensed Clinical Social Worker | C167: Code | D167: MGMA | E167: Academic | F167: All | G167: Non-Faculty | H167: MD | I167: 2022 | J167: $64,343 | K167: 65154 | L167: 65965 | M167: 66776 | N167: 67587 | O167: $68,398 | P167: 72514.6 | Q167: 76631.2 | R167: 80747.8 | S167: 84864.4 | T167: $88,981 | U167: 93777 | V167: 98573 | W167: $112,961
A168: MGMAAcademicAllNon-FacultyMDNurse Midwife: Outpatient/Inpatient DeliveriesL | B168: Nurse Midwife: Outpatient/Inpatient Deliveries | C168: Code | D168: MGMA | E168: Academic | F168: All | G168: Non-Faculty | H168: MD | I168: 2022 | J168: 0 | K168: 0 | L168: 0 | M168: 0 | N168: 0 | O168: 0 | P168: 0 | Q168: 0 | R168: 0 | S168: 0 | T168: 0 | U168: 0 | V168: 0 | W168: 0
A169: MGMAAcademicAllNon-FacultyMDNurse Midwife: Outpatient (Only)L | B169: Nurse Midwife: Outpatient (Only) | C169: Code | D169: MGMA | E169: Academic | F169: All | G169: Non-Faculty | H169: MD | I169: 2022 | J169: 0 | K169: 0 | L169: 0 | M169: 0 | N169: 0 | O169: 0 | P169: 0 | Q169: 0 | R169: 0 | S169: 0 | T169: 0 | U169: 0 | V169: 0 | W169: 0
A170: MGMAAcademicAllNon-FacultyMDNurse Midwife: Inpatient (Only)L | B170: Nurse Midwife: Inpatient (Only) | C170: Code | D170: MGMA | E170: Academic | F170: All | G170: Non-Faculty | H170: MD | I170: 2022 | J170: 0 | K170: 0 | L170: 0 | M170: 0 | N170: 0 | O170: 0 | P170: 0 | Q170: 0 | R170: 0 | S170: 0 | T170: 0 | U170: 0 | V170: 0 | W170: 0
A171: MGMAAcademicAllNon-FacultyMDNP (Surgical)L | B171: NP (Surgical) | C171: Code | D171: MGMA | E171: Academic | F171: All | G171: Non-Faculty | H171: MD | I171: 2022 | J171: $114,557 | K171: 116960 | L171: 119363 | M171: 121766 | N171: 124169 | O171: $126,572 | P171: 133140 | Q171: 139708 | R171: 146276 | S171: 152844 | T171: $159,412 | U171: 166365 | V171: 173318 | W171: $194,177
A172: MGMAAcademicAllNon-FacultyMDNP: AnesthesiologyL | B172: NP: Anesthesiology | C172: Code | D172: MGMA | E172: Academic | F172: All | G172: Non-Faculty | H172: MD | I172: 2022 | J172: 0 | K172: 0 | L172: 0 | M172: 0 | N172: 0 | O172: 0 | P172: 0 | Q172: 0 | R172: 0 | S172: 0 | T172: 0 | U172: 0 | V172: 0 | W172: 0
A173: MGMAAcademicAllNon-FacultyMDNP: Cardiothoracic SurgeryL | B173: NP: Cardiothoracic Surgery | C173: Code | D173: MGMA | E173: Academic | F173: All | G173: Non-Faculty | H173: MD | I173: 2022 | J173: $128,440 | K173: 130089 | L173: 131738 | M173: 133387 | N173: 135036 | O173: $136,685 | P173: 139255 | Q173: 141825 | R173: 144395 | S173: 146965 | T173: $149,535 | U173: 153967.6 | V173: 158400.2 | W173: $171,698
A174: MGMAAcademicAllNon-FacultyMDNP: NeurosurgeryL | B174: NP: Neurosurgery | C174: Code | D174: MGMA | E174: Academic | F174: All | G174: Non-Faculty | H174: MD | I174: 2022 | J174: $111,292 | K174: 116747.4 | L174: 122202.8 | M174: 127658.2 | N174: 133113.6 | O174: $138,569 | P174: 144142 | Q174: 149715 | R174: 155288 | S174: 160861 | T174: $166,434 | U174: 169082 | V174: 171730 | W174: $179,674
A175: MGMAAcademicAllNon-FacultyMDNP: Orthopedics (Surgical)L | B175: NP: Orthopedics (Surgical) | C175: Code | D175: MGMA | E175: Academic | F175: All | G175: Non-Faculty | H175: MD | I175: 2022 | J175: $119,622 | K175: 124408.8 | L175: 129195.6 | M175: 133982.4 | N175: 138769.2 | O175: $143,556 | P175: 144291.4 | Q175: 145026.8 | R175: 145762.2 | S175: 146497.6 | T175: $147,233 | U175: 150009.8 | V175: 152786.6 | W175: $161,117
A176: MGMAAcademicAllNon-FacultyMDNP: OtorhinolaryngologyL | B176: NP: Otorhinolaryngology | C176: Code | D176: MGMA | E176: Academic | F176: All | G176: Non-Faculty | H176: MD | I176: 2022 | J176: $108,594 | K176: 110680.6 | L176: 112767.2 | M176: 114853.8 | N176: 116940.4 | O176: $119,027 | P176: 126002.2 | Q176: 132977.4 | R176: 139952.6 | S176: 146927.8 | T176: $153,903 | U176: 156846.6 | V176: 159790.2 | W176: $168,621
A177: MGMAAcademicAllNon-FacultyMDNP: Surgery: GeneralL | B177: NP: Surgery: General | C177: Code | D177: MGMA | E177: Academic | F177: All | G177: Non-Faculty | H177: MD | I177: 2022 | J177: $119,283 | K177: 128751.6 | L177: 138220.2 | M177: 147688.8 | N177: 157157.4 | O177: $166,626 | P177: 207754 | Q177: 248882 | R177: 290010 | S177: 331138 | T177: $372,266 | U177: 372266 | V177: 372266 | W177: $372,266
A178: MGMAAcademicAllNon-FacultyMDNP: UrologyL | B178: NP: Urology | C178: Code | D178: MGMA | E178: Academic | F178: All | G178: Non-Faculty | H178: MD | I178: 2022 | J178: $99,195 | K178: 102279.2 | L178: 105363.4 | M178: 108447.6 | N178: 111531.8 | O178: $114,616 | P178: 120082.6 | Q178: 125549.2 | R178: 131015.8 | S178: 136482.4 | T178: $141,949 | U178: 145815 | V178: 149681 | W178: $161,279
A179: MGMAAcademicAllNon-FacultyMDNP: Vascular SurgeryL | B179: NP: Vascular Surgery | C179: Code | D179: MGMA | E179: Academic | F179: All | G179: Non-Faculty | H179: MD | I179: 2022 | J179: 0 | K179: 0 | L179: 0 | M179: 0 | N179: 0 | O179: 0 | P179: 0 | Q179: 0 | R179: 0 | S179: 0 | T179: 0 | U179: 0 | V179: 0 | W179: 0
A180: MGMAAcademicAllNon-FacultyMDNP (Primary Care)L | B180: NP (Primary Care) | C180: Code | D180: MGMA | E180: Academic | F180: All | G180: Non-Faculty | H180: MD | I180: 2022 | J180: 0 | K180: 0 | L180: 0 | M180: 0 | N180: 0 | O180: 0 | P180: 0 | Q180: 0 | R180: 0 | S180: 0 | T180: 0 | U180: 0 | V180: 0 | W180: 0
A181: MGMAAcademicAllNon-FacultyMDNP: AdultL | B181: NP: Adult | C181: Code | D181: MGMA | E181: Academic | F181: All | G181: Non-Faculty | H181: MD | I181: 2022 | J181: 0 | K181: 0 | L181: 0 | M181: 0 | N181: 0 | O181: 0 | P181: 0 | Q181: 0 | R181: 0 | S181: 0 | T181: 0 | U181: 0 | V181: 0 | W181: 0
A182: MGMAAcademicAllNon-FacultyMDNP: Family Medicine (with OB)L | B182: NP: Family Medicine (with OB) | C182: Code | D182: MGMA | E182: Academic | F182: All | G182: Non-Faculty | H182: MD | I182: 2022 | J182: 0 | K182: 0 | L182: 0 | M182: 0 | N182: 0 | O182: 0 | P182: 0 | Q182: 0 | R182: 0 | S182: 0 | T182: 0 | U182: 0 | V182: 0 | W182: 0
A183: MGMAAcademicAllNon-FacultyMDNP: Family Medicine (without OB)L | B183: NP: Family Medicine (without OB) | C183: Code | D183: MGMA | E183: Academic | F183: All | G183: Non-Faculty | H183: MD | I183: 2022 | J183: $102,075 | K183: 104948.6 | L183: 107822.2 | M183: 110695.8 | N183: 113569.4 | O183: $116,443 | P183: 119018.4 | Q183: 121593.8 | R183: 124169.2 | S183: 126744.6 | T183: $129,320 | U183: 133947 | V183: 138574 | W183: $152,455
A184: MGMAAcademicAllNon-FacultyMDNP: Gerontology/Elder HealthL | B184: NP: Gerontology/Elder Health | C184: Code | D184: MGMA | E184: Academic | F184: All | G184: Non-Faculty | H184: MD | I184: 2022 | J184: 0 | K184: 0 | L184: 0 | M184: 0 | N184: 0 | O184: 0 | P184: 0 | Q184: 0 | R184: 0 | S184: 0 | T184: 0 | U184: 0 | V184: 0 | W184: 0
A185: MGMAAcademicAllNon-FacultyMDNP: Hospice/Palliative CareL | B185: NP: Hospice/Palliative Care | C185: Code | D185: MGMA | E185: Academic | F185: All | G185: Non-Faculty | H185: MD | I185: 2022 | J185: 0 | K185: 0 | L185: 0 | M185: 0 | N185: 0 | O185: 0 | P185: 0 | Q185: 0 | R185: 0 | S185: 0 | T185: 0 | U185: 0 | V185: 0 | W185: 0
A186: MGMAAcademicAllNon-FacultyMDNP: Hospitalist (Primary Care)L | B186: NP: Hospitalist (Primary Care) | C186: Code | D186: MGMA | E186: Academic | F186: All | G186: Non-Faculty | H186: MD | I186: 2022 | J186: $108,615 | K186: 110261.8 | L186: 111908.6 | M186: 113555.4 | N186: 115202.2 | O186: $116,849 | P186: 118624.2 | Q186: 120399.4 | R186: 122174.6 | S186: 123949.8 | T186: $125,725 | U186: 132536.4 | V186: 139347.8 | W186: $159,782
A187: MGMAAcademicAllNon-FacultyMDNP: Internal MedicineL | B187: NP: Internal Medicine | C187: Code | D187: MGMA | E187: Academic | F187: All | G187: Non-Faculty | H187: MD | I187: 2022 | J187: $124,226 | K187: 127047.8 | L187: 129869.6 | M187: 132691.4 | N187: 135513.2 | O187: $138,335 | P187: 142657.4 | Q187: 146979.8 | R187: 151302.2 | S187: 155624.6 | T187: $159,947 | U187: 165067.4 | V187: 170187.8 | W187: $185,549
A188: MGMAAcademicAllNon-FacultyMDNP: OB/GYN/Women's HealthL | B188: NP: OB/GYN/Women's Health | C188: Code | D188: MGMA | E188: Academic | F188: All | G188: Non-Faculty | H188: MD | I188: 2022 | J188: $99,802 | K188: 102949.8 | L188: 106097.6 | M188: 109245.4 | N188: 112393.2 | O188: $115,541 | P188: 121195.8 | Q188: 126850.6 | R188: 132505.4 | S188: 138160.2 | T188: $143,815 | U188: 151142 | V188: 158469 | W188: $180,450
A189: MGMAAcademicAllNon-FacultyMDNP: Pediatric/Child HealthL | B189: NP: Pediatric/Child Health | C189: Code | D189: MGMA | E189: Academic | F189: All | G189: Non-Faculty | H189: MD | I189: 2022 | J189: $119,320 | K189: 123436.8 | L189: 127553.6 | M189: 131670.4 | N189: 135787.2 | O189: $139,904 | P189: 145533.2 | Q189: 151162.4 | R189: 156791.6 | S189: 162420.8 | T189: $168,050 | U189: 174235.8 | V189: 180421.6 | W189: $198,979
A190: MGMAAcademicAllNon-FacultyMDNP: Urgent CareL | B190: NP: Urgent Care | C190: Code | D190: MGMA | E190: Academic | F190: All | G190: Non-Faculty | H190: MD | I190: 2022 | J190: 0 | K190: 0 | L190: 0 | M190: 0 | N190: 0 | O190: 0 | P190: 0 | Q190: 0 | R190: 0 | S190: 0 | T190: 0 | U190: 0 | V190: 0 | W190: 0
A191: MGMAAcademicAllNon-FacultyMDNP (Nonsurgical/Nonprimary Care)L | B191: NP (Nonsurgical/Nonprimary Care) | C191: Code | D191: MGMA | E191: Academic | F191: All | G191: Non-Faculty | H191: MD | I191: 2022 | J191: $99,795 | K191: 102364.8 | L191: 104934.6 | M191: 107504.4 | N191: 110074.2 | O191: $112,644 | P191: 115239.2 | Q191: 117834.4 | R191: 120429.6 | S191: 123024.8 | T191: $125,620 | U191: 128513.8 | V191: 131407.6 | W191: $140,089
A192: MGMAAcademicAllNon-FacultyMDNP: Acute CareL | B192: NP: Acute Care | C192: Code | D192: MGMA | E192: Academic | F192: All | G192: Non-Faculty | H192: MD | I192: 2022 | J192: $130,843 | K192: 134392 | L192: 137941 | M192: 141490 | N192: 145039 | O192: $148,588 | P192: 150390 | Q192: 152192 | R192: 153994 | S192: 155796 | T192: $157,598 | U192: 160527 | V192: 163456 | W192: $172,243
A193: MGMAAcademicAllNon-FacultyMDNP: Allergy/ImmunologyL | B193: NP: Allergy/Immunology | C193: Code | D193: MGMA | E193: Academic | F193: All | G193: Non-Faculty | H193: MD | I193: 2022 | J193: 0 | K193: 0 | L193: 0 | M193: 0 | N193: 0 | O193: 0 | P193: 0 | Q193: 0 | R193: 0 | S193: 0 | T193: 0 | U193: 0 | V193: 0 | W193: 0
A194: MGMAAcademicAllNon-FacultyMDNP: CardiologyL | B194: NP: Cardiology | C194: Code | D194: MGMA | E194: Academic | F194: All | G194: Non-Faculty | H194: MD | I194: 2022 | J194: $113,295 | K194: 114680.4 | L194: 116065.8 | M194: 117451.2 | N194: 118836.6 | O194: $120,222 | P194: 122796 | Q194: 125370 | R194: 127944 | S194: 130518 | T194: $133,092 | U194: 142129 | V194: 151166 | W194: $178,277
A195: MGMAAcademicAllNon-FacultyMDNP: DermatologyL | B195: NP: Dermatology | C195: Code | D195: MGMA | E195: Academic | F195: All | G195: Non-Faculty | H195: MD | I195: 2022 | J195: 0 | K195: 0 | L195: 0 | M195: 0 | N195: 0 | O195: 0 | P195: 0 | Q195: 0 | R195: 0 | S195: 0 | T195: 0 | U195: 0 | V195: 0 | W195: 0
A196: MGMAAcademicAllNon-FacultyMDNP: Emergency MedicineL | B196: NP: Emergency Medicine | C196: Code | D196: MGMA | E196: Academic | F196: All | G196: Non-Faculty | H196: MD | I196: 2022 | J196: $137,352 | K196: 170927.2 | L196: 204502.4 | M196: 238077.6 | N196: 271652.8 | O196: $305,228 | P196: 305228 | Q196: 305228 | R196: 305228 | S196: 305228 | T196: $305,228 | U196: 305228 | V196: 305228 | W196: $305,228
A197: MGMAAcademicAllNon-FacultyMDNP: EndocrinologyL | B197: NP: Endocrinology | C197: Code | D197: MGMA | E197: Academic | F197: All | G197: Non-Faculty | H197: MD | I197: 2022 | J197: $91,831 | K197: 95699.4 | L197: 99567.8 | M197: 103436.2 | N197: 107304.6 | O197: $111,173 | P197: 114713.4 | Q197: 118253.8 | R197: 121794.2 | S197: 125334.6 | T197: $128,875 | U197: 132643 | V197: 136411 | W197: $147,715
A198: =D198&E198&F198&G198&H198&B198&"L" -> MGMAAcademicAllNon-FacultyMDNP: GastroenterologyL | B198: NP: Gastroenterology | C198: Code | D198: MGMA | E198: Academic | F198: All | G198: Non-Faculty | H198: MD | I198: 2022 | J198: $106,076 | K198: 107846.4 | L198: =((O198-J198)/25)*10 + J198 -> 109616.8 | M198: =((O198-J198)/25)*15 + J198 -> 111387.2 | N198: =((O198-J198)/25)*20 + J198 -> 113157.6 | O198: $114,928 | P198: =((T198-O198)/25)*5 + O198 -> 116163 | Q198: =((T198-O198)/25)*10 + O198 -> 117398 | R198: =((T198-O198)/25)*15 + O198 -> 118633 | S198: =((T198-O198)/25)*20 + O198 -> 119868 | T198: $121,103 | U198: =((W198-T198)/25)*5 + T198 -> 123666.4 | V198: =((W198-T198)/25)*10 + T198 -> 126229.8 | W198: $133,920
A199: MGMAAcademicAllNon-FacultyMDNP: Hematology/OncologyL | B199: NP: Hematology/Oncology | C199: Code | D199: MGMA | E199: Academic | F199: All | G199: Non-Faculty | H199: MD | I199: 2022 | J199: $106,559 | K199: 109771 | L199: 112983 | M199: 116195 | N199: 119407 | O199: $122,619 | P199: 126051.2 | Q199: 129483.4 | R199: 132915.6 | S199: 136347.8 | T199: $139,780 | U199: 141079.4 | V199: 142378.8 | W199: $146,277
A200: MGMAAcademicAllNon-FacultyMDNP: Hospitalist (Nonsurgical/Nonprimary Care)L | B200: NP: Hospitalist (Nonsurgical/Nonprimary Care) | C200: Code | D200: MGMA | E200: Academic | F200: All | G200: Non-Faculty | H200: MD | I200: 2022 | J200: $114,080 | K200: =((O200-J200)/25)*5 + J200 -> 115472 | L200: 116864 | M200: 118256 | N200: 119648 | O200: $121,040 | P200: 123063.4 | Q200: 125086.8 | R200: 127110.2 | S200: 129133.6 | T200: $131,157 | U200: 136076.4 | V200: 140995.8 | W200: $155,754
A201: MGMAAcademicAllNon-FacultyMDNP: Infectious DiseaseL | B201: NP: Infectious Disease | C201: Code | D201: MGMA | E201: Academic | F201: All | G201: Non-Faculty | H201: MD | I201: 2022 | J201: 0 | K201: 0 | L201: 0 | M201: 0 | N201: 0 | O201: 0 | P201: 0 | Q201: 0 | R201: 0 | S201: 0 | T201: 0 | U201: 0 | V201: 0 | W201: 0
A202: MGMAAcademicAllNon-FacultyMDNP: Neonatal/PerinatalL | B202: NP: Neonatal/Perinatal | C202: Code | D202: MGMA | E202: Academic | F202: All | G202: Non-Faculty | H202: MD | I202: 2022 | J202: 0 | K202: 0 | L202: 0 | M202: 0 | N202: 0 | O202: 0 | P202: 0 | Q202: 0 | R202: 0 | S202: 0 | T202: 0 | U202: 0 | V202: 0 | W202: 0
A203: MGMAAcademicAllNon-FacultyMDNP: NephrologyL | B203: NP: Nephrology | C203: Code | D203: MGMA | E203: Academic | F203: All | G203: Non-Faculty | H203: MD | I203: 2022 | J203: $113,114 | K203: 114393.2 | L203: 115672.4 | M203: 116951.6 | N203: 118230.8 | O203: $119,510 | P203: 120848.4 | Q203: 122186.8 | R203: 123525.2 | S203: 124863.6 | T203: $126,202 | U203: 126981.4 | V203: 127760.8 | W203: $130,099
... 2047 more rows

Sheet RVU BCHMK
A1: Key | B1: Specialty Description | C1: Specialty Code | D1: Source | E1: Type | F1: Category | G1: Year | H1: P25 | I1: P30 | J1: P35 | K1: P40 | L1: P45 | M1: P50 | N1: P55 | O1: P60 | P1: P65 | Q1: P70 | R1: P75 | S1: P80 | T1: P85 | U1: P90
A2: =D2&E2&F2&B2&"L" -> FPSCAcademicAllAddiction MedicineL | B2: Addiction Medicine | C2: AM | D2: FPSC | E2: Academic | F2: All | G2: 2022 | H2: 2336.888325 | I2: 2560.53922 | J2: 3271.767645 | K2: 4012.59932 | L2: 4612.74169 | M2: 4955.47955 | N2: 5139.14475 | O2: 5299.37858 | P2: 5421.67126 | Q2: 6187.83573 | R2: 7648.9857 | S2: 8061.71928 | T2: 8526.549405 | U2: 9378.94507
A3: =D3&E3&F3&B3&"L" -> FPSCAcademicAllAllergy / ImmunologyL | B3: Allergy / Immunology | C3: 04 | D3: FPSC | E3: Academic | F3: All | G3: 2022 | H3: 3518.35395 | I3: 3670.47048 | J3: 3918.75077 | K3: 4082.21434 | L3: 4266.7199 | M3: 4354.6477 | N3: 4717.42732 | O3: 4923.54354 | P3: 5069.47011 | Q3: 5504.88786 | R3: 5855.26335 | S3: 6238.85204 | T3: 6534.17883 | U3: 7947.75672
A4: FPSCAcademicAllAmbulatory GynecologyL | B4: Ambulatory Gynecology | C4: 03 | D4: FPSC | E4: Academic | F4: All | G4: 2022 | H4: 4379.876525 | I4: 4629.29034 | J4: 4918.12189 | K4: 5146.88854 | L4: 5232.64635 | M4: 5341.06965 | N4: 5427.02751 | O4: 5753.87316 | P4: 5828.437755 | Q4: 6081.39709 | R4: 6515.8781 | S4: 6725.08454 | T4: 7039.26145 | U4: 7220.4217
A5: FPSCAcademicAllAudiologyL | B5: Audiology | C5: ZE | D5: FPSC | E5: Academic | F5: All | G5: 2022 | H5: 775.256175 | I5: 789.87166 | J5: 865.28987 | K5: 886.68106 | L5: 893.65728 | M5: 930.12 | N5: 975.71559 | O5: 1002.17184 | P5: 1027.871065 | Q5: 1099.52747 | R5: 1144.2985 | S5: 1174.18324 | T5: 1226.910885 | U5: 1291.58673
A6: FPSCAcademicAllBone Marrow TransplantL | B6: Bone Marrow Transplant | C6: 15 | D6: FPSC | E6: Academic | F6: All | G6: 2022 | H6: 4262.747475 | I6: 4466.7331 | J6: 5145.591825 | K6: 5352.9051 | L6: 5495.516 | M6: 5931.12155 | N6: 6200.58495 | O6: 6323.3333 | P6: 6685.964 | Q6: 6907.43935 | R6: 7523.1611 | S6: 8143.7559 | T6: 8385.7177 | U6: 9176.9251
A7: FPSCAcademicAllCardiology: ElectrophysiologyL | B7: Cardiology: Electrophysiology | C7: CE | D7: FPSC | E7: Academic | F7: All | G7: 2022 | H7: 7831.0561 | I7: 8536.38908 | J7: 9126.58964 | K7: 9442.11534 | L7: 9934.37282 | M7: 10476.8848 | N7: 10695.1693 | O7: 11112.49522 | P7: 11570.40152 | Q7: 12134.16742 | R7: 12514.6563 | S7: 13072.82548 | T7: 13911.1215 | U7: 15086.78148
A8: FPSCAcademicAllCardiology: GeneralL | B8: Cardiology: General | C8: CG | D8: FPSC | E8: Academic | F8: All | G8: 2022 | H8: 5456.65 | I8: 5926.66 | J8: 6320.2561 | K8: 6490.0111 | L8: 6796.24665 | M8: 7460.2903 | N8: 7618.83015 | O8: 8080.6105 | P8: 8324.05595 | Q8: 8758.704 | R8: 9152.42625 | S8: 9553.6525 | T8: 9956.73405 | U8: 10937.9021
A9: FPSCAcademicAllCardiology: InvasiveL | B9: Cardiology: Invasive | C9: CI | D9: FPSC | E9: Academic | F9: All | G9: 2022 | H9: 5020.98355 | I9: 5341.02828 | J9: 6035.61264 | K9: 7825.48926 | L9: 8761.60671 | M9: 9066.0714 | N9: 9457.43366 | O9: 9679.99806 | P9: 10118.5936 | Q9: 10218.64004 | R9: 11439.81195 | S9: 12251.99126 | T9: 12371.00204 | U9: 13624.29544
A10: FPSCAcademicAllCardiology: Invasive InterventionalL | B10: Cardiology: Invasive Interventional | C10: CV | D10: FPSC | E10: Academic | F10: All | G10: 2022 | H10: 6822.4576 | I10: 7223.96912 | J10: 7753.08084 | K10: 8039.659 | L10: 8576.40052 | M10: 8903.6064 | N10: 9278.40846 | O10: 9559.06334 | P10: 9956.47914 | Q10: 10684.52836 | R10: 11465.8336 | S10: 12117.89362 | T10: 12807.549 | U10: 14423.39752
A11: FPSCAcademicAllCardiology: NoninvasiveL | B11: Cardiology: Noninvasive | C11: CN | D11: FPSC | E11: Academic | F11: All | G11: 2022 | H11: 6123.695525 | I11: 6466.91463 | J11: 6779.203055 | K11: 7258.42912 | L11: 7471.02138 | M11: 7911.0884 | N11: 8169.878895 | O11: 8513.13958 | P11: 8904.60714 | Q11: 9248.5171 | R11: 9832.44815 | S11: 10365.4233 | T11: 10879.85766 | U11: 11419.19663
A12: FPSCAcademicAllClinical GeneticsL | B12: Clinical Genetics | C12: G1 | D12: FPSC | E12: Academic | F12: All | G12: 2022 | H12: 1515.7635 | I12: 1630.91902 | J12: 1834.12618 | K12: 2073.50188 | L12: 2340.45828 | M12: 2390.0508 | N12: 2459.59417 | O12: 2586.8073 | P12: 2645.29318 | Q12: 2747.22986 | R12: 2896.11285 | S12: 3115.6883 | T12: 3599.60013 | U12: 3695.08268
A13: FPSCAcademicAllCritical CareL | B13: Critical Care | C13: 09 | D13: FPSC | E13: Academic | F13: All | G13: 2022 | H13: 4592.345875 | I13: 5028.16775 | J13: 5482.912305 | K13: 5736.94558 | L13: 6034.99508 | M13: 6405.58255 | N13: 6770.77285 | O13: 7096.32552 | P13: 7498.747955 | Q13: 7862.84731 | R13: 8161.1618 | S13: 8924.0125 | T13: 9336.645855 | U13: 10412.04879
A14: FPSCAcademicAllDermatologyL | B14: Dermatology | C14: 17 | D14: FPSC | E14: Academic | F14: All | G14: 2022 | H14: 5870.19165 | I14: 6213.26252 | J14: 6665.59516 | K14: 6852.92822 | L14: 7427.58266 | M14: 7826.5168 | N14: 8240.90749 | O14: 8705.26636 | P14: 9093.11368 | Q14: 9324.82176 | R14: 9768.0698 | S14: 10759.17482 | T14: 11708.24448 | U14: 12358.52022
A15: FPSCAcademicAllDermatology: Melanoma and Skin CancerL | B15: Dermatology: Melanoma and Skin Cancer | C15: B6 | D15: FPSC | E15: Academic | F15: All | G15: 2022 | H15: 6367.12725 | I15: 6592.00734 | J15: 7438.62458 | K15: 7906.85676 | L15: 8169.47049 | M15: 8759.2899 | N15: 9190.10016 | O15: 9586.45572 | P15: 9664.56174 | Q15: 10071.64318 | R15: 11341.5672 | S15: 11746.54016 | T15: 12024.50021 | U15: 14885.97468
A16: FPSCAcademicAllDermatopathologyL | B16: Dermatopathology | C16: DP | D16: FPSC | E16: Academic | F16: All | G16: 2022 | H16: 7799.41625 | I16: 8532.6154 | J16: 8989.0424 | K16: 10489.6714 | L16: 11211.7935 | M16: 11541.9647 | N16: 13236.925 | O16: 15786.1562 | P16: 17310.4317 | Q16: 18016.5467 | R16: 18412.3734 | S16: 19971.2786 | T16: 22364.1829 | U16: 26005.9462
A17: FPSCAcademicAllEmergency MedicineL | B17: Emergency Medicine | C17: 22 | D17: FPSC | E17: Academic | F17: All | G17: 2022 | H17: 5289.34635 | I17: 5648.70994 | J17: 6046.74922 | K17: 6365.23212 | L17: 6765.06741 | M17: 7188.624 | N17: 7643.66445 | O17: 8128.54516 | P17: 8512.29372 | Q17: 9006.18456 | R17: 9424.7091 | S17: 9861.86518 | T17: 10436.5076 | U17: 11081.0686
A18: FPSCAcademicAllEndocrinology / MetabolismL | B18: Endocrinology / Metabolism | C18: 23 | D18: FPSC | E18: Academic | F18: All | G18: 2022 | H18: 3953.2444 | I18: 4462.56646 | J18: 4621.94606 | K18: 4780.7867 | L18: 4988.36668 | M18: 5297.4848 | N18: 5503.58304 | O18: 5778.4507 | P18: 5954.30678 | Q18: 6162.91998 | R18: 6325.0094 | S18: 6584.39042 | T18: 7040.61336 | U18: 7820.62574
A19: FPSCAcademicAllFamily Medicine (with OB)L | B19: Family Medicine (with OB) | C19: 25 | D19: FPSC | E19: Academic | F19: All | G19: 2022 | H19: 5149.5596 | I19: 5343.83435 | J19: 5611.67825 | K19: 5722.1222 | L19: 5825.22815 | M19: 5903.1864 | N19: 6002.401975 | O19: 6212.1207 | P19: 6539.003775 | Q19: 6677.8232 | R19: 7000.750025 | S19: 7505.3621 | T19: 7610.27315 | U19: 8058.83635
A20: FPSCAcademicAllFamily Medicine (without OB)L | B20: Family Medicine (without OB) | C20: 26 | D20: FPSC | E20: Academic | F20: All | G20: 2022 | H20: 4103.6275 | I20: 4347.04248 | J20: 4644.54969 | K20: 4848.6225 | L20: 4971.51926 | M20: 5223.7746 | N20: 5431.28638 | O20: 5631.07016 | P20: 5915.74441 | Q20: 6141.5316 | R20: 6482.7882 | S20: 6754.85132 | T20: 7405.74272 | U20: 7951.23516
A21: FPSCAcademicAllFamily Medicine: Sports MedicineL | B21: Family Medicine: Sports Medicine | C21: ZF | D21: FPSC | E21: Academic | F21: All | G21: 2022 | H21: 4293.7006 | I21: 4983.13655 | J21: 5145.59627 | K21: 5298.01308 | L21: 5484.086655 | M21: 5636.65235 | N21: 5737.02551 | O21: 6110.88234 | P21: 6654.47419 | Q21: 7108.81981 | R21: 7255.071225 | S21: 7503.57306 | T21: 8047.048125 | U21: 8520.8647
A22: FPSCAcademicAllGastroenterologyL | B22: Gastroenterology | C22: 27 | D22: FPSC | E22: Academic | F22: All | G22: 2022 | H22: 5906.395 | I22: 6218.18874 | J22: 6487.57712 | K22: 6738.67408 | L22: 7015.18718 | M22: 7228.5238 | N22: 7576.79366 | O22: 7989.22002 | P22: 8358.23042 | Q22: 8754.3521 | R22: 9173.7611 | S22: 9605.96892 | T22: 10066.22288 | U22: 10863.99876
A23: FPSCAcademicAllGeneral Internal MedicineL | B23: General Internal Medicine | C23: 39 | D23: FPSC | E23: Academic | F23: All | G23: 2022 | H23: 3893.8947 | I23: 4118.65456 | J23: 4358.26186 | K23: 4521.81184 | L23: 4714.94624 | M23: 4884.3083 | N23: 5076.23352 | O23: 5257.22582 | P23: 5475.30388 | Q23: 5744.95672 | R23: 6017.0067 | S23: 6255.44858 | T23: 6520.23556 | U23: 7103.94804
A24: FPSCAcademicAllGeriatricsL | B24: Geriatrics | C24: 28 | D24: FPSC | E24: Academic | F24: All | G24: 2022 | H24: 2629.295825 | I24: 2813.07695 | J24: 3091.837855 | K24: 3250.51968 | L24: 3488.58696 | M24: 3604.00725 | N24: 3845.718125 | O24: 3960.09 | P24: 4079.078395 | Q24: 4298.7372 | R24: 4479.223 | S24: 4658.0546 | T24: 4904.087345 | U24: 5196.14065
A25: FPSCAcademicAllGynecological OncologyL | B25: Gynecological Oncology | C25: 29 | D25: FPSC | E25: Academic | F25: All | G25: 2022 | H25: 4444.4875 | I25: 4970.3726 | J25: 5276.03755 | K25: 5483.8841 | L25: 5948.2993 | M25: 6387.7277 | N25: 6745.0542 | O25: 7192.7843 | P25: 7424.54985 | Q25: 8024.5082 | R25: 8752.45005 | S25: 9126.1518 | T25: 9995.48805 | U25: 10702.7084
A26: FPSCAcademicAllGynecologyL | B26: Gynecology | C26: M5 | D26: FPSC | E26: Academic | F26: All | G26: 2022 | H26: 3961.0095 | I26: 4066.43646 | J26: 4170.457225 | K26: 4386.93898 | L26: 4946.218465 | M26: 5117.9754 | N26: 5259.003585 | O26: 5442.46488 | P26: 5740.362095 | Q26: 5925.32407 | R26: 6036.9694 | S26: 6416.80454 | T26: 6777.575435 | U26: 6920.54958
A27: FPSCAcademicAllHematologyL | B27: Hematology | C27: 72 | D27: FPSC | E27: Academic | F27: All | G27: 2022 | H27: 3964.388375 | I27: 4179.5349 | J27: 4426.558325 | K27: 4665.1569 | L27: 4919.4593 | M27: 5055.44495 | N27: 5436.2982 | O27: 5612.6922 | P27: 5724.17705 | Q27: 5984.9738 | R27: 6324.180325 | S27: 6578.0333 | T27: 6811.225025 | U27: 7382.45595
A28: FPSCAcademicAllHematology: Malignant DisordersL | B28: Hematology: Malignant Disorders | C28: B7 | D28: FPSC | E28: Academic | F28: All | G28: 2022 | H28: 4208.31045 | I28: 4517.1302 | J28: 4792.375 | K28: 4980.76 | L28: 5295.8598 | M28: 5707.442 | N28: 5929.56145 | O28: 6253.3599 | P28: 6530.70715 | Q28: 6886.1357 | R28: 7141.7876 | S28: 7396.7268 | T28: 7870.26075 | U28: 8225.4286
A29: FPSCAcademicAllHepatologyL | B29: Hepatology | C29: 40 | D29: FPSC | E29: Academic | F29: All | G29: 2022 | H29: 4075.529575 | I29: 4332.04431 | J29: 4691.847515 | K29: 4865.21394 | L29: 5087.86327 | M29: 5415.2677 | N29: 5572.646055 | O29: 5712.36976 | P29: 6034.53372 | Q29: 6294.55801 | R29: 6534.190825 | S29: 7351.29848 | T29: 7984.936645 | U29: 9078.55537
A30: FPSCAcademicAllHospitalistsL | B30: Hospitalists | C30: ZP | D30: FPSC | E30: Academic | F30: All | G30: 2022 | H30: 3104.92 | I30: 3335.06342 | J30: 3482.13154 | K30: 3656.17354 | L30: 3781.76278 | M30: 3900.0357 | N30: 4062.692 | O30: 4245.24224 | P30: 4426.64028 | Q30: 4607.91332 | R30: 4787.9846 | S30: 5035.09064 | T30: 5329.29 | U30: 5762.48484
A31: FPSCAcademicAllInfectious DiseaseL | B31: Infectious Disease | C31: 37 | D31: FPSC | E31: Academic | F31: All | G31: 2022 | H31: 2980.4178 | I31: 3177.41942 | J31: 3442.65517 | K31: 3572.33744 | L31: 3793.83732 | M31: 4039.3304 | N31: 4163.3767 | O31: 4392.04592 | P31: 4624.06149 | Q31: 4852.04352 | R31: 5082.3072 | S31: 5429.15316 | T31: 5856.24108 | U31: 6417.34788
A32: FPSCAcademicAllMaternal and Fetal MedicineL | B32: Maternal and Fetal Medicine | C32: 42 | D32: FPSC | E32: Academic | F32: All | G32: 2022 | H32: 5686.019875 | I32: 5889.81082 | J32: 6418.61137 | K32: 6704.50498 | L32: 6984.287715 | M32: 7485.3432 | N32: 7721.52956 | O32: 8326.32648 | P32: 8769.844105 | Q32: 9394.79311 | R32: 9959.443 | S32: 10444.97586 | T32: 11633.0293 | U32: 12467.95834
A33: FPSCAcademicAllMedical Oncology with InfusionL | B33: Medical Oncology with Infusion | C33: MI | D33: FPSC | E33: Academic | F33: All | G33: 2022 | H33: 6554.566075 | I33: 6668.13808 | J33: 6731.95319 | K33: 6901.32084 | L33: 7253.040445 | M33: 7483.1786 | N33: 7509.01824 | O33: 7719.95546 | P33: 8154.539985 | Q33: 8422.06837 | R33: 8750.383425 | S33: 9568.00608 | T33: 9859.29465 | U33: 9954.00826
A34: FPSCAcademicAllMedical Oncology without InfusionL | B34: Medical Oncology without Infusion | C34: 74 | D34: FPSC | E34: Academic | F34: All | G34: 2022 | H34: 3899.4604 | I34: 4085.57652 | J34: 4390.707885 | K34: 4713.23488 | L34: 5016.401345 | M34: 5211.5267 | N34: 5433.80083 | O34: 5932.41716 | P34: 6201.64034 | Q34: 6395.44836 | R34: 6650.2728 | S34: 6924.75524 | T34: 7615.931685 | U34: 7981.75324
A35: FPSCAcademicAllMedical Oncology: Breast CancerL | B35: Medical Oncology: Breast Cancer | C35: B1 | D35: FPSC | E35: Academic | F35: All | G35: 2022 | H35: 4387.72205 | I35: 4636.9087 | J35: 4833.277775 | K35: 4984.2877 | L35: 5354.88 | M35: 5606.26675 | N35: 5854.851475 | O35: 5988.0781 | P35: 6357.32005 | Q35: 6619.38745 | R35: 6682.69475 | S35: 7193.6889 | T35: 7833.154 | U35: 8866.9798
A36: FPSCAcademicAllMedical Oncology: GI CancerL | B36: Medical Oncology: GI Cancer | C36: B2 | D36: FPSC | E36: Academic | F36: All | G36: 2022 | H36: 4018.3231 | I36: 4256.44578 | J36: 4535.71834 | K36: 4885.08364 | L36: 5246.00578 | M36: 5768.0156 | N36: 6191.8962 | O36: 6361.10428 | P36: 6731.73912 | Q36: 7013.26244 | R36: 7466.84 | S36: 8112.551 | T36: 8425.66764 | U36: 8884.48086
A37: FPSCAcademicAllMOHS SurgeryL | B37: MOHS Surgery | C37: 18 | D37: FPSC | E37: Academic | F37: All | G37: 2022 | H37: 12922.7371 | I37: 13105.5867 | J37: 13486.7982 | K37: 13599.327 | L37: 13673.7476 | M37: 14417.6277 | N37: 14588.13735 | O37: 15122.4398 | P37: 15554.899 | Q37: 17434.5791 | R37: 18002.9916 | S37: 18590.2929 | T37: 21177.3722 | U37: 25077.9375
A38: FPSCAcademicAllNephrologyL | B38: Nephrology | C38: 46 | D38: FPSC | E38: Academic | F38: All | G38: 2022 | H38: 6381.7157 | I38: 6634.5026 | J38: 7076.942 | K38: 7437.62 | L38: 7712.1748 | M38: 7988.7571 | N38: 8463.473 | O38: 8759.9863 | P38: 9162.0333 | Q38: 9764.89 | R38: 10240.9857 | S38: 10761.3871 | T38: 11589.5526 | U38: 12737.8143
A39: FPSCAcademicAllNephrology without DialysisL | B39: Nephrology without Dialysis | C39: N2 | D39: FPSC | E39: Academic | F39: All | G39: 2022 | H39: 4737.06435 | I39: 5129.25887 | J39: 5288.241095 | K39: 5365.58952 | L39: 5540.38557 | M39: 5708.8463 | N39: 6069.33053 | O39: 6208.67 | P39: 6457.5289 | Q39: 6703.60237 | R39: 6929.511425 | S39: 7182.68582 | T39: 7575.9775 | U39: 8575.63459
A40: FPSCAcademicAllNeurology: Alzheimers / DementiaL | B40: Neurology: Alzheimers / Dementia | C40: 51 | D40: FPSC | E40: Academic | F40: All | G40: 2022 | H40: 2977.066225 | I40: 3402.52548 | J40: 3711.953355 | K40: 3971.82666 | L40: 4207.780175 | M40: 4363.2459 | N40: 4557.12655 | O40: 4827.34732 | P40: 5091.215955 | Q40: 5282.90687 | R40: 5299.766975 | S40: 5461.12374 | T40: 6109.485715 | U40: 6694.95797
A41: FPSCAcademicAllNeurology: Epilepsy / EEGL | B41: Neurology: Epilepsy / EEG | C41: 56 | D41: FPSC | E41: Academic | F41: All | G41: 2022 | H41: 4563.3503 | I41: 4804.53223 | J41: 5130.46929 | K41: 5383.40686 | L41: 5714.050785 | M41: 5952.67015 | N41: 6294.304375 | O41: 6657.9635 | P41: 7002.7771 | Q41: 7348.84529 | R41: 8119.264975 | S41: 8498.01822 | T41: 8998.970055 | U41: 9759.35401
A42: FPSCAcademicAllNeurology: GeneralL | B42: Neurology: General | C42: 44 | D42: FPSC | E42: Academic | F42: All | G42: 2022 | H42: 3469.45 | I42: 3734.5077 | J42: 3938.7401 | K42: 4165.9643 | L42: 4380.8625 | M42: 4508.5667 | N42: 4683.7358 | O42: 4897.7175 | P42: 5155.3199 | Q42: 5483.2844 | R42: 5807.0675 | S42: 6191.6606 | T42: 6689.6438 | U42: 7525.1
A43: FPSCAcademicAllNeurology: Movement DisordersL | B43: Neurology: Movement Disorders | C43: N6 | D43: FPSC | E43: Academic | F43: All | G43: 2022 | H43: 3423.749275 | I43: 3957.24136 | J43: 4011.14029 | K43: 4246.9552 | L43: 4258.078685 | M43: 4509.7282 | N43: 4712.6161 | O43: 4750.9008 | P43: 4885.722895 | Q43: 5161.20538 | R43: 5513.069275 | S43: 5763.20772 | T43: 6336.89659 | U43: 6761.49566
A44: FPSCAcademicAllNeurology: NeuromuscularL | B44: Neurology: Neuromuscular | C44: 53 | D44: FPSC | E44: Academic | F44: All | G44: 2022 | H44: 3680.9917 | I44: 4003.35976 | J44: 4222.66867 | K44: 4485.47316 | L44: 4691.29251 | M44: 4959.9222 | N44: 5128.02192 | O44: 5339.70134 | P44: 5490.1482 | Q44: 5760.76728 | R44: 5911.9568 | S44: 6180.53182 | T44: 6330.37766 | U44: 6652.63086
A45: FPSCAcademicAllNeurology: StrokeL | B45: Neurology: Stroke | C45: N7 | D45: FPSC | E45: Academic | F45: All | G45: 2022 | H45: 3123.962025 | I45: 3485.18429 | J45: 3579.438105 | K45: 3638.56312 | L45: 3793.42086 | M45: 4056.85645 | N45: 4136.04972 | O45: 4932.96224 | P45: 5263.265165 | Q45: 5354.01642 | R45: 5649.7695 | S45: 5883.62402 | T45: 6396.0766 | U45: 7467.4085
A46: FPSCAcademicAllNeuropsychologyL | B46: Neuropsychology | C46: K7 | D46: FPSC | E46: Academic | F46: All | G46: 2022 | H46: 1634.625 | I46: 1731.778 | J46: 1881.4206 | K46: 2211.25874 | L46: 2336.290765 | M46: 2484.6343 | N46: 2664.02893 | O46: 2776.92152 | P46: 2914.34597 | Q46: 3036.06937 | R46: 3271.910675 | S46: 3438.7954 | T46: 3557.398315 | U46: 4002.00829
A47: FPSCAcademicAllNuclear MedicineL | B47: Nuclear Medicine | C47: 47 | D47: FPSC | E47: Academic | F47: All | G47: 2022 | H47: 3947.484525 | I47: 4439.04463 | J47: 4684.28614 | K47: 4950.36044 | L47: 5195.93951 | M47: 5346.01785 | N47: 5944.163225 | O47: 6305.62592 | P47: 6566.705145 | Q47: 6808.6367 | R47: 7487.17855 | S47: 7949.72024 | T47: 9198.324125 | U47: 9875.93245
A48: FPSCAcademicAllObstetrics / GynecologyL | B48: Obstetrics / Gynecology | C48: 52 | D48: FPSC | E48: Academic | F48: All | G48: 2022 | H48: 5667.59765 | I48: 5956.55063 | J48: 6249.155515 | K48: 6489.8892 | L48: 6781.547245 | M48: 7130.64345 | N48: 7440.99208 | O48: 7709.72856 | P48: 8009.86271 | Q48: 8286.67466 | R48: 8844.6319 | S48: 9328.9636 | T48: 9655.40687 | U48: 10706.05239
A49: FPSCAcademicAllOphthalmology: Corneal / Refractive SurgeryL | B49: Ophthalmology: Corneal / Refractive Surgery | C49: 91 | D49: FPSC | E49: Academic | F49: All | G49: 2022 | H49: 7129.1758 | I49: 7579.02809 | J49: 8491.70656 | K49: 8775.8847 | L49: 9004.477415 | M49: 9489.2792 | N49: 9728.424855 | O49: 10031.15572 | P49: 10386.13972 | Q49: 10957.21112 | R49: 11576.8569 | S49: 12353.82962 | T49: 13345.15405 | U49: 14740.54082
A50: FPSCAcademicAllOphthalmology: General / ComprehensiveL | B50: Ophthalmology: General / Comprehensive | C50: 90 | D50: FPSC | E50: Academic | F50: All | G50: 2022 | H50: 5342.9324 | I50: 5856.31216 | J50: 6489.42708 | K50: 6710.17286 | L50: 7356.73264 | M50: 7801.9049 | N50: 8516.25342 | O50: 9081.73206 | P50: 9436.96822 | Q50: 9728.42688 | R50: 10588.4235 | S50: 10932.6708 | T50: 12614.43938 | U50: 13864.4888
A51: FPSCAcademicAllOphthalmology: GlaucomaL | B51: Ophthalmology: Glaucoma | C51: 92 | D51: FPSC | E51: Academic | F51: All | G51: 2022 | H51: 7412.4861 | I51: 7793.08599 | J51: 7961.362225 | K51: 8265.20254 | L51: 9075.08277 | M51: 9242.0272 | N51: 9415.49764 | O51: 9769.13478 | P51: 11074.8402 | Q51: 11955.98886 | R51: 12769.1067 | S51: 13280.6237 | T51: 13670.13416 | U51: 16462.18879
A52: FPSCAcademicAllOphthalmology: NeuroL | B52: Ophthalmology: Neuro | C52: 93 | D52: FPSC | E52: Academic | F52: All | G52: 2022 | H52: 4845.714875 | I52: 5570.03192 | J52: 6044.754165 | K52: 7029.8841 | L52: 7350.18698 | M52: 7440.5625 | N52: 7565.46045 | O52: 7717.4554 | P52: 7950.22903 | Q52: 8465.94364 | R52: 9151.70725 | S52: 10195.46878 | T52: 10420.94879 | U52: 10465.48007
A53: FPSCAcademicAllOphthalmology: Oculoplastic / Reconstructive SurgeryL | B53: Ophthalmology: Oculoplastic / Reconstructive Surgery | C53: 95 | D53: FPSC | E53: Academic | F53: All | G53: 2022 | H53: 6698.9002 | I53: 6907.37342 | J53: 7079.36918 | K53: 7396.31774 | L53: 7652.41142 | M53: 7883.1745 | N53: 8992.251865 | O53: 9126.25066 | P53: 9274.63432 | Q53: 9527.62331 | R53: 10460.01132 | S53: 11153.47792 | T53: 11549.99804 | U53: 12558.13253
A54: FPSCAcademicAllOphthalmology: OptometryL | B54: Ophthalmology: Optometry | C54: 97 | D54: FPSC | E54: Academic | F54: All | G54: 2022 | H54: 3267.224775 | I54: 3421.4405 | J54: 3623.58112 | K54: 3710.1 | L54: 3884.29215 | M54: 4038.2649 | N54: 4273.28816 | O54: 4483.12428 | P54: 4889.967335 | Q54: 5055.26058 | R54: 5187.5414 | S54: 5587.60228 | T54: 6087.314165 | U54: 6488.04084
A55: FPSCAcademicAllOphthalmology: PediatricL | B55: Ophthalmology: Pediatric | C55: 94 | D55: FPSC | E55: Academic | F55: All | G55: 2022 | H55: 5373.71175 | I55: 5744.83573 | J55: 6014.379405 | K55: 6319.04726 | L55: 6963.89523 | M55: 7200.7224 | N55: 7395.9215 | O55: 7713.05894 | P55: 7903.825855 | Q55: 8151.74375 | R55: 8267.836325 | S55: 8732.44044 | T55: 9788.68762 | U55: 11179.34652
A56: FPSCAcademicAllOphthalmology: RetinalL | B56: Ophthalmology: Retinal | C56: 96 | D56: FPSC | E56: Academic | F56: All | G56: 2022 | H56: 7860.5895 | I56: 8287.55338 | J56: 8548.11158 | K56: 9249.03904 | L56: 9823.53446 | M56: 10695.1908 | N56: 11114.55088 | O56: 12346.5322 | P56: 13560.8425 | Q56: 14193.44014 | R56: 15003.4519 | S56: 15908.43016 | T56: 17046.95152 | U56: 17769.79218
A57: FPSCAcademicAllOrthopedic Surgery: Foot / AnkleL | B57: Orthopedic Surgery: Foot / Ankle | C57: 70 | D57: FPSC | E57: Academic | F57: All | G57: 2022 | H57: 6396.05375 | I57: 7183.8353 | J57: 7471.079 | K57: 7634.6328 | L57: 7940.49325 | M57: 8864.9748 | N57: 9328.6301 | O57: 9484.9584 | P57: 10012.84625 | Q57: 10477.4719 | R57: 11184.309 | S57: 12249.636 | T57: 12467.69055 | U57: 13043.7249
A58: FPSCAcademicAllOrthopedic Surgery: GeneralL | B58: Orthopedic Surgery: General | C58: 57 | D58: FPSC | E58: Academic | F58: All | G58: 2022 | H58: 6036.4276 | I58: 6565.19204 | J58: 6850.16024 | K58: 7094.9153 | L58: 7831.8283 | M58: 8264.4743 | N58: 8500.83906 | O58: 8814.22154 | P58: 9144.00566 | Q58: 10177.31124 | R58: 10570.0224 | S58: 11658.4484 | T58: 12397.13354 | U58: 14071.15492
A59: FPSCAcademicAllOrthopedic Surgery: HandL | B59: Orthopedic Surgery: Hand | C59: 36 | D59: FPSC | E59: Academic | F59: All | G59: 2022 | H59: 6869.103175 | I59: 7410.46224 | J59: 8023.53032 | K59: 8515.8093 | L59: 9091.40717 | M59: 9650.2604 | N59: 10478.02234 | O59: 10968.72804 | P59: 11338.4478 | Q59: 11946.46217 | R59: 13035.24028 | S59: 13638.01574 | T59: 13998.53512 | U59: 15302.72733
A60: FPSCAcademicAllOrthopedic Surgery: JointL | B60: Orthopedic Surgery: Joint | C60: 35 | D60: FPSC | E60: Academic | F60: All | G60: 2022 | H60: 7680.8569 | I60: 8067.12732 | J60: 8292.1105 | K60: 8635.51416 | L60: 8935.1964 | M60: 9431.9029 | N60: 9951.40588 | O60: 10893.39522 | P60: 11484.12742 | Q60: 12670.89522 | R60: 13227.4881 | S60: 14110.57018 | T60: 14959.45336 | U60: 16879.15278
A61: FPSCAcademicAllOrthopedic Surgery: OncologyL | B61: Orthopedic Surgery: Oncology | C61: 62 | D61: FPSC | E61: Academic | F61: All | G61: 2022 | H61: 5055.62215 | I61: 5204.36583 | J61: 5771.925065 | K61: 6252.05862 | L61: 6382.02187 | M61: 6558.32025 | N61: 6787.849305 | O61: 7108.9577 | P61: 7357.56048 | Q61: 7970.66431 | R61: 8322.458575 | S61: 8875.12528 | T61: 9291.03528 | U61: 11177.11211
A62: FPSCAcademicAllOrthopedic Surgery: PediatricL | B62: Orthopedic Surgery: Pediatric | C62: 67 | D62: FPSC | E62: Academic | F62: All | G62: 2022 | H62: 5571.16815 | I62: 5846.62894 | J62: 6082.0368 | K62: 6524.03216 | L62: 6592.27089 | M62: 7235.1852 | N62: 7501.72399 | O62: 8295.55902 | P62: 8429.39545 | Q62: 9368.15544 | R62: 9824.47635 | S62: 10398.54762 | T62: 11049.01781 | U62: 12363.08264
A63: FPSCAcademicAllOrthopedic Surgery: Shoulder / ElbowL | B63: Orthopedic Surgery: Shoulder / Elbow | C63: 88 | D63: FPSC | E63: Academic | F63: All | G63: 2022 | H63: 8313.69825 | I63: 9209.02062 | J63: 9660.10488 | K63: 10085.75614 | L63: 10665.24629 | M63: 12179.7413 | N63: 12792.29296 | O63: 13421.73534 | P63: 13791.88314 | Q63: 14381.27046 | R63: 15069.0591 | S63: 15170.47052 | T63: 15430.33747 | U63: 18621.45384
A64: FPSCAcademicAllOrthopedic Surgery: SpineL | B64: Orthopedic Surgery: Spine | C64: 31 | D64: FPSC | E64: Academic | F64: All | G64: 2022 | H64: 9607.734125 | I64: 10118.90248 | J64: 10489.08147 | K64: 11606.96982 | L64: 12815.09996 | M64: 13460.8856 | N64: 14412.82691 | O64: 15260.64946 | P64: 16041.8997 | Q64: 18274.95813 | R64: 19318.85465 | S64: 20201.56614 | T64: 21602.1283 | U64: 22110.00557
A65: FPSCAcademicAllOrthopedic Surgery: Sports MedicineL | B65: Orthopedic Surgery: Sports Medicine | C65: 85 | D65: FPSC | E65: Academic | F65: All | G65: 2022 | H65: 7108.6743 | I65: 7636.69184 | J65: 8455.01715 | K65: 8669.1912 | L65: 9073.30502 | M65: 9356.8324 | N65: 9681.08037 | O65: 9990.6232 | P65: 10331.70943 | Q65: 11004.27536 | R65: 11457.02585 | S65: 11973.7146 | T65: 12874.38809 | U65: 14858.95718
A66: FPSCAcademicAllOrthopedic Surgery: TraumaL | B66: Orthopedic Surgery: Trauma | C66: 24 | D66: FPSC | E66: Academic | F66: All | G66: 2022 | H66: 7837.40465 | I66: 8463.79896 | J66: 8700.844105 | K66: 9076.85224 | L66: 9418.87006 | M66: 9932.09525 | N66: 10286.96391 | O66: 10769.8787 | P66: 11354.69832 | Q66: 11653.94649 | R66: 11834.38673 | S66: 12611.52588 | T66: 13486.95721 | U66: 14918.47093
A67: =D67&E67&F67&B67&"L" -> FPSCAcademicAllOther Therapy ProvidersL | B67: Other Therapy Providers | C67: C5 | D67: FPSC | E67: Academic | F67: All | G67: 2022 | H67: 1951.5171 | I67: 2204.76318 | J67: 2311.08562 | K67: 2413.39068 | L67: 2492.51175 | M67: 2689.9428 | N67: 2876.576085 | O67: 2935.93908 | P67: 2995.998735 | Q67: 3118.69456 | R67: 3361.897075 | S67: 3439.64364 | T67: 3510.136945 | U67: 3764.1517
A68: FPSCAcademicAllOtorhinolaryngologyL | B68: Otorhinolaryngology | C68: 58 | D68: FPSC | E68: Academic | F68: All | G68: 2022 | H68: 6021.2873 | I68: 6312.94368 | J68: 6749.0141 | K68: 7107.26542 | L68: 7524.81242 | M68: 7852.4953 | N68: 8282.561 | O68: 8933.55092 | P68: 9323.68692 | Q68: 9897.68684 | R68: 10430.1846 | S68: 11166.68658 | T68: 12022.27078 | U68: 13014.17488
A69: FPSCAcademicAllOtorhinolaryngology: Head and Neck CancerL | B69: Otorhinolaryngology: Head and Neck Cancer | C69: B9 | D69: FPSC | E69: Academic | F69: All | G69: 2022 | H69: 8306.35785 | I69: 8673.11412 | J69: 9011.48036 | K69: 9519.12568 | L69: 9834.18258 | M69: 10197.8464 | N69: 10827.73144 | O69: 11136.29092 | P69: 11886.11676 | Q69: 12183.3812 | R69: 12558.8303 | S69: 13577.61572 | T69: 14728.15986 | U69: 15637.52512
A70: FPSCAcademicAllPain ManagementL | B70: Pain Management | C70: 19 | D70: FPSC | E70: Academic | F70: All | G70: 2022 | H70: 3459.585775 | I70: 3665.40743 | J70: 3868.11112 | K70: 4187.35638 | L70: 4496.000705 | M70: 4777.7389 | N70: 5146.005905 | O70: 5403.10118 | P70: 5626.871355 | Q70: 5867.5104 | R70: 6500.861325 | S70: 7013.9766 | T70: 7314.77799 | U70: 8933.93975
A71: FPSCAcademicAllPalliative CareL | B71: Palliative Care | C71: 98 | D71: FPSC | E71: Academic | F71: All | G71: 2022 | H71: 2368.85185 | I71: 2569.0689 | J71: 2624.76436 | K71: 2813.7525 | L71: 2950.66925 | M71: 3072.0875 | N71: 3218.32076 | O71: 3332.77542 | P71: 3560.69867 | Q71: 3778.64538 | R71: 3978.7 | S71: 4192.65252 | T71: 4330.73067 | U71: 4560.16158
A72: FPSCAcademicAllPathology: AnatomicL | B72: Pathology: Anatomic | C72: 07 | D72: FPSC | E72: Academic | F72: All | G72: 2022 | H72: 4434.8125 | I72: 4640.26505 | J72: 5058.752485 | K72: 5461.592 | L72: 5811.02703 | M72: 6064.8 | N72: 6385.142645 | O72: 6706.55176 | P72: 7050.2735 | Q72: 7413.10606 | R72: 7855.8536 | S72: 8369.81788 | T72: 8851.54754 | U72: 9865.31311
A73: FPSCAcademicAllPathology: ClinicalL | B73: Pathology: Clinical | C73: 14 | D73: FPSC | E73: Academic | F73: All | G73: 2022 | H73: 3027.429775 | I73: 3531.87529 | J73: 3906.014 | K73: 4428.26796 | L73: 4672.678375 | M73: 5117.74785 | N73: 5334.15513 | O73: 6134.527 | P73: 6536.921945 | Q73: 7076.462 | R73: 7351.3548 | S73: 7560.19708 | T73: 8231.34571 | U73: 9242.95819
A74: FPSCAcademicAllPathology: CytopathologyL | B74: Pathology: Cytopathology | C74: CY | D74: FPSC | E74: Academic | F74: All | G74: 2022 | H74: 4347.5294 | I74: 4747.91666 | J74: 5153.88794 | K74: 5610.69116 | L74: 5730.83416 | M74: 5955.7333 | N74: 6145.74808 | O74: 6894.26338 | P74: 7015.56048 | Q74: 7332.6762 | R74: 8019.8333 | S74: 8675.76756 | T74: 9590.64586 | U74: 11037.155
A75: FPSCAcademicAllPathology: HematopathologyL | B75: Pathology: Hematopathology | C75: P2 | D75: FPSC | E75: Academic | F75: All | G75: 2022 | H75: 4812.6585 | I75: 5030.28444 | J75: 5450.09697 | K75: 5769.54358 | L75: 5995.58527 | M75: 6360.3647 | N75: 6406.61175 | O75: 6968.99958 | P75: 7586.40888 | Q75: 7995.49088 | R75: 8435.771 | S75: 8685.11068 | T75: 9542.12534 | U75: 9878.2021
A76: FPSCAcademicAllPathology: SurgicalL | B76: Pathology: Surgical | C76: 80 | D76: FPSC | E76: Academic | F76: All | G76: 2022 | H76: 5033.945825 | I76: 5270.35611 | J76: 5548.874485 | K76: 5885.00626 | L76: 6329.747805 | M76: 6874.235 | N76: 7238.134005 | O76: 7493.47708 | P76: 7844.08917 | Q76: 8125.93365 | R76: 8805.6269 | S76: 9177.38878 | T76: 9775.54372 | U76: 10722.89838
A77: FPSCAcademicAllPediatric Hematology: Malignant DisordersL | B77: Pediatric Hematology: Malignant Disorders | C77: B8 | D77: FPSC | E77: Academic | F77: All | G77: 2022 | H77: 2693.0073 | I77: 3143.53556 | J77: 3342.25586 | K77: 3486.63298 | L77: 3614.93844 | M77: 3794.5412 | N77: 4111.16337 | O77: 4168.83858 | P77: 4231.41048 | Q77: 4524.0883 | R77: 4585.0151 | S77: 4658.838 | T77: 5311.79327 | U77: 6170.7696
A78: FPSCAcademicAllPediatrics: Adolescent MedicineL | B78: Pediatrics: Adolescent Medicine | C78: 41 | D78: FPSC | E78: Academic | F78: All | G78: 2022 | H78: 2739.316275 | I78: 2827.39115 | J78: 2896.315825 | K78: 3134.667 | L78: 3270.79285 | M78: 3577.93645 | N78: 3865.6204 | O78: 3876.289 | P78: 3892.6265 | Q78: 3982.0709 | R78: 4112.855725 | S78: 4313.0656 | T78: 4471.3377 | U78: 4753.4796
A79: FPSCAcademicAllPediatrics: Allergy / ImmunologyL | B79: Pediatrics: Allergy / Immunology | C79: 05 | D79: FPSC | E79: Academic | F79: All | G79: 2022 | H79: 2667.35 | I79: 2707.62258 | J79: 2858.06706 | K79: 2925.26734 | L79: 3036.33372 | M79: 3074.5658 | N79: 3477.10992 | O79: 3551.06054 | P79: 3619.3742 | Q79: 3753.26078 | R79: 3959.6267 | S79: 4274.13536 | T79: 4733.94474 | U79: 5292.36338
A80: FPSCAcademicAllPediatrics: Bone Marrow TransplantL | B80: Pediatrics: Bone Marrow Transplant | C80: DC | D80: FPSC | E80: Academic | F80: All | G80: 2022 | H80: 2237.39665 | I80: 2335.31481 | J80: 2466.40199 | K80: 2518.36684 | L80: 2659.73551 | M80: 2819.9678 | N80: 2914.930425 | O80: 3223.05914 | P80: 3610.406845 | Q80: 3773.049 | R80: 4105.84345 | S80: 4319.9466 | T80: 4979.081765 | U80: 5493.70132
A81: FPSCAcademicAllPediatrics: CardiologyL | B81: Pediatrics: Cardiology | C81: 63 | D81: FPSC | E81: Academic | F81: All | G81: 2022 | H81: 3422.3818 | I81: 3694.79556 | J81: 3921.926175 | K81: 4303.9633 | L81: 4533.827385 | M81: 4735.8976 | N81: 4974.45904 | O81: 5266.95692 | P81: 5514.2446 | Q81: 5722.28746 | R81: 6140.414175 | S81: 6465.45134 | T81: 6727.747395 | U81: 7240.68376
A82: FPSCAcademicAllPediatrics: Cardiology InterventionalL | B82: Pediatrics: Cardiology Interventional | C82: P9 | D82: FPSC | E82: Academic | F82: All | G82: 2022 | H82: 4959.65685 | I82: 5147.84708 | J82: 5194.25871 | K82: 5410.52978 | L82: 5638.80847 | M82: 5998.652 | N82: 6069.33813 | O82: 6261.14352 | P82: 6336.15981 | Q82: 6792.36294 | R82: 7486.1311 | S82: 7736.50058 | T82: 8000.4395 | U82: 8241.67082
A83: FPSCAcademicAllPediatrics: Cardiology-Invasive*L | B83: Pediatrics: Cardiology-Invasive* | C83: 33 | D83: FPSC | E83: Academic | F83: All | G83: 2022 | H83: 3636.469375 | I83: 3926.39831 | J83: 4446.208945 | K83: 4556.24978 | L83: 4804.136525 | M83: 5126.72745 | N83: 5485.778785 | O83: 5832.71086 | P83: 6329.82452 | Q83: 6755.31242 | R83: 7488.35545 | S83: 7957.77114 | T83: 9807.292725 | U83: 9976.70772
A84: FPSCAcademicAllPediatrics: Cardiology-NoninvasiveL | B84: Pediatrics: Cardiology-Noninvasive | C84: 34 | D84: FPSC | E84: Academic | F84: All | G84: 2022 | H84: 4315.01135 | I84: 4538.41 | J84: 4795.35835 | K84: 4987.8676 | L84: 5050.05415 | M84: 5124.9888 | N84: 5293.20305 | O84: 5580.1613 | P84: 5608.4301 | Q84: 5914.7031 | R84: 5981.8393 | S84: 6172.0665 | T84: 6451.11165 | U84: 6805.6
A85: FPSCAcademicAllPediatrics: Critical CareL | B85: Pediatrics: Critical Care | C85: A5 | D85: FPSC | E85: Academic | F85: All | G85: 2022 | H85: 3627.3867 | I85: 4171.09534 | J85: 4388.02264 | K85: 4551.58104 | L85: 4817.25066 | M85: 4941.5412 | N85: 5346.77228 | O85: 5743.97212 | P85: 6059.09884 | Q85: 6297.6509 | R85: 7021.2995 | S85: 7326.788 | T85: 7652.17094 | U85: 7906.516
A86: FPSCAcademicAllPediatrics: DermatologyL | B86: Pediatrics: Dermatology | C86: P6 | D86: FPSC | E86: Academic | F86: All | G86: 2022 | H86: 5350.704375 | I86: 5668.55747 | J86: 5947.97795 | K86: 6036.96 | L86: 6328.701095 | M86: 6527.25205 | N86: 6584.262155 | O86: 7387.02344 | P86: 7851.72987 | Q86: 8362.25817 | R86: 8717.795825 | S86: 8898.65662 | T86: 9631.915645 | U86: 10723.08929
A87: FPSCAcademicAllPediatrics: DevelopmentalL | B87: Pediatrics: Developmental | C87: A2 | D87: FPSC | E87: Academic | F87: All | G87: 2022 | H87: 2155.87145 | I87: 2492.58388 | J87: 2586.91997 | K87: 2800.35544 | L87: 2847.7208 | M87: 2982.0588 | N87: 3068.05688 | O87: 3143.24218 | P87: 3208.85875 | Q87: 3475.29484 | R87: 3615.0486 | S87: 4009.0094 | T87: 4781.29426 | U87: 5663.55902
A88: FPSCAcademicAllPediatrics: Emergency MedicineL | B88: Pediatrics: Emergency Medicine | C88: 20 | D88: FPSC | E88: Academic | F88: All | G88: 2022 | H88: 3616.2511 | I88: 3944.2813 | J88: 4062.20786 | K88: 4325.09848 | L88: 4611.28178 | M88: 4995.6977 | N88: 5253.2576 | O88: 5450.8156 | P88: 5828.49162 | Q88: 6278.73732 | R88: 6478.7259 | S88: 6663.89574 | T88: 6909.48716 | U88: 7367.37222
A89: FPSCAcademicAllPediatrics: EndocrinologyL | B89: Pediatrics: Endocrinology | C89: 64 | D89: FPSC | E89: Academic | F89: All | G89: 2022 | H89: 2773.437175 | I89: 2978.32634 | J89: 3115.107005 | K89: 3203.5863 | L89: 3259.009365 | M89: 3430.7509 | N89: 3622.773325 | O89: 3952.99054 | P89: 4176.402905 | Q89: 4356.11837 | R89: 4519.414225 | S89: 4605.02402 | T89: 4958.60088 | U89: 5266.08123
A90: FPSCAcademicAllPediatrics: GastroenterologyL | B90: Pediatrics: Gastroenterology | C90: A8 | D90: FPSC | E90: Academic | F90: All | G90: 2022 | H90: 3252.54245 | I90: 3462.66 | J90: 3535.52508 | K90: 3738.80536 | L90: 3873.00806 | M90: 4046.19 | N90: 4147.76303 | O90: 4307.39288 | P90: 4546.85874 | Q90: 4680.88646 | R90: 5013.11155 | S90: 5261.23698 | T90: 5454.1596 | U90: 5839.03
A91: FPSCAcademicAllPediatrics: GeneralL | B91: Pediatrics: General | C91: 61 | D91: FPSC | E91: Academic | F91: All | G91: 2022 | H91: 2900.9433 | I91: 3053.42598 | J91: 3310.29614 | K91: 3494.70216 | L91: 3678.85246 | M91: 3867.6928 | N91: 4064.97384 | O91: 4271.54768 | P91: 4419.39136 | Q91: 4609.96638 | R91: 4858.0455 | S91: 5379.95434 | T91: 5612.64602 | U91: 6210.91768
A92: FPSCAcademicAllPediatrics: Hematology / OncologyL | B92: Pediatrics: Hematology / Oncology | C92: A7 | D92: FPSC | E92: Academic | F92: All | G92: 2022 | H92: 2428.2625 | I92: 2483.41 | J92: 2562.12914 | K92: 2684.6705 | L92: 2918.38584 | M92: 3158.5833 | N92: 3520.68744 | O92: 3684.33462 | P92: 3909.0745 | Q92: 4055.31022 | R92: 4148.1571 | S92: 4347.59596 | T92: 4614.47006 | U92: 4967.85212
A93: FPSCAcademicAllPediatrics: HospitalistsL | B93: Pediatrics: Hospitalists | C93: 43 | D93: FPSC | E93: Academic | F93: All | G93: 2022 | H93: 1690.249225 | I93: 1801.47164 | J93: 1984.041925 | K93: 2113.6652 | L93: 2207.44391 | M93: 2283.95125 | N93: 2340.788825 | O93: 2438.98102 | P93: 2538.853465 | Q93: 2633.90457 | R93: 2827.89705 | S93: 3062.16362 | T93: 3384.16678 | U93: 3868.11639
A94: FPSCAcademicAllPediatrics: Infectious DiseaseL | B94: Pediatrics: Infectious Disease | C94: 11 | D94: FPSC | E94: Academic | F94: All | G94: 2022 | H94: 1756.016575 | I94: 1907.99956 | J94: 2079.276165 | K94: 2224.02454 | L94: 2328.402275 | M94: 2374.85165 | N94: 2468.151 | O94: 2549.34924 | P94: 2627.58537 | Q94: 2797.6025 | R94: 2982.70895 | S94: 3178.84224 | T94: 3315.64643 | U94: 3423.77102
A95: FPSCAcademicAllPediatrics: Neonatal MedicineL | B95: Pediatrics: Neonatal Medicine | C95: 48 | D95: FPSC | E95: Academic | F95: All | G95: 2022 | H95: 7836.2827 | I95: 8429.73426 | J95: 9132.46972 | K95: 9717.82336 | L95: 10294.03946 | M95: 11035.3898 | N95: 11512.62048 | O95: 12030.7982 | P95: 12597.5043 | Q95: 13434.53434 | R95: 14073.0441 | S95: 14600.8933 | T95: 15239.31328 | U95: 16192.45972
A96: FPSCAcademicAllPediatrics: NephrologyL | B96: Pediatrics: Nephrology | C96: 49 | D96: FPSC | E96: Academic | F96: All | G96: 2022 | H96: 2832.0404 | I96: 2958.7727 | J96: 3245.7848 | K96: 3388.1259 | L96: 3557.66255 | M96: 3724.3387 | N96: 3842.21085 | O96: 3957.72 | P96: 4361.6508 | Q96: 4542.6429 | R96: 4782.6665 | S96: 5097.5323 | T96: 5558.89825 | U96: 5958.0771
A97: FPSCAcademicAllPediatrics: NeurologyL | B97: Pediatrics: Neurology | C97: 12 | D97: FPSC | E97: Academic | F97: All | G97: 2022 | H97: 3020.35 | I97: 3200.41222 | J97: 3315.5118 | K97: 3493.09044 | L97: 3831.49832 | M97: 3932.6579 | N97: 4102.01274 | O97: 4200.85528 | P97: 4415.80842 | Q97: 4566.89828 | R97: 4917.6154 | S97: 5582.42406 | T97: 6155.92536 | U97: 6909.9259
A98: FPSCAcademicAllPediatrics: OtorhinolaryngologyL | B98: Pediatrics: Otorhinolaryngology | C98: 68 | D98: FPSC | E98: Academic | F98: All | G98: 2022 | H98: 4792.9191 | I98: 5412.46106 | J98: 5677.5105 | K98: 5718.54038 | L98: 5920.79274 | M98: 6048.0449 | N98: 6200.8419 | O98: 6304.7707 | P98: 6561.96506 | Q98: 6923.1564 | R98: 7385.8572 | S98: 7963.84354 | T98: 8251.72834 | U98: 9103.35898
A99: FPSCAcademicAllPediatrics: PsychiatryL | B99: Pediatrics: Psychiatry | C99: 65 | D99: FPSC | E99: Academic | F99: All | G99: 2022 | H99: 2428.1707 | I99: 2650.2948 | J99: 3048.903625 | K99: 3241.96064 | L99: 3359.14957 | M99: 3463.4481 | N99: 3715.0184 | O99: 3798.47476 | P99: 4100.09146 | Q99: 4553.18857 | R99: 4769.282625 | S99: 4932.16706 | T99: 5243.65837 | U99: 6678.70086
A100: FPSCAcademicAllPediatrics: PsychologyL | B100: Pediatrics: Psychology | C100: K8 | D100: FPSC | E100: Academic | F100: All | G100: 2022 | H100: 1551.2173 | I100: 1739.64129 | J100: 1961.79411 | K100: 2094.88722 | L100: 2163.04573 | M100: 2290.4083 | N100: 2410.48505 | O100: 2587.62672 | P100: 2765.4481 | Q100: 2840.16679 | R100: 2983.393425 | S100: 3251.0875 | T100: 3519.79485 | U100: 3977.2787
A101: FPSCAcademicAllPediatrics: PulmonologyL | B101: Pediatrics: Pulmonology | C101: A6 | D101: FPSC | E101: Academic | F101: All | G101: 2022 | H101: 2839.1803 | I101: 2932.42444 | J101: 3112.63074 | K101: 3249.2044 | L101: 3353.7804 | M101: 3569.2754 | N101: 3641.18766 | O101: 3787.24628 | P101: 3914.92658 | Q101: 4020.03172 | R101: 4182.0085 | S101: 4577.56362 | T101: 4781.55062 | U101: 5025.7887
A102: FPSCAcademicAllPediatrics: RehabilitationL | B102: Pediatrics: Rehabilitation | C102: 45 | D102: FPSC | E102: Academic | F102: All | G102: 2022 | H102: 3165.6954 | I102: 3186.39044 | J102: 3269.90497 | K102: 3449.38142 | L102: 3556.8825 | M102: 3595.6077 | N102: 3610.67938 | O102: 3662.7785 | P102: 3679.41165 | Q102: 3831.84444 | R102: 4264.5938 | S102: 4620.10762 | T102: 5206.37181 | U102: 5512.33408
A103: FPSCAcademicAllPediatrics: RheumatologyL | B103: Pediatrics: Rheumatology | C103: 21 | D103: FPSC | E103: Academic | F103: All | G103: 2022 | H103: 2556.07725 | I103: 2708.12479 | J103: 2821.030425 | K103: 2881.2 | L103: 2975.999195 | M103: 3082.4977 | N103: 3193.99184 | O103: 3239.48938 | P103: 3345.67379 | Q103: 3874.19382 | R103: 4314.21245 | S103: 4711.9796 | T103: 4929.53001 | U103: 5581.972
A104: FPSCAcademicAllPediatrics: UrologyL | B104: Pediatrics: Urology | C104: M8 | D104: FPSC | E104: Academic | F104: All | G104: 2022 | H104: 5933.53245 | I104: 6281.0639 | J104: 6566.47955 | K104: 6992.36686 | L104: 7367.39829 | M104: 8157.9047 | N104: 8383.39932 | O104: 8977.93414 | P104: 9285.43818 | Q104: 9844.6765 | R104: 10354.42505 | S104: 10698.10512 | T104: 11126.44252 | U104: 12658.96982
A105: FPSCAcademicAllPhysical Medicine: GeneralL | B105: Physical Medicine: General | C105: 69 | D105: FPSC | E105: Academic | F105: All | G105: 2022 | H105: 3932.7152 | I105: 4211.37788 | J105: 4371.34302 | K105: 4608.20784 | L105: 4920.87654 | M105: 5187.4063 | N105: 5634.0952 | O105: 5983.01292 | P105: 6340.75228 | Q105: 6635.3127 | R105: 6874.305 | S105: 7123.81146 | T105: 7583.47454 | U105: 8310.80918
A106: FPSCAcademicAllPhysical Medicine: NeurologicalL | B106: Physical Medicine: Neurological | C106: C2 | D106: FPSC | E106: Academic | F106: All | G106: 2022 | H106: 3524.63345 | I106: 3721.66355 | J106: 4097.79985 | K106: 4299.2139 | L106: 4800.12905 | M106: 5226.3824 | N106: 5641.313825 | O106: 5738.4556 | P106: 5913.04475 | Q106: 6219.8397 | R106: 6734.90685 | S106: 7055.7397 | T106: 7299.7189 | U106: 7884.62
A107: FPSCAcademicAllPhysical Medicine: Pain and SpineL | B107: Physical Medicine: Pain and Spine | C107: C4 | D107: FPSC | E107: Academic | F107: All | G107: 2022 | H107: 4324.4588 | I107: 4601.18748 | J107: 4800.642015 | K107: 5000.14278 | L107: 5263.34188 | M107: 5439.9096 | N107: 5627.409 | O107: 5754.024 | P107: 6064.752025 | Q107: 6422.6494 | R107: 6713.8516 | S107: 7180.2127 | T107: 7854.338085 | U107: 8760.31672
A108: FPSCAcademicAllPhysical Medicine: Sports - MSKL | B108: Physical Medicine: Sports - MSK | C108: C3 | D108: FPSC | E108: Academic | F108: All | G108: 2022 | H108: 3926.5128 | I108: 3975.0605 | J108: 4135.66056 | K108: 4220.13176 | L108: 4408.834 | M108: 4656.9054 | N108: 5054.06412 | O108: 5179.12386 | P108: 5439.53214 | Q108: 5555.79316 | R108: 5708.2639 | S108: 6074.48106 | T108: 6320.77846 | U108: 7815.42858
A109: FPSCAcademicAllPhysical TherapyL | B109: Physical Therapy | C109: P1 | D109: FPSC | E109: Academic | F109: All | G109: 2022 | H109: 1984.7412 | I109: 2106.1847 | J109: 2305.6473 | K109: 2323.7262 | L109: 2395.7125 | M109: 2457.6339 | N109: 2524.7889 | O109: 2598.5571 | P109: 2647.0317 | Q109: 2821.9364 | R109: 2893.4535 | S109: 3164.0778 | T109: 3401.5573 | U109: 3761.35
A110: FPSCAcademicAllPodiatryL | B110: Podiatry | C110: ZA | D110: FPSC | E110: Academic | F110: All | G110: 2022 | H110: 5468.34675 | I110: 5759.2842 | J110: 5915.987 | K110: 6038.601 | L110: 6501.67715 | M110: 6997.3065 | N110: 7172.3533 | O110: 7455.6174 | P110: 7655.34305 | Q110: 8048.0093 | R110: 8701.072975 | S110: 8814.5975 | T110: 9226.5192 | U110: 10211.0577
A111: FPSCAcademicAllPsychiatryL | B111: Psychiatry | C111: 59 | D111: FPSC | E111: Academic | F111: All | G111: 2022 | H111: 2754.9882 | I111: 3109.67586 | J111: 3320.785 | K111: 3555.71196 | L111: 3801.88238 | M111: 4112.3875 | N111: 4389.65748 | O111: 4635.06312 | P111: 4964.73856 | Q111: 5350.80904 | R111: 5656.1719 | S111: 5980.11954 | T111: 6537.80402 | U111: 7158.09894
A112: FPSCAcademicAllPsychologyL | B112: Psychology | C112: 60 | D112: FPSC | E112: Academic | F112: All | G112: 2022 | H112: 2020.204475 | I112: 2142.3804 | J112: 2262.4811 | K112: 2449.2247 | L112: 2565.838075 | M112: 2692.4005 | N112: 2841.009 | O112: 3024.08 | P112: 3202.248 | Q112: 3347.213 | R112: 3495.510725 | S112: 3737.2593 | T112: 4001.18045 | U112: 4406.821
A113: FPSCAcademicAllPulmonary DiseaseL | B113: Pulmonary Disease | C113: 73 | D113: FPSC | E113: Academic | F113: All | G113: 2022 | H113: 4881.807225 | I113: 5139.85061 | J113: 5434.354265 | K113: 5737.5972 | L113: 5898.802665 | M113: 6117.9233 | N113: 6415.013495 | O113: 6736.0125 | P113: 7247.159725 | Q113: 7574.9512 | R113: 7790.282825 | S113: 8342.09608 | T113: 8731.790815 | U113: 9563.91093
A114: FPSCAcademicAllRadiation OncologyL | B114: Radiation Oncology | C114: 79 | D114: FPSC | E114: Academic | F114: All | G114: 2022 | H114: 8282.2294 | I114: 8761.1035 | J114: 9394.4887 | K114: 9868.8867 | L114: 10273.3683 | M114: 10555.692 | N114: 11560.8666 | O114: 12043.0997 | P114: 12827.3875 | Q114: 13487.1029 | R114: 14221.6167 | S114: 15072.2152 | T114: 15357.6857 | U114: 16787.6959
A115: FPSCAcademicAllRadiation Oncology: Breast CancerL | B115: Radiation Oncology: Breast Cancer | C115: B4 | D115: FPSC | E115: Academic | F115: All | G115: 2022 | H115: 9202.4008 | I115: 9605.25578 | J115: 10038.5512 | K115: 10247.15058 | L115: 10798.48125 | M115: 11102.2833 | N115: 11585.79488 | O115: 12033.44118 | P115: 12466.45185 | Q115: 13457.28872 | R115: 13915.7241 | S115: 14408.93922 | T115: 14810.64561 | U115: 15687.79462
A116: FPSCAcademicAllRadiation Oncology: Genitourinary CancerL | B116: Radiation Oncology: Genitourinary Cancer | C116: B3 | D116: FPSC | E116: Academic | F116: All | G116: 2022 | H116: 9497.977775 | I116: 9551.21458 | J116: 10036.31484 | K116: 10363.41486 | L116: 10941.97036 | M116: 11155.1339 | N116: 11735.18319 | O116: 12466.8152 | P116: 12746.29506 | Q116: 13593.78139 | R116: 14198.26867 | S116: 15431.0096 | T116: 16861.32525 | U116: 19345.06303
A117: FPSCAcademicAllRadiation Oncology: Head and Neck CancerL | B117: Radiation Oncology: Head and Neck Cancer | C117: B5 | D117: FPSC | E117: Academic | F117: All | G117: 2022 | H117: 7122.1219 | I117: 7762.17398 | J117: 8074.363055 | K117: 9057.97376 | L117: 9722.24893 | M117: 10010.2904 | N117: 10364.85448 | O117: 10707.07282 | P117: 12148.06776 | Q117: 13423.24 | R117: 13716.5608 | S117: 14465.98984 | T117: 14832.73511 | U117: 15597.49049
A118: FPSCAcademicAllRadiology: DiagnosticL | B118: Radiology: Diagnostic | C118: 75 | D118: FPSC | E118: Academic | F118: All | G118: 2022 | H118: 6445.2672 | I118: 6990.741 | J118: 7636.88046 | K118: 8228.42828 | L118: 8722.69808 | M118: 9203.6882 | N118: 9655.26676 | O118: 10101.5991 | P118: 10591.92302 | Q118: 11127.08326 | R118: 11572.2209 | S118: 12503.26812 | T118: 13275.99528 | U118: 14049.83846
A119: FPSCAcademicAllRadiology: InterventionalL | B119: Radiology: Interventional | C119: 38 | D119: FPSC | E119: Academic | F119: All | G119: 2022 | H119: 5009.1373 | I119: 5238.20432 | J119: 5517.68696 | K119: 5761.76792 | L119: 6155.34962 | M119: 6412.1116 | N119: 6676.85986 | O119: 7178.45004 | P119: 7375.93746 | Q119: 7808.56246 | R119: 8356.0107 | S119: 8988.66602 | T119: 9657.73512 | U119: 10664.51496
A120: FPSCAcademicAllReproductive EndocrinologyL | B120: Reproductive Endocrinology | C120: 76 | D120: FPSC | E120: Academic | F120: All | G120: 2022 | H120: 4885.0605 | I120: 5178.34581 | J120: 5604.09409 | K120: 6158.41946 | L120: 6402.50011 | M120: 6829.77985 | N120: 7070.00824 | O120: 7696.63164 | P120: 8568.167355 | Q120: 9082.2464 | R120: 9543.55535 | S120: 10893.36998 | T120: 13378.57836 | U120: 15762.42608
A121: FPSCAcademicAllRheumatologyL | B121: Rheumatology | C121: 77 | D121: FPSC | E121: Academic | F121: All | G121: 2022 | H121: 4206.5326 | I121: 4363.0025 | J121: 4632.0537 | K121: 4780.9059 | L121: 4954.75295 | M121: 5055.4016 | N121: 5221.63435 | O121: 5335.6992 | P121: 5707.18655 | Q121: 5876.8815 | R121: 6226.07695 | S121: 6369.9437 | T121: 6654.98765 | U121: 6958.2156
A122: FPSCAcademicAllSleep MedicineL | B122: Sleep Medicine | C122: 55 | D122: FPSC | E122: Academic | F122: All | G122: 2022 | H122: 4094.7736 | I122: 4301.9943 | J122: 4871.42229 | K122: 5102.19202 | L122: 5166.69268 | M122: 5447.6477 | N122: 5544.10449 | O122: 5932.59356 | P122: 6134.58212 | Q122: 6430.92388 | R122: 6637.39435 | S122: 7150.23744 | T122: 7413.81495 | U122: 7508.54158
A123: FPSCAcademicAllSocial WorkerL | B123: Social Worker | C123: SW | D123: FPSC | E123: Academic | F123: All | G123: 2022 | H123: 1290.29605 | I123: 1453.63572 | J123: 1567.3577 | K123: 1830.93288 | L123: 1961.6775 | M123: 2122.6865 | N123: 2240.489 | O123: 2500.78396 | P123: 2761.944555 | Q123: 2902.53341 | R123: 3012.6675 | S123: 3085.32732 | T123: 3193.682875 | U123: 3512.67075
A124: FPSCAcademicAllSurgery: Bariatric*L | B124: Surgery: Bariatric* | C124: N5 | D124: FPSC | E124: Academic | F124: All | G124: 2022 | H124: 4868.1964 | I124: 5563.29603 | J124: 6219.008045 | K124: 6448.85088 | L124: 6907.986345 | M124: 7646.41975 | N124: 8182.80709 | O124: 8392.64772 | P124: 8812.09327 | Q124: 9216.44847 | R124: 11964.57562 | S124: 12355.28074 | T124: 13383.19103 | U124: 14832.53553
A125: FPSCAcademicAllSurgery: BurnL | B125: Surgery: Burn | C125: 13 | D125: FPSC | E125: Academic | F125: All | G125: 2022 | H125: 9544.61915 | I125: 10013.59626 | J125: 11109.13451 | K125: 11751.52444 | L125: 11840.0288 | M125: 11918.57635 | N125: 12564.11472 | O125: 13333.11602 | P125: 13876.68483 | Q125: 14849.05117 | R125: 15580.55652 | S125: 17186.19776 | T125: 18617.49485 | U125: 22574.20114
A126: FPSCAcademicAllSurgery: CardiacL | B126: Surgery: Cardiac | C126: 81 | D126: FPSC | E126: Academic | F126: All | G126: 2022 | H126: 7285.712 | I126: 7604.8865 | J126: 8355.2063 | K126: 8929.4771 | L126: 9318.1461 | M126: 9814.6805 | N126: 10350.5445 | O126: 10908.828 | P126: 11539.3422 | Q126: 12371.361 | R126: 14147.2505 | S126: 15119.123 | T126: 16796.0182 | U126: 20295.8256
A127: FPSCAcademicAllSurgery: Colon and RectalL | B127: Surgery: Colon and Rectal | C127: 16 | D127: FPSC | E127: Academic | F127: All | G127: 2022 | H127: 5682.39 | I127: 5895.11114 | J127: 6171.08521 | K127: 6439.9789 | L127: 7226.24818 | M127: 7815.0531 | N127: 8192.99974 | O127: 8522.29434 | P127: 8774.11391 | Q127: 9302.14718 | R127: 9564.1874 | S127: 9780.36406 | T127: 10353.68738 | U127: 11959.29694
A128: FPSCAcademicAllSurgery: GeneralL | B128: Surgery: General | C128: 32 | D128: FPSC | E128: Academic | F128: All | G128: 2022 | H128: 4976.81785 | I128: 5372.15104 | J128: 5842.69015 | K128: 6274.88822 | L128: 6560.27233 | M128: 7017.0831 | N128: 7331.25363 | O128: 7826.58174 | P128: 8648.69095 | Q128: 9414.95532 | R128: 9863.4885 | S128: 10477.42122 | T128: 11456.69969 | U128: 12679.93264
A129: FPSCAcademicAllSurgery: NeurologicalL | B129: Surgery: Neurological | C129: 50 | D129: FPSC | E129: Academic | F129: All | G129: 2022 | H129: 6800.0628 | I129: 7354.4429 | J129: 8220.82122 | K129: 9020.06484 | L129: 9568.4398 | M129: 10239.5675 | N129: 10912.79386 | O129: 11701.0333 | P129: 12614.37726 | Q129: 13218.9994 | R129: 14148.9518 | S129: 14900.53992 | T129: 17086.51296 | U129: 19325.08222
A130: FPSCAcademicAllSurgery: OralL | B130: Surgery: Oral | C130: A0 | D130: FPSC | E130: Academic | F130: All | G130: 2022 | H130: 3312.288925 | I130: 3398.65983 | J130: 3963.957735 | K130: 4061.0183 | L130: 4307.1672 | M130: 4713.15805 | N130: 4864.833985 | O130: 5013.23114 | P130: 5317.801735 | Q130: 6094.5647 | R130: 6655.22375 | S130: 7163.64706 | T130: 7837.10613 | U130: 9726.71778
A131: =D131&E131&F131&B131&"L" -> FPSCAcademicAllSurgery: PediatricL | B131: Surgery: Pediatric | C131: 66 | D131: FPSC | E131: Academic | F131: All | G131: 2022 | H131: 3888.9619 | I131: 4232.69862 | J131: 4511.13686 | K131: 4760.43488 | L131: 5126.82734 | M131: 5339.6268 | N131: 5676.4837 | O131: 5998.2486 | P131: 6504.02586 | Q131: 6786.57352 | R131: 7219.3637 | S131: 7491.18006 | T131: 8159.05626 | U131: 8960.60114
A132: FPSCAcademicAllSurgery: Pediatric CardiacL | B132: Surgery: Pediatric Cardiac | C132: G3 | D132: FPSC | E132: Academic | F132: All | G132: 2022 | H132: 5282.6231 | I132: 5826.21911 | J132: 5944.84796 | K132: 6093.94078 | L132: 6754.753685 | M132: 7509.2066 | N132: 8015.33787 | O132: 8431.97552 | P132: 9315.887195 | Q132: 10260.32902 | R132: 10729.68982 | S132: 11360.62386 | T132: 11913.93883 | U132: 12183.3817
A133: FPSCAcademicAllSurgery: Pediatric NeurosurgeryL | B133: Surgery: Pediatric Neurosurgery | C133: G2 | D133: FPSC | E133: Academic | F133: All | G133: 2022 | H133: 4140.3778 | I133: 4185.96576 | J133: 4268.23908 | K133: 4801.48004 | L133: 5277.96352 | M133: 5758.7333 | N133: 6142.7488 | O133: 6360.94474 | P133: 6524.00994 | Q133: 6867.47904 | R133: 7615.5754 | S133: 7938.15176 | T133: 8707.30968 | U133: 9441.15592
A134: FPSCAcademicAllSurgery: PlasticL | B134: Surgery: Plastic | C134: 71 | D134: FPSC | E134: Academic | F134: All | G134: 2022 | H134: 6318.5007 | I134: 6569.53685 | J134: 6861.220625 | K134: 7397.6392 | L134: 7962.476225 | M134: 8288.4787 | N134: 8921.98415 | O134: 9424.3106 | P134: 9907.402125 | Q134: 10546.1518 | R134: 11502.91918 | S134: 12986.1188 | T134: 14247.36505 | U134: 16036.9069
A135: FPSCAcademicAllSurgery: ThoracicL | B135: Surgery: Thoracic | C135: 87 | D135: FPSC | E135: Academic | F135: All | G135: 2022 | H135: 5038.5473 | I135: 5519.0561 | J135: 5948.26168 | K135: 6145.73 | L135: 6615.90703 | M135: 7092.3424 | N135: 7901.72151 | O135: 8393.32452 | P135: 8947.39654 | Q135: 9783.05512 | R135: 10458.364 | S135: 10930.30042 | T135: 11890.01769 | U135: 13146.02566
A136: FPSCAcademicAllSurgery: TraumaL | B136: Surgery: Trauma | C136: ZT | D136: FPSC | E136: Academic | F136: All | G136: 2022 | H136: 6275.3504 | I136: 6512.69355 | J136: 6969.694945 | K136: 7369.71182 | L136: 7889.49464 | M136: 8282.76615 | N136: 8696.947715 | O136: 9070.30044 | P136: 9522.21686 | Q136: 10086.98698 | R136: 10681.52055 | S136: 11575.57502 | T136: 12648.10153 | U136: 13612.61439
A137: FPSCAcademicAllSurgery: VascularL | B137: Surgery: Vascular | C137: 86 | D137: FPSC | E137: Academic | F137: All | G137: 2022 | H137: 5895.5249 | I137: 6474.60982 | J137: 6643.02814 | K137: 7269.64692 | L137: 7713.67529 | M137: 8225.3427 | N137: 8618.32085 | O137: 9197.69824 | P137: 9646.69539 | Q137: 10182.69092 | R137: 11023.15975 | S137: 11931.3539 | T137: 12947.18407 | U137: 13538.49884
A138: FPSCAcademicAllSurgical OncologyL | B138: Surgical Oncology | C138: 02 | D138: FPSC | E138: Academic | F138: All | G138: 2022 | H138: 5239.2948 | I138: 5855.38883 | J138: 5964.050755 | K138: 6192.5064 | L138: 6574.54108 | M138: 7008.60585 | N138: 7610.71113 | O138: 8128.64678 | P138: 8555.01679 | Q138: 8888.137 | R138: 9251.6742 | S138: 9968.34092 | T138: 10700.02167 | U138: 11762.74013
A139: FPSCAcademicAllSurgical Oncology: BreastL | B139: Surgical Oncology: Breast | C139: 30 | D139: FPSC | E139: Academic | F139: All | G139: 2022 | H139: 4481.02405 | I139: 5051.03777 | J139: 5676.169425 | K139: 6097.94926 | L139: 6192.9156 | M139: 6444.3773 | N139: 6658.4021 | O139: 7002.73378 | P139: 7621.02209 | Q139: 8050.76651 | R139: 8215.14315 | S139: 8690.05824 | T139: 9125.109125 | U139: 10384.3521
A140: FPSCAcademicAllTransplant Surgery: GeneralL | B140: Transplant Surgery: General | C140: TS | D140: FPSC | E140: Academic | F140: All | G140: 2022 | H140: 4311.4618 | I140: 5246.89064 | J140: 6046.86376 | K140: 6351.98648 | L140: 6642.623 | M140: 7094.2271 | N140: 7294.98044 | O140: 7833.1056 | P140: 8403.86228 | Q140: 8818.4091 | R140: 9859.609 | S140: 10509.8686 | T140: 11931.96178 | U140: 12834.5618
A141: FPSCAcademicAllTransplant Surgery: KidneyL | B141: Transplant Surgery: Kidney | C141: 10 | D141: FPSC | E141: Academic | F141: All | G141: 2022 | H141: 4753.3835 | I141: 4779.10224 | J141: 5006.43968 | K141: 5271.12112 | L141: 5516.34692 | M141: 6007.0684 | N141: 6358.91176 | O141: 6502.83834 | P141: 7381.54768 | Q141: 7561.06748 | R141: 8416.8546 | S141: 9166.69266 | T141: 9992.05472 | U141: 11028.5242
A142: FPSCAcademicAllTransplant Surgery: LiverL | B142: Transplant Surgery: Liver | C142: 89 | D142: FPSC | E142: Academic | F142: All | G142: 2022 | H142: 5389.7929 | I142: 5529.21518 | J142: 5787.3711 | K142: 6164.41538 | L142: 6635.26052 | M142: 6821.0221 | N142: 7114.5788 | O142: 7654.26404 | P142: 8234.85034 | Q142: 8802.52146 | R142: 9844.5507 | S142: 10316.64924 | T142: 10466.86006 | U142: 10681.73562
A143: FPSCAcademicAllUro-GynecologyL | B143: Uro-Gynecology | C143: 78 | D143: FPSC | E143: Academic | F143: All | G143: 2022 | H143: 5670.522025 | I143: 5754.99575 | J143: 5961.42943 | K143: 6086.55446 | L143: 6590.85224 | M143: 6899.8469 | N143: 7128.046835 | O143: 7180.56664 | P143: 7493.92316 | Q143: 7639.42749 | R143: 7857.1745 | S143: 8096.95278 | T143: 9133.08611 | U143: 9597.38708
A144: FPSCAcademicAllUrologyL | B144: Urology | C144: 82 | D144: FPSC | E144: Academic | F144: All | G144: 2022 | H144: 6428.1222 | I144: 6803.01738 | J144: 7282.41132 | K144: 7688.05366 | L144: 8111.87642 | M144: 8520.0976 | N144: 8911.63028 | O144: 9318.18436 | P144: 9867.271 | Q144: 10239.60852 | R144: 10737.663 | S144: 11765.29062 | T144: 12314.30234 | U144: 13467.04862
A145: FPSCAcademicAllUrology: Urologic CancerL | B145: Urology: Urologic Cancer | C145: BA | D145: FPSC | E145: Academic | F145: All | G145: 2022 | H145: 7699.16685 | I145: 8333.29091 | J145: 8803.64067 | K145: 9189.72816 | L145: 9961.51876 | M145: 10271.21535 | N145: 10712.20908 | O145: 11487.93584 | P145: 11937.0432 | Q145: 12312.58862 | R145: 12808.5089 | S145: 13580.58008 | T145: 14160.87633 | U145: 15522.59501
A146: =D146&E146&F146&B146&"L" -> MGMAAcademicAllAllergy/ImmunologyL | B146: Allergy/Immunology | C146: Code | D146: MGMA | E146: Academic | F146: All | G146: 2022 | H146: 1,851 | M146: 3,186 | R146: 3,971 | U146: 4,802
A147: =D147&E147&F147&B147&"L" -> MGMAAcademicAllAnesthesiology: Pain ManagementL | B147: Anesthesiology: Pain Management | C147: Code | D147: MGMA | E147: Academic | F147: All | G147: 2022 | H147: 2,410 | M147: 4,018 | R147: 6,231 | U147: 8,013
A148: MGMAAcademicAllCardiology: ElectrophysiologyL | B148: Cardiology: Electrophysiology | C148: Code | D148: MGMA | E148: Academic | F148: All | G148: 2022 | H148: 7,007 | M148: 8,564 | R148: 11,067 | U148: 13,501
A149: MGMAAcademicAllCardiology: InvasiveL | B149: Cardiology: Invasive | C149: Code | D149: MGMA | E149: Academic | F149: All | G149: 2022 | H149: 4,090 | M149: 6,770 | R149: 10,120 | U149: 13,217
A150: MGMAAcademicAllCardiology: Invasive-InterventionalL | B150: Cardiology: Invasive-Interventional | C150: Code | D150: MGMA | E150: Academic | F150: All | G150: 2022 | H150: 6,002 | M150: 7,336 | R150: 8,923 | U150: 10,490
A151: MGMAAcademicAllCardiology: NoninvasiveL | B151: Cardiology: Noninvasive | C151: Code | D151: MGMA | E151: Academic | F151: All | G151: 2022 | H151: 4,662 | M151: 6,154 | R151: 7,695 | U151: 9,141
A152: MGMAAcademicAllCritical Care: IntensivistL | B152: Critical Care: Intensivist | C152: Code | D152: MGMA | E152: Academic | F152: All | G152: 2022 | H152: 2,540 | M152: 3,545 | R152: 5,143 | U152: 6,105
A153: MGMAAcademicAllDermatologyL | B153: Dermatology | C153: Code | D153: MGMA | E153: Academic | F153: All | G153: 2022 | H153: 5,344 | M153: 6,770 | R153: 8,269 | U153: 11,173
A154: MGMAAcademicAllDermatology: DermatopathologyL | B154: Dermatology: Dermatopathology | C154: Code | D154: MGMA | E154: Academic | F154: All | G154: 2022 | H154: 4,039 | M154: 6,810 | R154: 13,942 | U154: 16,476
A155: MGMAAcademicAllDermatology: Mohs SurgeryL | B155: Dermatology: Mohs Surgery | C155: Code | D155: MGMA | E155: Academic | F155: All | G155: 2022 | H155: 10,496 | M155: 11,797 | R155: 14,299 | U155: 18,271
A156: MGMAAcademicAllEmergency MedicineL | B156: Emergency Medicine | C156: Code | D156: MGMA | E156: Academic | F156: All | G156: 2022 | H156: 4,102 | M156: 5,848 | R156: 7,885 | U156: 9,347
A157: MGMAAcademicAllEndocrinology/MetabolismL | B157: Endocrinology/Metabolism | C157: Code | D157: MGMA | E157: Academic | F157: All | G157: 2022 | H157: 3,245 | M157: 3,958 | R157: 5,032 | U157: 5,555
A158: MGMAAcademicAllFamily Medicine (with OB)L | B158: Family Medicine (with OB) | C158: Code | D158: MGMA | E158: Academic | F158: All | G158: 2022 | H158: 3,169 | M158: 4,201 | R158: 4,696 | U158: 6,436
A159: MGMAAcademicAllFamily Medicine (without OB)L | B159: Family Medicine (without OB) | C159: Code | D159: MGMA | E159: Academic | F159: All | G159: 2022 | H159: 3,333 | M159: 4,633 | R159: 5,636 | U159: 6,729
A160: MGMAAcademicAllFamily Medicine: Ambulatory Only (No Inpatient Work)L | B160: Family Medicine: Ambulatory Only (No Inpatient Work) | C160: Code | D160: MGMA | E160: Academic | F160: All | G160: 2022 | H160: * | M160: * | R160: * | U160: *
A161: MGMAAcademicAllFamily Medicine: Sports MedicineL | B161: Family Medicine: Sports Medicine | C161: Code | D161: MGMA | E161: Academic | F161: All | G161: 2022 | H161: 4,303 | M161: 5,510 | R161: 7,572 | U161: 9,098
A162: MGMAAcademicAllFamily Medicine: Urgent CareL | B162: Family Medicine: Urgent Care | C162: Code | D162: MGMA | E162: Academic | F162: All | G162: 2022 | H162: * | M162: * | R162: * | U162: *
A163: MGMAAcademicAllGastroenterologyL | B163: Gastroenterology | C163: Code | D163: MGMA | E163: Academic | F163: All | G163: 2022 | H163: 4,690 | M163: 5,801 | R163: 7,370 | U163: 9,000
A164: MGMAAcademicAllGastroenterology: HepatologyL | B164: Gastroenterology: Hepatology | C164: Code | D164: MGMA | E164: Academic | F164: All | G164: 2022 | H164: 3,426 | M164: 4,714 | R164: 5,369 | U164: 6,513
A165: MGMAAcademicAllGeneticsL | B165: Genetics | C165: Code | D165: MGMA | E165: Academic | F165: All | G165: 2022 | H165: * | M165: * | R165: * | U165: *
A166: MGMAAcademicAllGeriatricsL | B166: Geriatrics | C166: Code | D166: MGMA | E166: Academic | F166: All | G166: 2022 | H166: 1,795 | M166: 2,736 | R166: 3,486 | U166: 4,449
A167: MGMAAcademicAllHematology/OncologyL | B167: Hematology/Oncology | C167: Code | D167: MGMA | E167: Academic | F167: All | G167: 2022 | H167: 3,125 | M167: 3,722 | R167: 4,712 | U167: 5,666
A168: MGMAAcademicAllHematology/Oncology: Oncology (Only)L | B168: Hematology/Oncology: Oncology (Only) | C168: Code | D168: MGMA | E168: Academic | F168: All | G168: 2022 | H168: 3,289 | M168: 4,066 | R168: 4,630 | U168: 6,221
A169: MGMAAcademicAllHospice/Palliative CareL | B169: Hospice/Palliative Care | C169: Code | D169: MGMA | E169: Academic | F169: All | G169: 2022 | H169: 1,204 | M169: 1,818 | R169: 2,427 | U169: 2,891
A170: MGMAAcademicAllHospitalist: Family MedicineL | B170: Hospitalist: Family Medicine | C170: Code | D170: MGMA | E170: Academic | F170: All | G170: 2022 | H170: * | M170: * | R170: * | U170: *
A171: MGMAAcademicAllHospitalist: Internal MedicineL | B171: Hospitalist: Internal Medicine | C171: Code | D171: MGMA | E171: Academic | F171: All | G171: 2022 | H171: 1,972 | M171: 2,739 | R171: 3,464 | U171: 4,035
A172: MGMAAcademicAllHospitalist: NocturnistL | B172: Hospitalist: Nocturnist | C172: Code | D172: MGMA | E172: Academic | F172: All | G172: 2022 | H172: 799 | M172: 1,286 | R172: 2,161 | U172: 3,304
A173: MGMAAcademicAllHyperbaric Medicine/Wound CareL | B173: Hyperbaric Medicine/Wound Care | C173: Code | D173: MGMA | E173: Academic | F173: All | G173: 2022 | H173: * | M173: * | R173: * | U173: *
A174: MGMAAcademicAllInfectious DiseaseL | B174: Infectious Disease | C174: Code | D174: MGMA | E174: Academic | F174: All | G174: 2022 | H174: 1,819 | M174: 2,584 | R174: 3,295 | U174: 4,221
A175: MGMAAcademicAllInternal Medicine: GeneralL | B175: Internal Medicine: General | C175: Code | D175: MGMA | E175: Academic | F175: All | G175: 2022 | H175: 2,899 | M175: 4,102 | R175: 5,340 | U175: 6,556
A176: MGMAAcademicAllInternal Medicine: Ambulatory Only (No Inpatient Work)L | B176: Internal Medicine: Ambulatory Only (No Inpatient Work) | C176: Code | D176: MGMA | E176: Academic | F176: All | G176: 2022 | H176: * | M176: * | R176: * | U176: *
A177: MGMAAcademicAllNephrologyL | B177: Nephrology | C177: Code | D177: MGMA | E177: Academic | F177: All | G177: 2022 | H177: 4,350 | M177: 5,692 | R177: 7,020 | U177: 8,382
A178: MGMAAcademicAllNephrology: TransplantL | B178: Nephrology: Transplant | C178: Code | D178: MGMA | E178: Academic | F178: All | G178: 2022 | H178: * | M178: * | R178: * | U178: *
A179: MGMAAcademicAllNeurologyL | B179: Neurology | C179: Code | D179: MGMA | E179: Academic | F179: All | G179: 2022 | H179: 2,664 | M179: 3,443 | R179: 4,404 | U179: 6,159
A180: MGMAAcademicAllNeurology: Epilepsy/EEGL | B180: Neurology: Epilepsy/EEG | C180: Code | D180: MGMA | E180: Academic | F180: All | G180: 2022 | H180: 4,340 | M180: 5,101 | R180: 6,214 | U180: 8,044
A181: MGMAAcademicAllNeurology: Neurocritical CareL | B181: Neurology: Neurocritical Care | C181: Code | D181: MGMA | E181: Academic | F181: All | G181: 2022 | H181: 4,903 | M181: 6,567 | R181: 7,461 | U181: 8,852
A182: MGMAAcademicAllNeurology: Neuromuscular MedicineL | B182: Neurology: Neuromuscular Medicine | C182: Code | D182: MGMA | E182: Academic | F182: All | G182: 2022 | H182: 2,885 | M182: 3,839 | R182: 4,608 | U182: 5,714
A183: MGMAAcademicAllNeurology: Stroke MedicineL | B183: Neurology: Stroke Medicine | C183: Code | D183: MGMA | E183: Academic | F183: All | G183: 2022 | H183: 2,732 | M183: 3,482 | R183: 4,727 | U183: 6,022
A184: MGMAAcademicAllObstetrics/Gynecology: GeneralL | B184: Obstetrics/Gynecology: General | C184: Code | D184: MGMA | E184: Academic | F184: All | G184: 2022 | H184: 3,619 | M184: 5,460 | R184: 7,042 | U184: 7,990
A185: MGMAAcademicAllOB/GYN: Gynecology (Only)L | B185: OB/GYN: Gynecology (Only) | C185: Code | D185: MGMA | E185: Academic | F185: All | G185: 2022 | H185: 2,929 | M185: 4,284 | R185: 5,377 | U185: 6,656
A186: MGMAAcademicAllOB/GYN: Gynecological OncologyL | B186: OB/GYN: Gynecological Oncology | C186: Code | D186: MGMA | E186: Academic | F186: All | G186: 2022 | H186: 4,261 | M186: 5,614 | R186: 7,140 | U186: 8,725
A187: MGMAAcademicAllOB/GYN: Maternal and Fetal MedicineL | B187: OB/GYN: Maternal and Fetal Medicine | C187: Code | D187: MGMA | E187: Academic | F187: All | G187: 2022 | H187: 4,515 | M187: 5,634 | R187: 6,906 | U187: 8,646
A188: MGMAAcademicAllOB/GYN: Minimally Invasive Gynecologic SurgeryL | B188: OB/GYN: Minimally Invasive Gynecologic Surgery | C188: Code | D188: MGMA | E188: Academic | F188: All | G188: 2022 | H188: * | M188: * | R188: * | U188: *
A189: MGMAAcademicAllOB/GYN: Reproductive EndocrinologyL | B189: OB/GYN: Reproductive Endocrinology | C189: Code | D189: MGMA | E189: Academic | F189: All | G189: 2022 | H189: 3,515 | M189: 4,917 | R189: 5,672 | U189: 6,912
A190: MGMAAcademicAllOB/GYN: UrogynecologyL | B190: OB/GYN: Urogynecology | C190: Code | D190: MGMA | E190: Academic | F190: All | G190: 2022 | H190: 3,468 | M190: 5,118 | R190: 6,295 | U190: 7,866
A191: MGMAAcademicAllOccupational MedicineL | B191: Occupational Medicine | C191: Code | D191: MGMA | E191: Academic | F191: All | G191: 2022 | H191: * | M191: * | R191: * | U191: *
A192: MGMAAcademicAllOphthalmologyL | B192: Ophthalmology | C192: Code | D192: MGMA | E192: Academic | F192: All | G192: 2022 | H192: 3,982 | M192: 5,756 | R192: 8,119 | U192: 10,566
A193: MGMAAcademicAllOphthalmology: Corneal and Refractive SurgeryL | B193: Ophthalmology: Corneal and Refractive Surgery | C193: Code | D193: MGMA | E193: Academic | F193: All | G193: 2022 | H193: 6,199 | M193: 7,737 | R193: 9,532 | U193: 11,845
A194: MGMAAcademicAllOphthalmology: GlaucomaL | B194: Ophthalmology: Glaucoma | C194: Code | D194: MGMA | E194: Academic | F194: All | G194: 2022 | H194: 5,244 | M194: 8,415 | R194: 9,929 | U194: 13,437
A195: MGMAAcademicAllOphthalmology: NeurologyL | B195: Ophthalmology: Neurology | C195: Code | D195: MGMA | E195: Academic | F195: All | G195: 2022 | H195: * | M195: * | R195: * | U195: *
A196: MGMAAcademicAllOphthalmology: Oculoplastic and Reconstructive SurgeryL | B196: Ophthalmology: Oculoplastic and Reconstructive Surgery | C196: Code | D196: MGMA | E196: Academic | F196: All | G196: 2022 | H196: 5,124 | M196: 6,603 | R196: 7,648 | U196: 9,139
A197: MGMAAcademicAllOphthalmology: RetinaL | B197: Ophthalmology: Retina | C197: Code | D197: MGMA | E197: Academic | F197: All | G197: 2022 | H197: 7,258 | M197: 8,929 | R197: 12,374 | U197: 14,353
A198: MGMAAcademicAllOrthopedic (Nonsurgical)L | B198: Orthopedic (Nonsurgical) | C198: Code | D198: MGMA | E198: Academic | F198: All | G198: 2022 | H198: 3,445 | M198: 5,332 | R198: 6,741 | U198: 9,378
A199: MGMAAcademicAllOrthopedic Surgery: GeneralL | B199: Orthopedic Surgery: General | C199: Code | D199: MGMA | E199: Academic | F199: All | G199: 2022 | H199: 3,648 | M199: 8,015 | R199: 9,015 | U199: 11,221
A200: MGMAAcademicAllOrthopedic Surgery: Foot and AnkleL | B200: Orthopedic Surgery: Foot and Ankle | C200: Code | D200: MGMA | E200: Academic | F200: All | G200: 2022 | H200: 5,421 | M200: 7,708 | R200: 9,301 | U200: 12,047
... 414 more rows
